Workbook

Sheet Cover Sheet
I1: MWS LID SITE DESIGN TOOL VERSION 11 - July 12, 2021
D8: Lookup Table | L8: Lookup Table
B9: Basic Land Use Category | C9: Land Use | D9: Code | E9: R Credit | F9: Rv | G9: CN | J9: GI Practice | K9: Level | L9: Code | M9: R Credit | N9: Rv | O9: Tv Multiplier
A10: Step 1 Basic Land Use | B10: Basic Land Use | C10: Impervious Surface | D10: IA | E10: =1-F10 -> 0.05 | F10: 0.95 | G10: 98 | I10: Step 2 Intrinsic GIPs | J10: Sheet Flow | K10: Cons Area A/B | L10: SAB | M10: 0.75 | N10: =1-M10 -> 0.25 | O10: 0
C11: Forest A Soil | D11: FA | E11: 0.98 | F11: 0.02 | G11: 36 | K11: Cons Area C/D | L11: SCD | M11: 0.5 | N11: 0.5 | O11: 0
C12: Forest B Soil | D12: FB | E12: 0.97 | F12: 0.03 | G12: 60 | K12: Strip A | L12: SA | M12: 0.5 | N12: 0.5 | O12: 0
C13: Forest C Soil | D13: FC | E13: 0.96 | F13: 0.04 | G13: 73 | K13: Strip Amended | L13: SAS | M13: 0.5 | N13: 0.5 | O13: 0
C14: Forest D Soil | D14: FD | E14: 0.95 | F14: 0.05 | G14: 79 | I14: Step 3 & 3a Structural GIPs | J14: Permeable Pavement (see Notes below) | K14: 1 | L14: P1 | M14: 0.45 | N14: =1-M14 -> 0.55 | O14: 1
C15: Turf A Soil | D15: TA | E15: 0.85 | F15: 0.15 | G15: 49 | K15: 1 (P1 Land Use) | L15: PP1 | M15: 0 | N15: 1 | O15: 1
C16: Turf B Soil | D16: TB | E16: 0.82 | F16: 0.18 | G16: 69 | K16: 2* | L16: P2 | M16: 0.8 | N16: 0.2 | O16: 1.25
C17: Turf C Soil | D17: TC | E17: 0.8 | F17: 0.2 | G17: 79 | K17: 2 (P2 Land Use) | L17: PP2 | M17: 0 | N17: 1 | O17: 1.25
C18: Turf D Soil | D18: TD | E18: =1-F18 -> 0.77 | F18: 0.23 | G18: 84 | J18: Green Roof (see Notes below) | K18: 1 (G1 Land Use) | L18: GR1 | M18: 0 | N18: 1 | O18: 1
C19: Gravel A Soil | D19: GRA | E19: 0.4 | F19: 0.6 | G19: 76 | K19: 2 (G2 Land Use) | L19: GR2 | M19: 0 | N19: 1 | O19: 1.1
C20: Gravel B Soil | D20: GRB | E20: 0.4 | F20: 0.6 | G20: 85 | K20: 3 (G3 Land Use) | L20: GR3 | M20: 0 | N20: 1 | O20: 1.25
C21: Gravel C Soil | D21: GRC | E21: 0.4 | F21: 0.6 | G21: 89 | K21: 4 (G4 Land Use) | L21: GR4 | M21: 0 | N21: 1 | O21: 1.25
C22: Gravel D Soil | D22: GRD | E22: 0.4 | F22: 0.6 | G22: 91 | J22: Grass Channel | K22: A/B Soil | L22: GAB | M22: 0.2 | N22: =1-M22 -> 0.8 | O22: 0
A23: Step 1a Modified Land Use | B23: Permeable Pavement | C23: Level 1 | D23: P1 | E23: 0.4 | F23: =1-E23 -> 0.6 | G23: 98 | K23: C/D Soil | L23: GCD | M23: 0.1 | N23: 0.9 | O23: 0
C24: Level 2 | D24: P2 | E24: 0.8 | F24: =1-E24 -> 0.2 | G24: 98 | K24: A/B Amended | L24: GAA | M24: 0.3 | N24: 0.7 | O24: 0
B25: Reforestation | C25: A | D25: RA | E25: 0.96 | F25: =1-E25 -> 0.04 | G25: 45 | K25: C/D amended | L25: GCA | M25: 0.2 | N25: 0.8 | O25: 0
C26: B | D26: RB | E26: 0.94 | F26: 0.06 | G26: 66 | J26: Bioretention | K26: 1 | L26: B1 | M26: 0.6 | N26: =1-M26 -> 0.4 | O26: 1.1
C27: C | D27: RC | E27: 0.92 | F27: 0.08 | G27: 77 | K27: 2 | L27: B2 | M27: 0.8 | N27: 0.2 | O27: 1.25
C28: D | D28: RD | E28: 0.9 | F28: 0.1 | G28: 83 | J28: Water Quality Swales | K28: 1 | L28: S1 | M28: 0.4 | N28: 0.6 | O28: 1
C29: A Amended | D29: RAA | E29: 0.98 | F29: 0.02 | G29: 30 | K29: 2 | L29: S2 | M29: 0.6 | N29: 0.4 | O29: 1.1
C30: B Amended | D30: RBA | E30: 0.97 | F30: 0.03 | G30: 55 | J30: Infiltration Trench | K30: 1 | L30: I1 | M30: 0.5 | N30: 0.5 | O30: 1
C31: C Amended | D31: RCA | E31: 0.96 | F31: 0.04 | G31: 70 | K31: 2 | L31: I2 | M31: 0.9 | N31: 0.1 | O31: 1.25
C32: D Amended | D32: RDA | E32: 0.95 | F32: 0.05 | G32: 77 | J32: Urban Bioretention | K32: 1 | L32: UB | M32: 0.4 | N32: 0.6 | O32: 1
B33: Green Roof | C33: 1 | D33: G1 | E33: 0.4 | F33: 0.6 | G33: 86 | J33: Ext Detention Pond | K33: N/A | L33: D1 | M33: 0.15 | N33: 0.85 | O33: 1.25
C34: 2 | D34: G2 | E34: 0.6 | F34: 0.4 | G34: 86 | J34: Cistern | K34: N/A | L34: CIS | M34: ='Rv and Adjusted CN'!$D$11/100 -> 0 | N34: 1 | O34: 0
C35: 3 | D35: G3 | E35: 0.8 | F35: 0.2 | G35: 86 | I35: Notes:
C36: 4 | D36: G4 | E36: 0.9 | F36: 0.1 | G36: 86 | I36: 1. Choose PP1 in Structural GIP for actual area of the Level 1 Permeable Pavement, otherwise use P1 for run-on areas.
I37: 2. Level 2 Permeable Pavement cannot have run-on without verfied infiltration. Cells Identified as P2 runon will be highlighted in blue.
I39: 3. Green Roofs cannot have run-on, therefore GR1, GR2, GR3, and GR4 can only be chosen as a Structural GIP (not in series) for Modified Land Uses of G1, G2, G3, and G4 respectively. Text will turn red if these conditions are not met.

Sheet Rv and Adjusted CN
A1: Project Name | K1: MWS LID SITE DESIGN TOOL VERSION 11 - July 12, 2021 | AA1: Project Name | AF1: =E1 -> 0 | AL1: =K1 -> MWS LID SITE DESIGN TOOL VERSION 11 - July 12, 2021
A2: Parcel Identification # | AA2: Parcel Identification # | AF2: =E2 -> 0
A3: Engineer
A5: Combined Sewer Overlay? | AA5: PreDev CN
A6: Pre or Post Development Worksheet?
A7: Target Runoff Reduction Requirement = | E7: 0.8 | F7: See Section 7.2.1 in Metro SWMM Volume 1 | AA7: METRO RAINFALL
AA8: Return Period | AB8: Rainfall (in)
AA9: 2-yr | AB9: 3.39
A10: Capture Depth= | D10: 1 | E10: inch | AA10: 5-yr | AB10: 4.5
A11: Cistern Capture= | E11: % Total Vol captured | H11: From Cistern Design Tool | AA11: 10-yr | AB11: 5.23
AA12: 25-yr | AB12: 6.16
AA13: 50-yr | AB13: 6.85
A14: Percent Volume Reduction-Based Calculations | AA14: 100-yr | AB14: 7.53
A15: Step 1: Lay out the site and divide it into sub-areas each of a specific land use type and Rv. | F15: Step 1a: Change any basic land use types through reforesting, permeable pavement or green roofs - or through use of open space for a GIP. | I15: Step 2: Treat impervious areas through the use of sheet flow | L15: Step 3: Treat primarily impervious areas with structural GIPs either in series with Step 3 intrinsic GIPs or alone downstream from Steps 1 and 2 land use. | O15: Size controls for Step 3 by assigning structure ID to each sub-area, combining sub-areas into one structure if appropriate. | R15: Step 3a Treatment in Series Calculation - Place Structural GIPs in same row as upstream GIP | U15: Size controls for Step 3a in series by assigning a sequential structure ID to each area treated in series.
AB16: Adjusted Curve Number Calculations (Step 3 only) | AN16: Adjusted Curve Number Calculations (Step 3a added)
A17: Step1 Basic Land Use | F17: Step 1a Modified LU | I17: Step 2 Intrinsic GIPs | L17: Step 3 Structural GIPs | O17: Structure ID | P17: IA Capture | R17: Step 3a Structural GIPs in Series | U17: Structure ID | V17: IA Capture | X17: Nominal Curve Number | AB17: No Controls | AF17: With Structural Controls &Treatment Vol Removed | AN17: No Controls | AR17: With Structural Controls &Treatment Vol Removed
A18: Subarea | B18: Description | C18: Code | D18: Acres | E18: Base Rv | F18: Code | G18: =D18 -> Acres | H18: Eff Rv1 | I18: Code | J18: Trtmt VR1 | K18: Eff Rv2 | L18: Code | M18: Trtmt VR2 | N18: Eff Rv3 | O18: Site GIP ID Number | P18: Tv Multiplier | Q18: Tv (cf) | R18: Code | S18: Trtmt VR2 | T18: Eff Rv4 | U18: Site GIP ID Number | V18: Tv Multiplier | W18: Structure in Series Tv (cf) | X18: Step 1 | Y18: Step 1A | AB18: Original CN | AC18: Rainfall (in) | AD18: S (in) | AE18: Q (in) | AF18: Tv required (cu ft) | AG18: Tv provided (%) | AH18: RO Vol Red (cu ft) | AI18: Q reduction (in) | AJ18: Q adj (in) | AK18: Adjusted CN | AL18: Difference | AN18: Adjusted CN (St 3) | AO18: Rainfall (in) | AP18: S (in) | AQ18: Q (in) | AR18: Tv required (cu ft) | AS18: Tv provided (%) | AT18: RO Vol Red (cu ft) | AU18: Q reduction (in) | AV18: Q adj (in) | AW18: Adjusted CN | AX18: Difference
A19: 1 | E19: =IF($G19=0,0,VLOOKUP(C19,'Cover Sheet'!$D$10:$F$22,3,0)) -> 0 | G19: 0 | H19: =IF($G19=0,0,VLOOKUP(F19,'Cover Sheet'!$D$10:$F$36,3,0)) -> 0 | J19: =IF(I19=0,0,VLOOKUP(I19,'Cover Sheet'!$L$10:$M$13,2,0)) -> 0 | K19: =IF(J19>0,H19*(1-J19),H19) -> 0 | M19: =IF(L19=0,0,VLOOKUP(L19,'Cover Sheet'!$L$14:$M$34,2,0)) -> 0 | N19: =IF(M19>0,ROUNDUP(K19*(1-M19),2),K19) -> 0 | P19: =IF(L19="",0,VLOOKUP(L19,'Cover Sheet'!$L$14:$O$34,4,0)) -> 0 | Q19: =IF(L19="","-",IF(OR(L19="PP1",L19="P2"),P19*$D$10*E19*G19/12*43560,P19*$D$10*K19*G19/12*43560)) -> - | S19: =IF(R19=0,0,VLOOKUP(R19,'Cover Sheet'!$L$14:$M$34,2,0)) -> 0 | T19: =IF(S19>0,N19*(1-S19),N19) -> 0 | V19: =IF(R19="",0,VLOOKUP(R19,'Cover Sheet'!$L$14:$O$34,4,0)) -> 0 | W19: =IF(R19="","-",V19*$D$10*N19*G19/12*43560) -> - | X19: =IF(C19=0,0,VLOOKUP(C19,'Cover Sheet'!$D$10:$G$22,4,0)) -> 0 | Y19: =IF(F19=0,0,VLOOKUP(F19,'Cover Sheet'!$D$10:$G$36,4,0)) -> 0 | AB19: =Y19 -> 0 | AC19: 7.53 | AD19: =IF(AB19=0,"-",1000/AB19-10) -> - | AE19: =IF(AB19=0,"-",(AC19-0.2*AD19)^2/(AC19+0.8*AD19)) -> - | AF19: =Q19 -> - | AH19: =IF(AG19="","",AF19*AG19) ->  | AI19: =IF(OR(AB19=0,L19=""),0,12*AH19/43560/D19) -> 0 | AJ19: =IF(AB19=0,"-",IF(AE19-AI19<0,0,AE19-AI19)) -> - | AK19: =IF(AB19=0,0,1000/(10+5*AC19+10*AJ19-10*(AJ19^2+1.25*AJ19*AC19)^(1/2))) -> 0 | AL19: =AK19-AB19 -> 0 | AN19: =AK19 -> 0 | AO19: 7.53 | AP19: =IF(AN19=0,"-",1000/AN19-10) -> - | AQ19: =IF(AN19=0,"-",(AO19-0.2*AP19)^2/(AO19+0.8*AP19)) -> - | AR19: =W19 -> - | AT19: =IF(AS19="","",AR19*AS19) ->  | AU19: =IF(OR(AN19=0,R19=""),0,12*AT19/43560/D19) -> 0 | AV19: =IF(AN19=0,"-",IF(AQ19-AU19<0,0,AQ19-AU19)) -> - | AW19: =IF(AN19=0,0,1000/(10+5*AO19+10*AV19-10*(AV19^2+1.25*AV19*AO19)^(1/2))) -> 0 | AX19: =AW19-AN19 -> 0
A20: =A19+1 -> 2 | E20: =IF($G20=0,0,VLOOKUP(C20,'Cover Sheet'!$D$10:$F$22,3,0)) -> 0 | G20: 0 | H20: =IF($G20=0,0,VLOOKUP(F20,'Cover Sheet'!$D$10:$F$36,3,0)) -> 0 | J20: =IF(I20=0,0,VLOOKUP(I20,'Cover Sheet'!$L$10:$M$13,2,0)) -> 0 | K20: =IF(J20>0,H20*(1-J20),H20) -> 0 | M20: =IF(L20=0,0,VLOOKUP(L20,'Cover Sheet'!$L$14:$M$34,2,0)) -> 0 | N20: =IF(M20>0,ROUNDUP(K20*(1-M20),2),K20) -> 0 | P20: =IF(L20="",0,VLOOKUP(L20,'Cover Sheet'!$L$14:$O$34,4,0)) -> 0 | Q20: =IF(L20="","-",IF(OR(L20="PP1",L20="P2"),P20*$D$10*E20*G20/12*43560,P20*$D$10*K20*G20/12*43560)) -> - | S20: =IF(R20=0,0,VLOOKUP(R20,'Cover Sheet'!$L$14:$M$34,2,0)) -> 0 | T20: =IF(S20>0,N20*(1-S20),N20) -> 0 | V20: =IF(R20="",0,VLOOKUP(R20,'Cover Sheet'!$L$14:$O$34,4,0)) -> 0 | W20: - | X20: =IF(C20=0,0,VLOOKUP(C20,'Cover Sheet'!$D$10:$G$22,4,0)) -> 0 | Y20: =IF(F20=0,0,VLOOKUP(F20,'Cover Sheet'!$D$10:$G$36,4,0)) -> 0 | AB20: =Y20 -> 0 | AC20: =$AC$19 -> 7.53 | AD20: - | AE20: =IF(AB20=0,"-",(AC20-0.2*AD20)^2/(AC20+0.8*AD20)) -> - | AF20: =Q20 -> - | AH20: =IF(AG20="","",AF20*AG20) ->  | AI20: 0 | AJ20: =IF(AB20=0,"-",IF(AE20-AI20<0,0,AE20-AI20)) -> - | AK20: =IF(AB20=0,0,1000/(10+5*AC20+10*AJ20-10*(AJ20^2+1.25*AJ20*AC20)^(1/2))) -> 0 | AL20: =AK20-AB20 -> 0 | AN20: =AK20 -> 0 | AO20: =$AC$19 -> 7.53 | AP20: - | AQ20: - | AR20: =W20 -> - | AT20: =IF(AS20="","",AR20*AS20) ->  | AU20: =IF(OR(AN20=0,R20=""),0,12*AT20/43560/D20) -> 0 | AV20: =IF(AN20=0,"-",IF(AQ20-AU20<0,0,AQ20-AU20)) -> - | AW20: 0 | AX20: =AW20-AN20 -> 0
A21: =A20+1 -> 3 | E21: =IF($G21=0,0,VLOOKUP(C21,'Cover Sheet'!$D$10:$F$22,3,0)) -> 0 | G21: 0 | H21: =IF($G21=0,0,VLOOKUP(F21,'Cover Sheet'!$D$10:$F$36,3,0)) -> 0 | J21: =IF(I21=0,0,VLOOKUP(I21,'Cover Sheet'!$L$10:$M$13,2,0)) -> 0 | K21: 0 | M21: =IF(L21=0,0,VLOOKUP(L21,'Cover Sheet'!$L$14:$M$34,2,0)) -> 0 | N21: 0 | P21: =IF(L21="",0,VLOOKUP(L21,'Cover Sheet'!$L$14:$O$34,4,0)) -> 0 | Q21: =IF(L21="","-",IF(OR(L21="PP1",L21="P2"),P21*$D$10*E21*G21/12*43560,P21*$D$10*K21*G21/12*43560)) -> - | S21: =IF(R21=0,0,VLOOKUP(R21,'Cover Sheet'!$L$14:$M$34,2,0)) -> 0 | T21: =IF(S21>0,N21*(1-S21),N21) -> 0 | V21: =IF(R21="",0,VLOOKUP(R21,'Cover Sheet'!$L$14:$O$34,4,0)) -> 0 | W21: - | X21: =IF(C21=0,0,VLOOKUP(C21,'Cover Sheet'!$D$10:$G$22,4,0)) -> 0 | Y21: =IF(F21=0,0,VLOOKUP(F21,'Cover Sheet'!$D$10:$G$36,4,0)) -> 0 | AB21: 0 | AC21: =$AC$19 -> 7.53 | AD21: - | AE21: - | AF21: =Q21 -> - | AI21: 0 | AJ21: - | AK21: 0 | AL21: 0 | AN21: 0 | AO21: =$AC$19 -> 7.53 | AP21: - | AQ21: - | AR21: - | AU21: 0 | AV21: - | AW21: 0 | AX21: 0
A22: 4 | E22: =IF($G22=0,0,VLOOKUP(C22,'Cover Sheet'!$D$10:$F$22,3,0)) -> 0 | G22: 0 | H22: =IF($G22=0,0,VLOOKUP(F22,'Cover Sheet'!$D$10:$F$36,3,0)) -> 0 | J22: =IF(I22=0,0,VLOOKUP(I22,'Cover Sheet'!$L$10:$M$13,2,0)) -> 0 | K22: 0 | M22: =IF(L22=0,0,VLOOKUP(L22,'Cover Sheet'!$L$14:$M$34,2,0)) -> 0 | N22: 0 | P22: =IF(L22="",0,VLOOKUP(L22,'Cover Sheet'!$L$14:$O$34,4,0)) -> 0 | Q22: - | S22: =IF(R22=0,0,VLOOKUP(R22,'Cover Sheet'!$L$14:$M$34,2,0)) -> 0 | T22: 0 | V22: =IF(R22="",0,VLOOKUP(R22,'Cover Sheet'!$L$14:$O$34,4,0)) -> 0 | W22: - | X22: =IF(C22=0,0,VLOOKUP(C22,'Cover Sheet'!$D$10:$G$22,4,0)) -> 0 | Y22: =IF(F22=0,0,VLOOKUP(F22,'Cover Sheet'!$D$10:$G$36,4,0)) -> 0 | AB22: 0 | AC22: 7.53 | AD22: - | AE22: - | AF22: - | AI22: 0 | AJ22: - | AK22: 0 | AL22: 0 | AN22: 0 | AO22: 7.53 | AP22: - | AQ22: - | AR22: - | AU22: 0 | AV22: - | AW22: 0 | AX22: 0
A23: 5 | E23: =IF($G23=0,0,VLOOKUP(C23,'Cover Sheet'!$D$10:$F$22,3,0)) -> 0 | G23: 0 | H23: =IF($G23=0,0,VLOOKUP(F23,'Cover Sheet'!$D$10:$F$36,3,0)) -> 0 | J23: =IF(I23=0,0,VLOOKUP(I23,'Cover Sheet'!$L$10:$M$13,2,0)) -> 0 | K23: 0 | M23: =IF(L23=0,0,VLOOKUP(L23,'Cover Sheet'!$L$14:$M$34,2,0)) -> 0 | N23: 0 | P23: =IF(L23="",0,VLOOKUP(L23,'Cover Sheet'!$L$14:$O$34,4,0)) -> 0 | Q23: - | S23: =IF(R23=0,0,VLOOKUP(R23,'Cover Sheet'!$L$14:$M$34,2,0)) -> 0 | T23: 0 | V23: =IF(R23="",0,VLOOKUP(R23,'Cover Sheet'!$L$14:$O$34,4,0)) -> 0 | W23: - | X23: =IF(C23=0,0,VLOOKUP(C23,'Cover Sheet'!$D$10:$G$22,4,0)) -> 0 | Y23: =IF(F23=0,0,VLOOKUP(F23,'Cover Sheet'!$D$10:$G$36,4,0)) -> 0 | AB23: 0 | AC23: 7.53 | AD23: - | AE23: - | AF23: - | AI23: 0 | AJ23: - | AK23: 0 | AL23: 0 | AN23: 0 | AO23: 7.53 | AP23: - | AQ23: - | AR23: - | AU23: 0 | AV23: - | AW23: 0 | AX23: 0
A24: 6 | E24: =IF($G24=0,0,VLOOKUP(C24,'Cover Sheet'!$D$10:$F$22,3,0)) -> 0 | G24: 0 | H24: =IF($G24=0,0,VLOOKUP(F24,'Cover Sheet'!$D$10:$F$36,3,0)) -> 0 | J24: =IF(I24=0,0,VLOOKUP(I24,'Cover Sheet'!$L$10:$M$13,2,0)) -> 0 | K24: 0 | M24: =IF(L24=0,0,VLOOKUP(L24,'Cover Sheet'!$L$14:$M$34,2,0)) -> 0 | N24: 0 | P24: =IF(L24="",0,VLOOKUP(L24,'Cover Sheet'!$L$14:$O$34,4,0)) -> 0 | Q24: - | S24: =IF(R24=0,0,VLOOKUP(R24,'Cover Sheet'!$L$14:$M$34,2,0)) -> 0 | T24: 0 | V24: =IF(R24="",0,VLOOKUP(R24,'Cover Sheet'!$L$14:$O$34,4,0)) -> 0 | W24: - | X24: =IF(C24=0,0,VLOOKUP(C24,'Cover Sheet'!$D$10:$G$22,4,0)) -> 0 | Y24: =IF(F24=0,0,VLOOKUP(F24,'Cover Sheet'!$D$10:$G$36,4,0)) -> 0 | AB24: 0 | AC24: 7.53 | AD24: - | AE24: - | AF24: - | AI24: 0 | AJ24: - | AK24: 0 | AL24: 0 | AN24: 0 | AO24: 7.53 | AP24: - | AQ24: - | AR24: - | AU24: 0 | AV24: - | AW24: 0 | AX24: 0
A25: 7 | E25: =IF($G25=0,0,VLOOKUP(C25,'Cover Sheet'!$D$10:$F$22,3,0)) -> 0 | G25: 0 | H25: =IF($G25=0,0,VLOOKUP(F25,'Cover Sheet'!$D$10:$F$36,3,0)) -> 0 | J25: =IF(I25=0,0,VLOOKUP(I25,'Cover Sheet'!$L$10:$M$13,2,0)) -> 0 | K25: 0 | M25: =IF(L25=0,0,VLOOKUP(L25,'Cover Sheet'!$L$14:$M$34,2,0)) -> 0 | N25: 0 | P25: =IF(L25="",0,VLOOKUP(L25,'Cover Sheet'!$L$14:$O$34,4,0)) -> 0 | Q25: - | S25: =IF(R25=0,0,VLOOKUP(R25,'Cover Sheet'!$L$14:$M$34,2,0)) -> 0 | T25: 0 | V25: =IF(R25="",0,VLOOKUP(R25,'Cover Sheet'!$L$14:$O$34,4,0)) -> 0 | W25: - | X25: =IF(C25=0,0,VLOOKUP(C25,'Cover Sheet'!$D$10:$G$22,4,0)) -> 0 | Y25: =IF(F25=0,0,VLOOKUP(F25,'Cover Sheet'!$D$10:$G$36,4,0)) -> 0 | AB25: 0 | AC25: 7.53 | AD25: - | AE25: - | AF25: - | AI25: 0 | AJ25: - | AK25: 0 | AL25: 0 | AN25: 0 | AO25: 7.53 | AP25: - | AQ25: - | AR25: - | AU25: 0 | AV25: - | AW25: 0 | AX25: 0
A26: 8 | E26: =IF($G26=0,0,VLOOKUP(C26,'Cover Sheet'!$D$10:$F$22,3,0)) -> 0 | G26: 0 | H26: =IF($G26=0,0,VLOOKUP(F26,'Cover Sheet'!$D$10:$F$36,3,0)) -> 0 | J26: =IF(I26=0,0,VLOOKUP(I26,'Cover Sheet'!$L$10:$M$13,2,0)) -> 0 | K26: 0 | M26: =IF(L26=0,0,VLOOKUP(L26,'Cover Sheet'!$L$14:$M$34,2,0)) -> 0 | N26: 0 | P26: =IF(L26="",0,VLOOKUP(L26,'Cover Sheet'!$L$14:$O$34,4,0)) -> 0 | Q26: - | S26: =IF(R26=0,0,VLOOKUP(R26,'Cover Sheet'!$L$14:$M$34,2,0)) -> 0 | T26: 0 | V26: =IF(R26="",0,VLOOKUP(R26,'Cover Sheet'!$L$14:$O$34,4,0)) -> 0 | W26: - | X26: =IF(C26=0,0,VLOOKUP(C26,'Cover Sheet'!$D$10:$G$22,4,0)) -> 0 | Y26: =IF(F26=0,0,VLOOKUP(F26,'Cover Sheet'!$D$10:$G$36,4,0)) -> 0 | AB26: 0 | AC26: 7.53 | AD26: - | AE26: - | AF26: - | AI26: 0 | AJ26: - | AK26: 0 | AL26: 0 | AN26: 0 | AO26: 7.53 | AP26: - | AQ26: - | AR26: - | AU26: 0 | AV26: - | AW26: 0 | AX26: 0
A27: 9 | E27: =IF($G27=0,0,VLOOKUP(C27,'Cover Sheet'!$D$10:$F$22,3,0)) -> 0 | G27: 0 | H27: =IF($G27=0,0,VLOOKUP(F27,'Cover Sheet'!$D$10:$F$36,3,0)) -> 0 | J27: =IF(I27=0,0,VLOOKUP(I27,'Cover Sheet'!$L$10:$M$13,2,0)) -> 0 | K27: 0 | M27: =IF(L27=0,0,VLOOKUP(L27,'Cover Sheet'!$L$14:$M$34,2,0)) -> 0 | N27: 0 | P27: =IF(L27="",0,VLOOKUP(L27,'Cover Sheet'!$L$14:$O$34,4,0)) -> 0 | Q27: - | S27: =IF(R27=0,0,VLOOKUP(R27,'Cover Sheet'!$L$14:$M$34,2,0)) -> 0 | T27: 0 | V27: =IF(R27="",0,VLOOKUP(R27,'Cover Sheet'!$L$14:$O$34,4,0)) -> 0 | W27: - | X27: =IF(C27=0,0,VLOOKUP(C27,'Cover Sheet'!$D$10:$G$22,4,0)) -> 0 | Y27: =IF(F27=0,0,VLOOKUP(F27,'Cover Sheet'!$D$10:$G$36,4,0)) -> 0 | AB27: 0 | AC27: 7.53 | AD27: - | AE27: - | AF27: - | AI27: 0 | AJ27: - | AK27: 0 | AL27: 0 | AN27: 0 | AO27: 7.53 | AP27: - | AQ27: - | AR27: - | AU27: 0 | AV27: - | AW27: 0 | AX27: 0
A28: 10 | E28: =IF($G28=0,0,VLOOKUP(C28,'Cover Sheet'!$D$10:$F$22,3,0)) -> 0 | G28: 0 | H28: =IF($G28=0,0,VLOOKUP(F28,'Cover Sheet'!$D$10:$F$36,3,0)) -> 0 | J28: =IF(I28=0,0,VLOOKUP(I28,'Cover Sheet'!$L$10:$M$13,2,0)) -> 0 | K28: 0 | M28: =IF(L28=0,0,VLOOKUP(L28,'Cover Sheet'!$L$14:$M$34,2,0)) -> 0 | N28: 0 | P28: =IF(L28="",0,VLOOKUP(L28,'Cover Sheet'!$L$14:$O$34,4,0)) -> 0 | Q28: - | S28: =IF(R28=0,0,VLOOKUP(R28,'Cover Sheet'!$L$14:$M$34,2,0)) -> 0 | T28: 0 | V28: =IF(R28="",0,VLOOKUP(R28,'Cover Sheet'!$L$14:$O$34,4,0)) -> 0 | W28: - | X28: =IF(C28=0,0,VLOOKUP(C28,'Cover Sheet'!$D$10:$G$22,4,0)) -> 0 | Y28: =IF(F28=0,0,VLOOKUP(F28,'Cover Sheet'!$D$10:$G$36,4,0)) -> 0 | AB28: 0 | AC28: 7.53 | AD28: - | AE28: - | AF28: - | AI28: 0 | AJ28: - | AK28: 0 | AL28: 0 | AN28: 0 | AO28: 7.53 | AP28: - | AQ28: - | AR28: - | AU28: 0 | AV28: - | AW28: 0 | AX28: 0
A29: 11 | E29: =IF($G29=0,0,VLOOKUP(C29,'Cover Sheet'!$D$10:$F$22,3,0)) -> 0 | G29: 0 | H29: =IF($G29=0,0,VLOOKUP(F29,'Cover Sheet'!$D$10:$F$36,3,0)) -> 0 | J29: =IF(I29=0,0,VLOOKUP(I29,'Cover Sheet'!$L$10:$M$13,2,0)) -> 0 | K29: 0 | M29: =IF(L29=0,0,VLOOKUP(L29,'Cover Sheet'!$L$14:$M$34,2,0)) -> 0 | N29: 0 | P29: =IF(L29="",0,VLOOKUP(L29,'Cover Sheet'!$L$14:$O$34,4,0)) -> 0 | Q29: - | S29: =IF(R29=0,0,VLOOKUP(R29,'Cover Sheet'!$L$14:$M$34,2,0)) -> 0 | T29: 0 | V29: =IF(R29="",0,VLOOKUP(R29,'Cover Sheet'!$L$14:$O$34,4,0)) -> 0 | W29: - | X29: =IF(C29=0,0,VLOOKUP(C29,'Cover Sheet'!$D$10:$G$22,4,0)) -> 0 | Y29: =IF(F29=0,0,VLOOKUP(F29,'Cover Sheet'!$D$10:$G$36,4,0)) -> 0 | AB29: 0 | AC29: 7.53 | AD29: - | AE29: - | AF29: - | AI29: 0 | AJ29: - | AK29: 0 | AL29: 0 | AN29: 0 | AO29: 7.53 | AP29: - | AQ29: - | AR29: - | AU29: 0 | AV29: - | AW29: 0 | AX29: 0
A30: 12 | E30: =IF($G30=0,0,VLOOKUP(C30,'Cover Sheet'!$D$10:$F$22,3,0)) -> 0 | G30: 0 | H30: =IF($G30=0,0,VLOOKUP(F30,'Cover Sheet'!$D$10:$F$36,3,0)) -> 0 | J30: =IF(I30=0,0,VLOOKUP(I30,'Cover Sheet'!$L$10:$M$13,2,0)) -> 0 | K30: 0 | M30: =IF(L30=0,0,VLOOKUP(L30,'Cover Sheet'!$L$14:$M$34,2,0)) -> 0 | N30: 0 | P30: =IF(L30="",0,VLOOKUP(L30,'Cover Sheet'!$L$14:$O$34,4,0)) -> 0 | Q30: - | S30: =IF(R30=0,0,VLOOKUP(R30,'Cover Sheet'!$L$14:$M$34,2,0)) -> 0 | T30: 0 | V30: =IF(R30="",0,VLOOKUP(R30,'Cover Sheet'!$L$14:$O$34,4,0)) -> 0 | W30: - | X30: =IF(C30=0,0,VLOOKUP(C30,'Cover Sheet'!$D$10:$G$22,4,0)) -> 0 | Y30: =IF(F30=0,0,VLOOKUP(F30,'Cover Sheet'!$D$10:$G$36,4,0)) -> 0 | AB30: 0 | AC30: 7.53 | AD30: - | AE30: =IF(AB30=0,"-",(AC30-0.2*AD30)^2/(AC30+0.8*AD30)) -> - | AF30: - | AI30: 0 | AJ30: - | AK30: 0 | AL30: 0 | AN30: 0 | AO30: 7.53 | AP30: - | AQ30: =IF(AN30=0,"-",(AO30-0.2*AP30)^2/(AO30+0.8*AP30)) -> - | AR30: - | AU30: 0 | AV30: - | AW30: 0 | AX30: 0
A31: 13 | E31: =IF($G31=0,0,VLOOKUP(C31,'Cover Sheet'!$D$10:$F$22,3,0)) -> 0 | G31: 0 | H31: =IF($G31=0,0,VLOOKUP(F31,'Cover Sheet'!$D$10:$F$36,3,0)) -> 0 | J31: =IF(I31=0,0,VLOOKUP(I31,'Cover Sheet'!$L$10:$M$13,2,0)) -> 0 | K31: 0 | M31: =IF(L31=0,0,VLOOKUP(L31,'Cover Sheet'!$L$14:$M$34,2,0)) -> 0 | N31: 0 | P31: =IF(L31="",0,VLOOKUP(L31,'Cover Sheet'!$L$14:$O$34,4,0)) -> 0 | Q31: - | S31: =IF(R31=0,0,VLOOKUP(R31,'Cover Sheet'!$L$14:$M$34,2,0)) -> 0 | T31: 0 | V31: =IF(R31="",0,VLOOKUP(R31,'Cover Sheet'!$L$14:$O$34,4,0)) -> 0 | W31: - | X31: =IF(C31=0,0,VLOOKUP(C31,'Cover Sheet'!$D$10:$G$22,4,0)) -> 0 | Y31: =IF(F31=0,0,VLOOKUP(F31,'Cover Sheet'!$D$10:$G$36,4,0)) -> 0 | AB31: 0 | AC31: 7.53 | AD31: - | AE31: - | AF31: - | AI31: 0 | AJ31: - | AK31: 0 | AL31: 0 | AN31: 0 | AO31: 7.53 | AP31: - | AQ31: =IF(AN31=0,"-",(AO31-0.2*AP31)^2/(AO31+0.8*AP31)) -> - | AR31: - | AU31: 0 | AV31: - | AW31: 0 | AX31: 0
A32: 14 | E32: =IF($G32=0,0,VLOOKUP(C32,'Cover Sheet'!$D$10:$F$22,3,0)) -> 0 | G32: 0 | H32: =IF($G32=0,0,VLOOKUP(F32,'Cover Sheet'!$D$10:$F$36,3,0)) -> 0 | J32: =IF(I32=0,0,VLOOKUP(I32,'Cover Sheet'!$L$10:$M$13,2,0)) -> 0 | K32: 0 | M32: =IF(L32=0,0,VLOOKUP(L32,'Cover Sheet'!$L$14:$M$34,2,0)) -> 0 | N32: 0 | P32: =IF(L32="",0,VLOOKUP(L32,'Cover Sheet'!$L$14:$O$34,4,0)) -> 0 | Q32: - | S32: =IF(R32=0,0,VLOOKUP(R32,'Cover Sheet'!$L$14:$M$34,2,0)) -> 0 | T32: 0 | V32: =IF(R32="",0,VLOOKUP(R32,'Cover Sheet'!$L$14:$O$34,4,0)) -> 0 | W32: - | X32: =IF(C32=0,0,VLOOKUP(C32,'Cover Sheet'!$D$10:$G$22,4,0)) -> 0 | Y32: =IF(F32=0,0,VLOOKUP(F32,'Cover Sheet'!$D$10:$G$36,4,0)) -> 0 | AB32: 0 | AC32: 7.53 | AD32: - | AE32: - | AF32: - | AI32: 0 | AJ32: - | AK32: 0 | AL32: 0 | AN32: 0 | AO32: 7.53 | AP32: - | AQ32: - | AR32: - | AU32: 0 | AV32: - | AW32: 0 | AX32: 0
A33: 15 | E33: =IF($G33=0,0,VLOOKUP(C33,'Cover Sheet'!$D$10:$F$22,3,0)) -> 0 | G33: 0 | H33: =IF($G33=0,0,VLOOKUP(F33,'Cover Sheet'!$D$10:$F$36,3,0)) -> 0 | J33: =IF(I33=0,0,VLOOKUP(I33,'Cover Sheet'!$L$10:$M$13,2,0)) -> 0 | K33: 0 | M33: =IF(L33=0,0,VLOOKUP(L33,'Cover Sheet'!$L$14:$M$34,2,0)) -> 0 | N33: 0 | P33: =IF(L33="",0,VLOOKUP(L33,'Cover Sheet'!$L$14:$O$34,4,0)) -> 0 | Q33: - | S33: =IF(R33=0,0,VLOOKUP(R33,'Cover Sheet'!$L$14:$M$34,2,0)) -> 0 | T33: 0 | V33: =IF(R33="",0,VLOOKUP(R33,'Cover Sheet'!$L$14:$O$34,4,0)) -> 0 | W33: - | X33: =IF(C33=0,0,VLOOKUP(C33,'Cover Sheet'!$D$10:$G$22,4,0)) -> 0 | Y33: =IF(F33=0,0,VLOOKUP(F33,'Cover Sheet'!$D$10:$G$36,4,0)) -> 0 | AB33: 0 | AC33: 7.53 | AD33: - | AE33: - | AF33: - | AI33: 0 | AJ33: - | AK33: 0 | AL33: 0 | AN33: 0 | AO33: 7.53 | AP33: - | AQ33: - | AR33: - | AU33: 0 | AV33: - | AW33: 0 | AX33: 0
A34: 16 | E34: =IF($G34=0,0,VLOOKUP(C34,'Cover Sheet'!$D$10:$F$22,3,0)) -> 0 | G34: 0 | H34: =IF($G34=0,0,VLOOKUP(F34,'Cover Sheet'!$D$10:$F$36,3,0)) -> 0 | J34: =IF(I34=0,0,VLOOKUP(I34,'Cover Sheet'!$L$10:$M$13,2,0)) -> 0 | K34: 0 | M34: =IF(L34=0,0,VLOOKUP(L34,'Cover Sheet'!$L$14:$M$34,2,0)) -> 0 | N34: 0 | P34: =IF(L34="",0,VLOOKUP(L34,'Cover Sheet'!$L$14:$O$34,4,0)) -> 0 | Q34: - | S34: =IF(R34=0,0,VLOOKUP(R34,'Cover Sheet'!$L$14:$M$34,2,0)) -> 0 | T34: 0 | V34: =IF(R34="",0,VLOOKUP(R34,'Cover Sheet'!$L$14:$O$34,4,0)) -> 0 | W34: - | X34: =IF(C34=0,0,VLOOKUP(C34,'Cover Sheet'!$D$10:$G$22,4,0)) -> 0 | Y34: =IF(F34=0,0,VLOOKUP(F34,'Cover Sheet'!$D$10:$G$36,4,0)) -> 0 | AB34: 0 | AC34: 7.53 | AD34: - | AE34: - | AF34: - | AI34: 0 | AJ34: - | AK34: 0 | AL34: 0 | AN34: 0 | AO34: 7.53 | AP34: - | AQ34: - | AR34: - | AU34: 0 | AV34: - | AW34: 0 | AX34: 0
A35: 17 | E35: =IF($G35=0,0,VLOOKUP(C35,'Cover Sheet'!$D$10:$F$22,3,0)) -> 0 | G35: 0 | H35: =IF($G35=0,0,VLOOKUP(F35,'Cover Sheet'!$D$10:$F$36,3,0)) -> 0 | J35: =IF(I35=0,0,VLOOKUP(I35,'Cover Sheet'!$L$10:$M$13,2,0)) -> 0 | K35: 0 | M35: =IF(L35=0,0,VLOOKUP(L35,'Cover Sheet'!$L$14:$M$34,2,0)) -> 0 | N35: 0 | P35: =IF(L35="",0,VLOOKUP(L35,'Cover Sheet'!$L$14:$O$34,4,0)) -> 0 | Q35: - | S35: =IF(R35=0,0,VLOOKUP(R35,'Cover Sheet'!$L$14:$M$34,2,0)) -> 0 | T35: 0 | V35: =IF(R35="",0,VLOOKUP(R35,'Cover Sheet'!$L$14:$O$34,4,0)) -> 0 | W35: - | X35: =IF(C35=0,0,VLOOKUP(C35,'Cover Sheet'!$D$10:$G$22,4,0)) -> 0 | Y35: =IF(F35=0,0,VLOOKUP(F35,'Cover Sheet'!$D$10:$G$36,4,0)) -> 0 | AB35: 0 | AC35: 7.53 | AD35: - | AE35: - | AF35: - | AI35: 0 | AJ35: - | AK35: 0 | AL35: 0 | AN35: 0 | AO35: 7.53 | AP35: - | AQ35: - | AR35: - | AU35: 0 | AV35: - | AW35: 0 | AX35: 0
A36: 18 | E36: =IF($G36=0,0,VLOOKUP(C36,'Cover Sheet'!$D$10:$F$22,3,0)) -> 0 | G36: 0 | H36: =IF($G36=0,0,VLOOKUP(F36,'Cover Sheet'!$D$10:$F$36,3,0)) -> 0 | J36: =IF(I36=0,0,VLOOKUP(I36,'Cover Sheet'!$L$10:$M$13,2,0)) -> 0 | K36: 0 | M36: =IF(L36=0,0,VLOOKUP(L36,'Cover Sheet'!$L$14:$M$34,2,0)) -> 0 | N36: 0 | P36: =IF(L36="",0,VLOOKUP(L36,'Cover Sheet'!$L$14:$O$34,4,0)) -> 0 | Q36: - | S36: =IF(R36=0,0,VLOOKUP(R36,'Cover Sheet'!$L$14:$M$34,2,0)) -> 0 | T36: 0 | V36: =IF(R36="",0,VLOOKUP(R36,'Cover Sheet'!$L$14:$O$34,4,0)) -> 0 | W36: - | X36: =IF(C36=0,0,VLOOKUP(C36,'Cover Sheet'!$D$10:$G$22,4,0)) -> 0 | Y36: =IF(F36=0,0,VLOOKUP(F36,'Cover Sheet'!$D$10:$G$36,4,0)) -> 0 | AB36: 0 | AC36: 7.53 | AD36: - | AE36: - | AF36: - | AI36: 0 | AJ36: - | AK36: 0 | AL36: 0 | AN36: 0 | AO36: 7.53 | AP36: - | AQ36: - | AR36: - | AU36: 0 | AV36: - | AW36: 0 | AX36: 0
A37: 19 | E37: =IF($G37=0,0,VLOOKUP(C37,'Cover Sheet'!$D$10:$F$22,3,0)) -> 0 | G37: 0 | H37: =IF($G37=0,0,VLOOKUP(F37,'Cover Sheet'!$D$10:$F$36,3,0)) -> 0 | J37: =IF(I37=0,0,VLOOKUP(I37,'Cover Sheet'!$L$10:$M$13,2,0)) -> 0 | K37: 0 | M37: =IF(L37=0,0,VLOOKUP(L37,'Cover Sheet'!$L$14:$M$34,2,0)) -> 0 | N37: 0 | P37: =IF(L37="",0,VLOOKUP(L37,'Cover Sheet'!$L$14:$O$34,4,0)) -> 0 | Q37: - | S37: =IF(R37=0,0,VLOOKUP(R37,'Cover Sheet'!$L$14:$M$34,2,0)) -> 0 | T37: 0 | V37: =IF(R37="",0,VLOOKUP(R37,'Cover Sheet'!$L$14:$O$34,4,0)) -> 0 | W37: - | X37: =IF(C37=0,0,VLOOKUP(C37,'Cover Sheet'!$D$10:$G$22,4,0)) -> 0 | Y37: =IF(F37=0,0,VLOOKUP(F37,'Cover Sheet'!$D$10:$G$36,4,0)) -> 0 | AB37: 0 | AC37: 7.53 | AD37: - | AE37: - | AF37: - | AI37: 0 | AJ37: - | AK37: 0 | AL37: 0 | AN37: 0 | AO37: 7.53 | AP37: - | AQ37: - | AR37: - | AU37: 0 | AV37: - | AW37: 0 | AX37: 0
A38: =A37+1 -> 20 | E38: =IF($G38=0,0,VLOOKUP(C38,'Cover Sheet'!$D$10:$F$22,3,0)) -> 0 | G38: =D38 -> 0 | H38: =IF($G38=0,0,VLOOKUP(F38,'Cover Sheet'!$D$10:$F$36,3,0)) -> 0 | J38: =IF(I38=0,0,VLOOKUP(I38,'Cover Sheet'!$L$10:$M$13,2,0)) -> 0 | K38: =IF(J38>0,H38*(1-J38),H38) -> 0 | M38: =IF(L38=0,0,VLOOKUP(L38,'Cover Sheet'!$L$14:$M$34,2,0)) -> 0 | N38: =IF(M38>0,ROUNDUP(K38*(1-M38),2),K38) -> 0 | P38: =IF(L38="",0,VLOOKUP(L38,'Cover Sheet'!$L$14:$O$34,4,0)) -> 0 | Q38: =IF(L38="","-",IF(OR(L38="PP1",L38="P2"),P38*$D$10*E38*G38/12*43560,P38*$D$10*K38*G38/12*43560)) -> - | S38: =IF(R38=0,0,VLOOKUP(R38,'Cover Sheet'!$L$14:$M$34,2,0)) -> 0 | T38: =IF(S38>0,N38*(1-S38),N38) -> 0 | V38: =IF(R38="",0,VLOOKUP(R38,'Cover Sheet'!$L$14:$O$34,4,0)) -> 0 | W38: =IF(R38="","-",V38*$D$10*N38*G38/12*43560) -> - | X38: =IF(C38=0,0,VLOOKUP(C38,'Cover Sheet'!$D$10:$G$22,4,0)) -> 0 | Y38: =IF(F38=0,0,VLOOKUP(F38,'Cover Sheet'!$D$10:$G$36,4,0)) -> 0 | AB38: =Y38 -> 0 | AC38: 7.53 | AD38: =IF(AB38=0,"-",1000/AB38-10) -> - | AE38: =IF(AB38=0,"-",(AC38-0.2*AD38)^2/(AC38+0.8*AD38)) -> - | AF38: =Q38 -> - | AH38: =IF(AG38="","",AF38*AG38) ->  | AI38: =IF(OR(AB38=0,L38=""),0,12*AH38/43560/D38) -> 0 | AJ38: - | AK38: =IF(AB38=0,0,1000/(10+5*AC38+10*AJ38-10*(AJ38^2+1.25*AJ38*AC38)^(1/2))) -> 0 | AL38: =AK38-AB38 -> 0 | AN38: =AK38 -> 0 | AO38: 7.53 | AP38: =IF(AN38=0,"-",1000/AN38-10) -> - | AQ38: - | AR38: =W38 -> - | AT38: =IF(AS38="","",AR38*AS38) ->  | AU38: =IF(OR(AN38=0,R38=""),0,12*AT38/43560/D38) -> 0 | AV38: - | AW38: =IF(AN38=0,0,1000/(10+5*AO38+10*AV38-10*(AV38^2+1.25*AV38*AO38)^(1/2))) -> 0 | AX38: =AW38-AN38 -> 0
A39: 21 | E39: =IF($G39=0,0,VLOOKUP(C39,'Cover Sheet'!$D$10:$F$22,3,0)) -> 0 | G39: 0 | H39: =IF($G39=0,0,VLOOKUP(F39,'Cover Sheet'!$D$10:$F$36,3,0)) -> 0 | J39: =IF(I39=0,0,VLOOKUP(I39,'Cover Sheet'!$L$10:$M$13,2,0)) -> 0 | K39: 0 | M39: =IF(L39=0,0,VLOOKUP(L39,'Cover Sheet'!$L$14:$M$34,2,0)) -> 0 | N39: 0 | P39: =IF(L39="",0,VLOOKUP(L39,'Cover Sheet'!$L$14:$O$34,4,0)) -> 0 | Q39: - | S39: =IF(R39=0,0,VLOOKUP(R39,'Cover Sheet'!$L$14:$M$34,2,0)) -> 0 | T39: 0 | V39: =IF(R39="",0,VLOOKUP(R39,'Cover Sheet'!$L$14:$O$34,4,0)) -> 0 | W39: - | X39: =IF(C39=0,0,VLOOKUP(C39,'Cover Sheet'!$D$10:$G$22,4,0)) -> 0 | Y39: =IF(F39=0,0,VLOOKUP(F39,'Cover Sheet'!$D$10:$G$36,4,0)) -> 0 | AB39: 0 | AC39: 7.53 | AD39: - | AE39: - | AF39: - | AI39: 0 | AJ39: - | AK39: 0 | AL39: 0 | AN39: 0 | AO39: 7.53 | AP39: - | AQ39: - | AR39: - | AU39: 0 | AV39: - | AW39: 0 | AX39: 0
A40: 22 | E40: =IF($G40=0,0,VLOOKUP(C40,'Cover Sheet'!$D$10:$F$22,3,0)) -> 0 | G40: 0 | H40: =IF($G40=0,0,VLOOKUP(F40,'Cover Sheet'!$D$10:$F$36,3,0)) -> 0 | J40: =IF(I40=0,0,VLOOKUP(I40,'Cover Sheet'!$L$10:$M$13,2,0)) -> 0 | K40: 0 | M40: =IF(L40=0,0,VLOOKUP(L40,'Cover Sheet'!$L$14:$M$34,2,0)) -> 0 | N40: 0 | P40: =IF(L40="",0,VLOOKUP(L40,'Cover Sheet'!$L$14:$O$34,4,0)) -> 0 | Q40: - | S40: =IF(R40=0,0,VLOOKUP(R40,'Cover Sheet'!$L$14:$M$34,2,0)) -> 0 | T40: 0 | V40: =IF(R40="",0,VLOOKUP(R40,'Cover Sheet'!$L$14:$O$34,4,0)) -> 0 | W40: - | X40: =IF(C40=0,0,VLOOKUP(C40,'Cover Sheet'!$D$10:$G$22,4,0)) -> 0 | Y40: =IF(F40=0,0,VLOOKUP(F40,'Cover Sheet'!$D$10:$G$36,4,0)) -> 0 | AB40: 0 | AC40: 7.53 | AD40: - | AE40: =IF(AB40=0,"-",(AC40-0.2*AD40)^2/(AC40+0.8*AD40)) -> - | AF40: - | AI40: 0 | AJ40: - | AK40: 0 | AL40: 0 | AN40: 0 | AO40: 7.53 | AP40: - | AQ40: =IF(AN40=0,"-",(AO40-0.2*AP40)^2/(AO40+0.8*AP40)) -> - | AR40: - | AU40: 0 | AV40: - | AW40: 0 | AX40: 0
A41: 23 | E41: =IF($G41=0,0,VLOOKUP(C41,'Cover Sheet'!$D$10:$F$22,3,0)) -> 0 | G41: 0 | H41: =IF($G41=0,0,VLOOKUP(F41,'Cover Sheet'!$D$10:$F$36,3,0)) -> 0 | J41: =IF(I41=0,0,VLOOKUP(I41,'Cover Sheet'!$L$10:$M$13,2,0)) -> 0 | K41: 0 | M41: =IF(L41=0,0,VLOOKUP(L41,'Cover Sheet'!$L$14:$M$34,2,0)) -> 0 | N41: 0 | P41: =IF(L41="",0,VLOOKUP(L41,'Cover Sheet'!$L$14:$O$34,4,0)) -> 0 | Q41: - | S41: =IF(R41=0,0,VLOOKUP(R41,'Cover Sheet'!$L$14:$M$34,2,0)) -> 0 | T41: 0 | V41: =IF(R41="",0,VLOOKUP(R41,'Cover Sheet'!$L$14:$O$34,4,0)) -> 0 | W41: - | X41: =IF(C41=0,0,VLOOKUP(C41,'Cover Sheet'!$D$10:$G$22,4,0)) -> 0 | Y41: =IF(F41=0,0,VLOOKUP(F41,'Cover Sheet'!$D$10:$G$36,4,0)) -> 0 | AB41: 0 | AC41: 7.53 | AD41: - | AE41: =IF(AB41=0,"-",(AC41-0.2*AD41)^2/(AC41+0.8*AD41)) -> - | AF41: - | AI41: 0 | AJ41: - | AK41: 0 | AL41: 0 | AN41: 0 | AO41: 7.53 | AP41: - | AQ41: =IF(AN41=0,"-",(AO41-0.2*AP41)^2/(AO41+0.8*AP41)) -> - | AR41: - | AU41: 0 | AV41: - | AW41: 0 | AX41: 0
A42: 24 | E42: =IF($G42=0,0,VLOOKUP(C42,'Cover Sheet'!$D$10:$F$22,3,0)) -> 0 | G42: 0 | H42: =IF($G42=0,0,VLOOKUP(F42,'Cover Sheet'!$D$10:$F$36,3,0)) -> 0 | J42: =IF(I42=0,0,VLOOKUP(I42,'Cover Sheet'!$L$10:$M$13,2,0)) -> 0 | K42: 0 | M42: =IF(L42=0,0,VLOOKUP(L42,'Cover Sheet'!$L$14:$M$34,2,0)) -> 0 | N42: 0 | P42: =IF(L42="",0,VLOOKUP(L42,'Cover Sheet'!$L$14:$O$34,4,0)) -> 0 | Q42: - | S42: =IF(R42=0,0,VLOOKUP(R42,'Cover Sheet'!$L$14:$M$34,2,0)) -> 0 | T42: 0 | V42: =IF(R42="",0,VLOOKUP(R42,'Cover Sheet'!$L$14:$O$34,4,0)) -> 0 | W42: - | X42: =IF(C42=0,0,VLOOKUP(C42,'Cover Sheet'!$D$10:$G$22,4,0)) -> 0 | Y42: =IF(F42=0,0,VLOOKUP(F42,'Cover Sheet'!$D$10:$G$36,4,0)) -> 0 | AB42: 0 | AC42: 7.53 | AD42: - | AE42: - | AF42: - | AI42: 0 | AJ42: - | AK42: 0 | AL42: 0 | AN42: 0 | AO42: 7.53 | AP42: - | AQ42: - | AR42: - | AU42: 0 | AV42: - | AW42: 0 | AX42: 0
A43: =A42+1 -> 25 | E43: =IF($G43=0,0,VLOOKUP(C43,'Cover Sheet'!$D$10:$F$22,3,0)) -> 0 | G43: 0 | H43: =IF($G43=0,0,VLOOKUP(F43,'Cover Sheet'!$D$10:$F$36,3,0)) -> 0 | J43: =IF(I43=0,0,VLOOKUP(I43,'Cover Sheet'!$L$10:$M$13,2,0)) -> 0 | K43: 0 | M43: =IF(L43=0,0,VLOOKUP(L43,'Cover Sheet'!$L$14:$M$34,2,0)) -> 0 | N43: 0 | P43: =IF(L43="",0,VLOOKUP(L43,'Cover Sheet'!$L$14:$O$34,4,0)) -> 0 | Q43: - | S43: =IF(R43=0,0,VLOOKUP(R43,'Cover Sheet'!$L$14:$M$34,2,0)) -> 0 | T43: 0 | V43: =IF(R43="",0,VLOOKUP(R43,'Cover Sheet'!$L$14:$O$34,4,0)) -> 0 | W43: - | X43: =IF(C43=0,0,VLOOKUP(C43,'Cover Sheet'!$D$10:$G$22,4,0)) -> 0 | Y43: =IF(F43=0,0,VLOOKUP(F43,'Cover Sheet'!$D$10:$G$36,4,0)) -> 0 | AB43: 0 | AC43: 7.53 | AD43: - | AE43: - | AF43: - | AI43: 0 | AJ43: - | AK43: 0 | AL43: 0 | AN43: 0 | AO43: 7.53 | AP43: - | AQ43: - | AR43: - | AU43: 0 | AV43: - | AW43: 0 | AX43: 0
A44: 26 | E44: =IF($G44=0,0,VLOOKUP(C44,'Cover Sheet'!$D$10:$F$22,3,0)) -> 0 | G44: 0 | H44: =IF($G44=0,0,VLOOKUP(F44,'Cover Sheet'!$D$10:$F$36,3,0)) -> 0 | J44: =IF(I44=0,0,VLOOKUP(I44,'Cover Sheet'!$L$10:$M$13,2,0)) -> 0 | K44: 0 | M44: =IF(L44=0,0,VLOOKUP(L44,'Cover Sheet'!$L$14:$M$34,2,0)) -> 0 | N44: 0 | P44: =IF(L44="",0,VLOOKUP(L44,'Cover Sheet'!$L$14:$O$34,4,0)) -> 0 | Q44: - | S44: =IF(R44=0,0,VLOOKUP(R44,'Cover Sheet'!$L$14:$M$34,2,0)) -> 0 | T44: 0 | V44: =IF(R44="",0,VLOOKUP(R44,'Cover Sheet'!$L$14:$O$34,4,0)) -> 0 | W44: - | X44: =IF(C44=0,0,VLOOKUP(C44,'Cover Sheet'!$D$10:$G$22,4,0)) -> 0 | Y44: =IF(F44=0,0,VLOOKUP(F44,'Cover Sheet'!$D$10:$G$36,4,0)) -> 0 | AB44: 0 | AC44: 7.53 | AD44: - | AE44: - | AF44: - | AI44: 0 | AJ44: - | AK44: 0 | AL44: 0 | AN44: 0 | AO44: 7.53 | AP44: - | AQ44: - | AR44: - | AU44: 0 | AV44: - | AW44: 0 | AX44: 0
A45: 27 | E45: =IF($G45=0,0,VLOOKUP(C45,'Cover Sheet'!$D$10:$F$22,3,0)) -> 0 | G45: 0 | H45: =IF($G45=0,0,VLOOKUP(F45,'Cover Sheet'!$D$10:$F$36,3,0)) -> 0 | J45: =IF(I45=0,0,VLOOKUP(I45,'Cover Sheet'!$L$10:$M$13,2,0)) -> 0 | K45: 0 | M45: =IF(L45=0,0,VLOOKUP(L45,'Cover Sheet'!$L$14:$M$34,2,0)) -> 0 | N45: 0 | P45: =IF(L45="",0,VLOOKUP(L45,'Cover Sheet'!$L$14:$O$34,4,0)) -> 0 | Q45: - | S45: =IF(R45=0,0,VLOOKUP(R45,'Cover Sheet'!$L$14:$M$34,2,0)) -> 0 | T45: 0 | V45: =IF(R45="",0,VLOOKUP(R45,'Cover Sheet'!$L$14:$O$34,4,0)) -> 0 | W45: - | X45: =IF(C45=0,0,VLOOKUP(C45,'Cover Sheet'!$D$10:$G$22,4,0)) -> 0 | Y45: =IF(F45=0,0,VLOOKUP(F45,'Cover Sheet'!$D$10:$G$36,4,0)) -> 0 | AB45: 0 | AC45: 7.53 | AD45: - | AE45: - | AF45: - | AI45: 0 | AJ45: - | AK45: 0 | AL45: 0 | AN45: 0 | AO45: 7.53 | AP45: - | AQ45: - | AR45: - | AU45: 0 | AV45: - | AW45: 0 | AX45: 0
A46: 28 | E46: =IF($G46=0,0,VLOOKUP(C46,'Cover Sheet'!$D$10:$F$22,3,0)) -> 0 | G46: 0 | H46: =IF($G46=0,0,VLOOKUP(F46,'Cover Sheet'!$D$10:$F$36,3,0)) -> 0 | J46: =IF(I46=0,0,VLOOKUP(I46,'Cover Sheet'!$L$10:$M$13,2,0)) -> 0 | K46: 0 | M46: =IF(L46=0,0,VLOOKUP(L46,'Cover Sheet'!$L$14:$M$34,2,0)) -> 0 | N46: 0 | P46: =IF(L46="",0,VLOOKUP(L46,'Cover Sheet'!$L$14:$O$34,4,0)) -> 0 | Q46: - | S46: =IF(R46=0,0,VLOOKUP(R46,'Cover Sheet'!$L$14:$M$34,2,0)) -> 0 | T46: 0 | V46: =IF(R46="",0,VLOOKUP(R46,'Cover Sheet'!$L$14:$O$34,4,0)) -> 0 | W46: - | X46: =IF(C46=0,0,VLOOKUP(C46,'Cover Sheet'!$D$10:$G$22,4,0)) -> 0 | Y46: =IF(F46=0,0,VLOOKUP(F46,'Cover Sheet'!$D$10:$G$36,4,0)) -> 0 | AB46: 0 | AC46: 7.53 | AD46: - | AE46: - | AF46: - | AI46: 0 | AJ46: - | AK46: 0 | AL46: 0 | AN46: 0 | AO46: 7.53 | AP46: - | AQ46: - | AR46: - | AU46: 0 | AV46: - | AW46: 0 | AX46: 0
A47: 29 | E47: =IF($G47=0,0,VLOOKUP(C47,'Cover Sheet'!$D$10:$F$22,3,0)) -> 0 | G47: 0 | H47: =IF($G47=0,0,VLOOKUP(F47,'Cover Sheet'!$D$10:$F$36,3,0)) -> 0 | J47: =IF(I47=0,0,VLOOKUP(I47,'Cover Sheet'!$L$10:$M$13,2,0)) -> 0 | K47: 0 | M47: =IF(L47=0,0,VLOOKUP(L47,'Cover Sheet'!$L$14:$M$34,2,0)) -> 0 | N47: 0 | P47: =IF(L47="",0,VLOOKUP(L47,'Cover Sheet'!$L$14:$O$34,4,0)) -> 0 | Q47: - | S47: =IF(R47=0,0,VLOOKUP(R47,'Cover Sheet'!$L$14:$M$34,2,0)) -> 0 | T47: 0 | V47: =IF(R47="",0,VLOOKUP(R47,'Cover Sheet'!$L$14:$O$34,4,0)) -> 0 | W47: - | X47: =IF(C47=0,0,VLOOKUP(C47,'Cover Sheet'!$D$10:$G$22,4,0)) -> 0 | Y47: =IF(F47=0,0,VLOOKUP(F47,'Cover Sheet'!$D$10:$G$36,4,0)) -> 0 | AB47: 0 | AC47: 7.53 | AD47: - | AE47: - | AF47: - | AI47: 0 | AJ47: - | AK47: 0 | AL47: 0 | AN47: 0 | AO47: 7.53 | AP47: - | AQ47: - | AR47: - | AU47: 0 | AV47: - | AW47: 0 | AX47: 0
A48: 30 | E48: =IF($G48=0,0,VLOOKUP(C48,'Cover Sheet'!$D$10:$F$22,3,0)) -> 0 | G48: 0 | H48: =IF($G48=0,0,VLOOKUP(F48,'Cover Sheet'!$D$10:$F$36,3,0)) -> 0 | J48: =IF(I48=0,0,VLOOKUP(I48,'Cover Sheet'!$L$10:$M$13,2,0)) -> 0 | K48: 0 | M48: =IF(L48=0,0,VLOOKUP(L48,'Cover Sheet'!$L$14:$M$34,2,0)) -> 0 | N48: 0 | P48: =IF(L48="",0,VLOOKUP(L48,'Cover Sheet'!$L$14:$O$34,4,0)) -> 0 | Q48: - | S48: =IF(R48=0,0,VLOOKUP(R48,'Cover Sheet'!$L$14:$M$34,2,0)) -> 0 | T48: 0 | V48: =IF(R48="",0,VLOOKUP(R48,'Cover Sheet'!$L$14:$O$34,4,0)) -> 0 | W48: - | X48: =IF(C48=0,0,VLOOKUP(C48,'Cover Sheet'!$D$10:$G$22,4,0)) -> 0 | Y48: =IF(F48=0,0,VLOOKUP(F48,'Cover Sheet'!$D$10:$G$36,4,0)) -> 0 | AB48: 0 | AC48: 7.53 | AD48: - | AE48: =IF(AB48=0,"-",(AC48-0.2*AD48)^2/(AC48+0.8*AD48)) -> - | AF48: - | AI48: 0 | AJ48: - | AK48: 0 | AL48: 0 | AN48: 0 | AO48: 7.53 | AP48: - | AQ48: =IF(AN48=0,"-",(AO48-0.2*AP48)^2/(AO48+0.8*AP48)) -> - | AR48: - | AU48: 0 | AV48: - | AW48: 0 | AX48: 0
A49: 31 | E49: =IF($G49=0,0,VLOOKUP(C49,'Cover Sheet'!$D$10:$F$22,3,0)) -> 0 | G49: 0 | H49: =IF($G49=0,0,VLOOKUP(F49,'Cover Sheet'!$D$10:$F$36,3,0)) -> 0 | J49: =IF(I49=0,0,VLOOKUP(I49,'Cover Sheet'!$L$10:$M$13,2,0)) -> 0 | K49: 0 | M49: =IF(L49=0,0,VLOOKUP(L49,'Cover Sheet'!$L$14:$M$34,2,0)) -> 0 | N49: 0 | P49: =IF(L49="",0,VLOOKUP(L49,'Cover Sheet'!$L$14:$O$34,4,0)) -> 0 | Q49: - | S49: =IF(R49=0,0,VLOOKUP(R49,'Cover Sheet'!$L$14:$M$34,2,0)) -> 0 | T49: 0 | V49: =IF(R49="",0,VLOOKUP(R49,'Cover Sheet'!$L$14:$O$34,4,0)) -> 0 | W49: - | X49: =IF(C49=0,0,VLOOKUP(C49,'Cover Sheet'!$D$10:$G$22,4,0)) -> 0 | Y49: =IF(F49=0,0,VLOOKUP(F49,'Cover Sheet'!$D$10:$G$36,4,0)) -> 0 | AB49: 0 | AC49: 7.53 | AD49: - | AE49: - | AF49: - | AI49: 0 | AJ49: - | AK49: 0 | AL49: 0 | AN49: 0 | AO49: 7.53 | AP49: - | AQ49: - | AR49: - | AU49: 0 | AV49: - | AW49: 0 | AX49: 0
A50: 32 | E50: =IF($G50=0,0,VLOOKUP(C50,'Cover Sheet'!$D$10:$F$22,3,0)) -> 0 | G50: 0 | H50: =IF($G50=0,0,VLOOKUP(F50,'Cover Sheet'!$D$10:$F$36,3,0)) -> 0 | J50: =IF(I50=0,0,VLOOKUP(I50,'Cover Sheet'!$L$10:$M$13,2,0)) -> 0 | K50: 0 | M50: =IF(L50=0,0,VLOOKUP(L50,'Cover Sheet'!$L$14:$M$34,2,0)) -> 0 | N50: 0 | P50: =IF(L50="",0,VLOOKUP(L50,'Cover Sheet'!$L$14:$O$34,4,0)) -> 0 | Q50: - | S50: =IF(R50=0,0,VLOOKUP(R50,'Cover Sheet'!$L$14:$M$34,2,0)) -> 0 | T50: 0 | V50: =IF(R50="",0,VLOOKUP(R50,'Cover Sheet'!$L$14:$O$34,4,0)) -> 0 | W50: - | X50: =IF(C50=0,0,VLOOKUP(C50,'Cover Sheet'!$D$10:$G$22,4,0)) -> 0 | Y50: =IF(F50=0,0,VLOOKUP(F50,'Cover Sheet'!$D$10:$G$36,4,0)) -> 0 | AB50: 0 | AC50: 7.53 | AD50: - | AE50: =IF(AB50=0,"-",(AC50-0.2*AD50)^2/(AC50+0.8*AD50)) -> - | AF50: - | AI50: 0 | AJ50: - | AK50: 0 | AL50: 0 | AN50: 0 | AO50: 7.53 | AP50: - | AQ50: =IF(AN50=0,"-",(AO50-0.2*AP50)^2/(AO50+0.8*AP50)) -> - | AR50: - | AU50: 0 | AV50: - | AW50: 0 | AX50: 0
A51: 33 | E51: =IF($G51=0,0,VLOOKUP(C51,'Cover Sheet'!$D$10:$F$22,3,0)) -> 0 | G51: 0 | H51: =IF($G51=0,0,VLOOKUP(F51,'Cover Sheet'!$D$10:$F$36,3,0)) -> 0 | J51: =IF(I51=0,0,VLOOKUP(I51,'Cover Sheet'!$L$10:$M$13,2,0)) -> 0 | K51: 0 | M51: =IF(L51=0,0,VLOOKUP(L51,'Cover Sheet'!$L$14:$M$34,2,0)) -> 0 | N51: 0 | P51: =IF(L51="",0,VLOOKUP(L51,'Cover Sheet'!$L$14:$O$34,4,0)) -> 0 | Q51: - | S51: =IF(R51=0,0,VLOOKUP(R51,'Cover Sheet'!$L$14:$M$34,2,0)) -> 0 | T51: 0 | V51: =IF(R51="",0,VLOOKUP(R51,'Cover Sheet'!$L$14:$O$34,4,0)) -> 0 | W51: - | X51: =IF(C51=0,0,VLOOKUP(C51,'Cover Sheet'!$D$10:$G$22,4,0)) -> 0 | Y51: =IF(F51=0,0,VLOOKUP(F51,'Cover Sheet'!$D$10:$G$36,4,0)) -> 0 | AB51: 0 | AC51: 7.53 | AD51: - | AE51: =IF(AB51=0,"-",(AC51-0.2*AD51)^2/(AC51+0.8*AD51)) -> - | AF51: - | AI51: 0 | AJ51: - | AK51: 0 | AL51: 0 | AN51: 0 | AO51: 7.53 | AP51: - | AQ51: =IF(AN51=0,"-",(AO51-0.2*AP51)^2/(AO51+0.8*AP51)) -> - | AR51: - | AU51: 0 | AV51: - | AW51: 0 | AX51: 0
A52: 34 | E52: =IF($G52=0,0,VLOOKUP(C52,'Cover Sheet'!$D$10:$F$22,3,0)) -> 0 | G52: 0 | H52: =IF($G52=0,0,VLOOKUP(F52,'Cover Sheet'!$D$10:$F$36,3,0)) -> 0 | J52: =IF(I52=0,0,VLOOKUP(I52,'Cover Sheet'!$L$10:$M$13,2,0)) -> 0 | K52: 0 | M52: =IF(L52=0,0,VLOOKUP(L52,'Cover Sheet'!$L$14:$M$34,2,0)) -> 0 | N52: 0 | P52: =IF(L52="",0,VLOOKUP(L52,'Cover Sheet'!$L$14:$O$34,4,0)) -> 0 | Q52: - | S52: =IF(R52=0,0,VLOOKUP(R52,'Cover Sheet'!$L$14:$M$34,2,0)) -> 0 | T52: 0 | V52: =IF(R52="",0,VLOOKUP(R52,'Cover Sheet'!$L$14:$O$34,4,0)) -> 0 | W52: - | X52: =IF(C52=0,0,VLOOKUP(C52,'Cover Sheet'!$D$10:$G$22,4,0)) -> 0 | Y52: =IF(F52=0,0,VLOOKUP(F52,'Cover Sheet'!$D$10:$G$36,4,0)) -> 0 | AB52: 0 | AC52: 7.53 | AD52: - | AE52: - | AF52: - | AI52: 0 | AJ52: - | AK52: 0 | AL52: 0 | AN52: 0 | AO52: 7.53 | AP52: - | AQ52: - | AR52: - | AU52: 0 | AV52: - | AW52: 0 | AX52: 0
A53: 35 | E53: =IF($G53=0,0,VLOOKUP(C53,'Cover Sheet'!$D$10:$F$22,3,0)) -> 0 | G53: 0 | H53: =IF($G53=0,0,VLOOKUP(F53,'Cover Sheet'!$D$10:$F$36,3,0)) -> 0 | J53: =IF(I53=0,0,VLOOKUP(I53,'Cover Sheet'!$L$10:$M$13,2,0)) -> 0 | K53: 0 | M53: =IF(L53=0,0,VLOOKUP(L53,'Cover Sheet'!$L$14:$M$34,2,0)) -> 0 | N53: 0 | P53: =IF(L53="",0,VLOOKUP(L53,'Cover Sheet'!$L$14:$O$34,4,0)) -> 0 | Q53: - | S53: =IF(R53=0,0,VLOOKUP(R53,'Cover Sheet'!$L$14:$M$34,2,0)) -> 0 | T53: 0 | V53: =IF(R53="",0,VLOOKUP(R53,'Cover Sheet'!$L$14:$O$34,4,0)) -> 0 | W53: - | X53: =IF(C53=0,0,VLOOKUP(C53,'Cover Sheet'!$D$10:$G$22,4,0)) -> 0 | Y53: =IF(F53=0,0,VLOOKUP(F53,'Cover Sheet'!$D$10:$G$36,4,0)) -> 0 | AB53: 0 | AC53: 7.53 | AD53: - | AE53: - | AF53: - | AI53: 0 | AJ53: - | AK53: 0 | AL53: 0 | AN53: 0 | AO53: 7.53 | AP53: - | AQ53: - | AR53: - | AU53: 0 | AV53: - | AW53: 0 | AX53: 0
A54: 36 | E54: =IF($G54=0,0,VLOOKUP(C54,'Cover Sheet'!$D$10:$F$22,3,0)) -> 0 | G54: 0 | H54: =IF($G54=0,0,VLOOKUP(F54,'Cover Sheet'!$D$10:$F$36,3,0)) -> 0 | J54: =IF(I54=0,0,VLOOKUP(I54,'Cover Sheet'!$L$10:$M$13,2,0)) -> 0 | K54: 0 | M54: =IF(L54=0,0,VLOOKUP(L54,'Cover Sheet'!$L$14:$M$34,2,0)) -> 0 | N54: 0 | P54: =IF(L54="",0,VLOOKUP(L54,'Cover Sheet'!$L$14:$O$34,4,0)) -> 0 | Q54: - | S54: =IF(R54=0,0,VLOOKUP(R54,'Cover Sheet'!$L$14:$M$34,2,0)) -> 0 | T54: 0 | V54: =IF(R54="",0,VLOOKUP(R54,'Cover Sheet'!$L$14:$O$34,4,0)) -> 0 | W54: - | X54: =IF(C54=0,0,VLOOKUP(C54,'Cover Sheet'!$D$10:$G$22,4,0)) -> 0 | Y54: =IF(F54=0,0,VLOOKUP(F54,'Cover Sheet'!$D$10:$G$36,4,0)) -> 0 | AB54: 0 | AC54: 7.53 | AD54: - | AE54: - | AF54: - | AI54: 0 | AJ54: - | AK54: 0 | AL54: 0 | AN54: 0 | AO54: 7.53 | AP54: - | AQ54: - | AR54: - | AU54: 0 | AV54: - | AW54: 0 | AX54: 0
A55: 37 | E55: =IF($G55=0,0,VLOOKUP(C55,'Cover Sheet'!$D$10:$F$22,3,0)) -> 0 | G55: 0 | H55: =IF($G55=0,0,VLOOKUP(F55,'Cover Sheet'!$D$10:$F$36,3,0)) -> 0 | J55: =IF(I55=0,0,VLOOKUP(I55,'Cover Sheet'!$L$10:$M$13,2,0)) -> 0 | K55: 0 | M55: =IF(L55=0,0,VLOOKUP(L55,'Cover Sheet'!$L$14:$M$34,2,0)) -> 0 | N55: 0 | P55: =IF(L55="",0,VLOOKUP(L55,'Cover Sheet'!$L$14:$O$34,4,0)) -> 0 | Q55: - | S55: =IF(R55=0,0,VLOOKUP(R55,'Cover Sheet'!$L$14:$M$34,2,0)) -> 0 | T55: 0 | V55: =IF(R55="",0,VLOOKUP(R55,'Cover Sheet'!$L$14:$O$34,4,0)) -> 0 | W55: - | X55: =IF(C55=0,0,VLOOKUP(C55,'Cover Sheet'!$D$10:$G$22,4,0)) -> 0 | Y55: =IF(F55=0,0,VLOOKUP(F55,'Cover Sheet'!$D$10:$G$36,4,0)) -> 0 | AB55: 0 | AC55: 7.53 | AD55: - | AE55: - | AF55: - | AI55: 0 | AJ55: - | AK55: 0 | AL55: 0 | AN55: 0 | AO55: 7.53 | AP55: - | AQ55: - | AR55: - | AU55: 0 | AV55: - | AW55: 0 | AX55: 0
A56: 38 | E56: =IF($G56=0,0,VLOOKUP(C56,'Cover Sheet'!$D$10:$F$22,3,0)) -> 0 | G56: 0 | H56: =IF($G56=0,0,VLOOKUP(F56,'Cover Sheet'!$D$10:$F$36,3,0)) -> 0 | J56: =IF(I56=0,0,VLOOKUP(I56,'Cover Sheet'!$L$10:$M$13,2,0)) -> 0 | K56: 0 | M56: =IF(L56=0,0,VLOOKUP(L56,'Cover Sheet'!$L$14:$M$34,2,0)) -> 0 | N56: 0 | P56: =IF(L56="",0,VLOOKUP(L56,'Cover Sheet'!$L$14:$O$34,4,0)) -> 0 | Q56: - | S56: =IF(R56=0,0,VLOOKUP(R56,'Cover Sheet'!$L$14:$M$34,2,0)) -> 0 | T56: 0 | V56: =IF(R56="",0,VLOOKUP(R56,'Cover Sheet'!$L$14:$O$34,4,0)) -> 0 | W56: - | X56: =IF(C56=0,0,VLOOKUP(C56,'Cover Sheet'!$D$10:$G$22,4,0)) -> 0 | Y56: =IF(F56=0,0,VLOOKUP(F56,'Cover Sheet'!$D$10:$G$36,4,0)) -> 0 | AB56: 0 | AC56: 7.53 | AD56: - | AE56: - | AF56: - | AI56: 0 | AJ56: - | AK56: 0 | AL56: 0 | AN56: 0 | AO56: 7.53 | AP56: - | AQ56: - | AR56: - | AU56: 0 | AV56: - | AW56: 0 | AX56: 0
A57: 39 | E57: =IF($G57=0,0,VLOOKUP(C57,'Cover Sheet'!$D$10:$F$22,3,0)) -> 0 | G57: 0 | H57: =IF($G57=0,0,VLOOKUP(F57,'Cover Sheet'!$D$10:$F$36,3,0)) -> 0 | J57: =IF(I57=0,0,VLOOKUP(I57,'Cover Sheet'!$L$10:$M$13,2,0)) -> 0 | K57: 0 | M57: =IF(L57=0,0,VLOOKUP(L57,'Cover Sheet'!$L$14:$M$34,2,0)) -> 0 | N57: 0 | P57: =IF(L57="",0,VLOOKUP(L57,'Cover Sheet'!$L$14:$O$34,4,0)) -> 0 | Q57: - | S57: =IF(R57=0,0,VLOOKUP(R57,'Cover Sheet'!$L$14:$M$34,2,0)) -> 0 | T57: 0 | V57: =IF(R57="",0,VLOOKUP(R57,'Cover Sheet'!$L$14:$O$34,4,0)) -> 0 | W57: - | X57: =IF(C57=0,0,VLOOKUP(C57,'Cover Sheet'!$D$10:$G$22,4,0)) -> 0 | Y57: =IF(F57=0,0,VLOOKUP(F57,'Cover Sheet'!$D$10:$G$36,4,0)) -> 0 | AB57: 0 | AC57: 7.53 | AD57: - | AE57: - | AF57: - | AI57: 0 | AJ57: - | AK57: 0 | AL57: 0 | AN57: 0 | AO57: 7.53 | AP57: - | AQ57: - | AR57: - | AU57: 0 | AV57: - | AW57: 0 | AX57: 0
A58: 40 | E58: =IF($G58=0,0,VLOOKUP(C58,'Cover Sheet'!$D$10:$F$22,3,0)) -> 0 | G58: 0 | H58: =IF($G58=0,0,VLOOKUP(F58,'Cover Sheet'!$D$10:$F$36,3,0)) -> 0 | J58: =IF(I58=0,0,VLOOKUP(I58,'Cover Sheet'!$L$10:$M$13,2,0)) -> 0 | K58: 0 | M58: =IF(L58=0,0,VLOOKUP(L58,'Cover Sheet'!$L$14:$M$34,2,0)) -> 0 | N58: 0 | P58: =IF(L58="",0,VLOOKUP(L58,'Cover Sheet'!$L$14:$O$34,4,0)) -> 0 | Q58: - | S58: =IF(R58=0,0,VLOOKUP(R58,'Cover Sheet'!$L$14:$M$34,2,0)) -> 0 | T58: 0 | V58: =IF(R58="",0,VLOOKUP(R58,'Cover Sheet'!$L$14:$O$34,4,0)) -> 0 | W58: - | X58: =IF(C58=0,0,VLOOKUP(C58,'Cover Sheet'!$D$10:$G$22,4,0)) -> 0 | Y58: =IF(F58=0,0,VLOOKUP(F58,'Cover Sheet'!$D$10:$G$36,4,0)) -> 0 | AB58: 0 | AC58: 7.53 | AD58: - | AE58: =IF(AB58=0,"-",(AC58-0.2*AD58)^2/(AC58+0.8*AD58)) -> - | AF58: - | AI58: 0 | AJ58: - | AK58: 0 | AL58: 0 | AN58: 0 | AO58: 7.53 | AP58: - | AQ58: =IF(AN58=0,"-",(AO58-0.2*AP58)^2/(AO58+0.8*AP58)) -> - | AR58: - | AU58: 0 | AV58: - | AW58: 0 | AX58: 0
A59: 41 | E59: =IF($G59=0,0,VLOOKUP(C59,'Cover Sheet'!$D$10:$F$22,3,0)) -> 0 | G59: 0 | H59: =IF($G59=0,0,VLOOKUP(F59,'Cover Sheet'!$D$10:$F$36,3,0)) -> 0 | J59: =IF(I59=0,0,VLOOKUP(I59,'Cover Sheet'!$L$10:$M$13,2,0)) -> 0 | K59: 0 | M59: =IF(L59=0,0,VLOOKUP(L59,'Cover Sheet'!$L$14:$M$34,2,0)) -> 0 | N59: 0 | P59: =IF(L59="",0,VLOOKUP(L59,'Cover Sheet'!$L$14:$O$34,4,0)) -> 0 | Q59: - | S59: =IF(R59=0,0,VLOOKUP(R59,'Cover Sheet'!$L$14:$M$34,2,0)) -> 0 | T59: 0 | V59: =IF(R59="",0,VLOOKUP(R59,'Cover Sheet'!$L$14:$O$34,4,0)) -> 0 | W59: - | X59: =IF(C59=0,0,VLOOKUP(C59,'Cover Sheet'!$D$10:$G$22,4,0)) -> 0 | Y59: =IF(F59=0,0,VLOOKUP(F59,'Cover Sheet'!$D$10:$G$36,4,0)) -> 0 | AB59: 0 | AC59: 7.53 | AD59: - | AE59: =IF(AB59=0,"-",(AC59-0.2*AD59)^2/(AC59+0.8*AD59)) -> - | AF59: - | AI59: 0 | AJ59: - | AK59: 0 | AL59: 0 | AN59: 0 | AO59: 7.53 | AP59: - | AQ59: =IF(AN59=0,"-",(AO59-0.2*AP59)^2/(AO59+0.8*AP59)) -> - | AR59: - | AU59: 0 | AV59: - | AW59: 0 | AX59: 0
A60: 42 | E60: =IF($G60=0,0,VLOOKUP(C60,'Cover Sheet'!$D$10:$F$22,3,0)) -> 0 | G60: 0 | H60: =IF($G60=0,0,VLOOKUP(F60,'Cover Sheet'!$D$10:$F$36,3,0)) -> 0 | J60: =IF(I60=0,0,VLOOKUP(I60,'Cover Sheet'!$L$10:$M$13,2,0)) -> 0 | K60: 0 | M60: =IF(L60=0,0,VLOOKUP(L60,'Cover Sheet'!$L$14:$M$34,2,0)) -> 0 | N60: 0 | P60: =IF(L60="",0,VLOOKUP(L60,'Cover Sheet'!$L$14:$O$34,4,0)) -> 0 | Q60: - | S60: =IF(R60=0,0,VLOOKUP(R60,'Cover Sheet'!$L$14:$M$34,2,0)) -> 0 | T60: 0 | V60: =IF(R60="",0,VLOOKUP(R60,'Cover Sheet'!$L$14:$O$34,4,0)) -> 0 | W60: - | X60: =IF(C60=0,0,VLOOKUP(C60,'Cover Sheet'!$D$10:$G$22,4,0)) -> 0 | Y60: =IF(F60=0,0,VLOOKUP(F60,'Cover Sheet'!$D$10:$G$36,4,0)) -> 0 | AB60: 0 | AC60: 7.53 | AD60: - | AE60: - | AF60: - | AI60: 0 | AJ60: - | AK60: 0 | AL60: 0 | AN60: 0 | AO60: 7.53 | AP60: - | AQ60: - | AR60: - | AU60: 0 | AV60: - | AW60: 0 | AX60: 0
A61: 43 | E61: =IF($G61=0,0,VLOOKUP(C61,'Cover Sheet'!$D$10:$F$22,3,0)) -> 0 | G61: 0 | H61: =IF($G61=0,0,VLOOKUP(F61,'Cover Sheet'!$D$10:$F$36,3,0)) -> 0 | J61: =IF(I61=0,0,VLOOKUP(I61,'Cover Sheet'!$L$10:$M$13,2,0)) -> 0 | K61: 0 | M61: =IF(L61=0,0,VLOOKUP(L61,'Cover Sheet'!$L$14:$M$34,2,0)) -> 0 | N61: 0 | P61: =IF(L61="",0,VLOOKUP(L61,'Cover Sheet'!$L$14:$O$34,4,0)) -> 0 | Q61: - | S61: =IF(R61=0,0,VLOOKUP(R61,'Cover Sheet'!$L$14:$M$34,2,0)) -> 0 | T61: 0 | V61: =IF(R61="",0,VLOOKUP(R61,'Cover Sheet'!$L$14:$O$34,4,0)) -> 0 | W61: - | X61: =IF(C61=0,0,VLOOKUP(C61,'Cover Sheet'!$D$10:$G$22,4,0)) -> 0 | Y61: =IF(F61=0,0,VLOOKUP(F61,'Cover Sheet'!$D$10:$G$36,4,0)) -> 0 | AB61: 0 | AC61: 7.53 | AD61: - | AE61: - | AF61: - | AI61: 0 | AJ61: - | AK61: 0 | AL61: 0 | AN61: 0 | AO61: 7.53 | AP61: - | AQ61: - | AR61: - | AU61: 0 | AV61: - | AW61: 0 | AX61: 0
A62: 44 | E62: =IF($G62=0,0,VLOOKUP(C62,'Cover Sheet'!$D$10:$F$22,3,0)) -> 0 | G62: 0 | H62: =IF($G62=0,0,VLOOKUP(F62,'Cover Sheet'!$D$10:$F$36,3,0)) -> 0 | J62: =IF(I62=0,0,VLOOKUP(I62,'Cover Sheet'!$L$10:$M$13,2,0)) -> 0 | K62: 0 | M62: =IF(L62=0,0,VLOOKUP(L62,'Cover Sheet'!$L$14:$M$34,2,0)) -> 0 | N62: 0 | P62: =IF(L62="",0,VLOOKUP(L62,'Cover Sheet'!$L$14:$O$34,4,0)) -> 0 | Q62: - | S62: =IF(R62=0,0,VLOOKUP(R62,'Cover Sheet'!$L$14:$M$34,2,0)) -> 0 | T62: 0 | V62: =IF(R62="",0,VLOOKUP(R62,'Cover Sheet'!$L$14:$O$34,4,0)) -> 0 | W62: - | X62: =IF(C62=0,0,VLOOKUP(C62,'Cover Sheet'!$D$10:$G$22,4,0)) -> 0 | Y62: =IF(F62=0,0,VLOOKUP(F62,'Cover Sheet'!$D$10:$G$36,4,0)) -> 0 | AB62: 0 | AC62: 7.53 | AD62: - | AE62: - | AF62: - | AI62: 0 | AJ62: - | AK62: 0 | AL62: 0 | AN62: 0 | AO62: 7.53 | AP62: - | AQ62: - | AR62: - | AU62: 0 | AV62: - | AW62: 0 | AX62: 0
A63: 45 | E63: =IF($G63=0,0,VLOOKUP(C63,'Cover Sheet'!$D$10:$F$22,3,0)) -> 0 | G63: 0 | H63: =IF($G63=0,0,VLOOKUP(F63,'Cover Sheet'!$D$10:$F$36,3,0)) -> 0 | J63: =IF(I63=0,0,VLOOKUP(I63,'Cover Sheet'!$L$10:$M$13,2,0)) -> 0 | K63: 0 | M63: =IF(L63=0,0,VLOOKUP(L63,'Cover Sheet'!$L$14:$M$34,2,0)) -> 0 | N63: 0 | P63: =IF(L63="",0,VLOOKUP(L63,'Cover Sheet'!$L$14:$O$34,4,0)) -> 0 | Q63: - | S63: =IF(R63=0,0,VLOOKUP(R63,'Cover Sheet'!$L$14:$M$34,2,0)) -> 0 | T63: 0 | V63: =IF(R63="",0,VLOOKUP(R63,'Cover Sheet'!$L$14:$O$34,4,0)) -> 0 | W63: - | X63: =IF(C63=0,0,VLOOKUP(C63,'Cover Sheet'!$D$10:$G$22,4,0)) -> 0 | Y63: =IF(F63=0,0,VLOOKUP(F63,'Cover Sheet'!$D$10:$G$36,4,0)) -> 0 | AB63: 0 | AC63: 7.53 | AD63: - | AE63: - | AF63: - | AI63: 0 | AJ63: - | AK63: 0 | AL63: 0 | AN63: 0 | AO63: 7.53 | AP63: - | AQ63: - | AR63: - | AU63: 0 | AV63: - | AW63: 0 | AX63: 0
A64: 46 | E64: =IF($G64=0,0,VLOOKUP(C64,'Cover Sheet'!$D$10:$F$22,3,0)) -> 0 | G64: 0 | H64: =IF($G64=0,0,VLOOKUP(F64,'Cover Sheet'!$D$10:$F$36,3,0)) -> 0 | J64: =IF(I64=0,0,VLOOKUP(I64,'Cover Sheet'!$L$10:$M$13,2,0)) -> 0 | K64: 0 | M64: =IF(L64=0,0,VLOOKUP(L64,'Cover Sheet'!$L$14:$M$34,2,0)) -> 0 | N64: 0 | P64: =IF(L64="",0,VLOOKUP(L64,'Cover Sheet'!$L$14:$O$34,4,0)) -> 0 | Q64: - | S64: =IF(R64=0,0,VLOOKUP(R64,'Cover Sheet'!$L$14:$M$34,2,0)) -> 0 | T64: 0 | V64: =IF(R64="",0,VLOOKUP(R64,'Cover Sheet'!$L$14:$O$34,4,0)) -> 0 | W64: - | X64: =IF(C64=0,0,VLOOKUP(C64,'Cover Sheet'!$D$10:$G$22,4,0)) -> 0 | Y64: =IF(F64=0,0,VLOOKUP(F64,'Cover Sheet'!$D$10:$G$36,4,0)) -> 0 | AB64: 0 | AC64: 7.53 | AD64: - | AE64: - | AF64: - | AI64: 0 | AJ64: - | AK64: 0 | AL64: 0 | AN64: 0 | AO64: 7.53 | AP64: - | AQ64: - | AR64: - | AU64: 0 | AV64: - | AW64: 0 | AX64: 0
A65: 47 | E65: =IF($G65=0,0,VLOOKUP(C65,'Cover Sheet'!$D$10:$F$22,3,0)) -> 0 | G65: 0 | H65: =IF($G65=0,0,VLOOKUP(F65,'Cover Sheet'!$D$10:$F$36,3,0)) -> 0 | J65: =IF(I65=0,0,VLOOKUP(I65,'Cover Sheet'!$L$10:$M$13,2,0)) -> 0 | K65: 0 | M65: =IF(L65=0,0,VLOOKUP(L65,'Cover Sheet'!$L$14:$M$34,2,0)) -> 0 | N65: 0 | P65: =IF(L65="",0,VLOOKUP(L65,'Cover Sheet'!$L$14:$O$34,4,0)) -> 0 | Q65: - | S65: =IF(R65=0,0,VLOOKUP(R65,'Cover Sheet'!$L$14:$M$34,2,0)) -> 0 | T65: 0 | V65: =IF(R65="",0,VLOOKUP(R65,'Cover Sheet'!$L$14:$O$34,4,0)) -> 0 | W65: - | X65: =IF(C65=0,0,VLOOKUP(C65,'Cover Sheet'!$D$10:$G$22,4,0)) -> 0 | Y65: =IF(F65=0,0,VLOOKUP(F65,'Cover Sheet'!$D$10:$G$36,4,0)) -> 0 | AB65: 0 | AC65: 7.53 | AD65: - | AE65: - | AF65: - | AI65: 0 | AJ65: - | AK65: 0 | AL65: 0 | AN65: 0 | AO65: 7.53 | AP65: - | AQ65: - | AR65: - | AU65: 0 | AV65: - | AW65: 0 | AX65: 0
A66: 48 | E66: =IF($G66=0,0,VLOOKUP(C66,'Cover Sheet'!$D$10:$F$22,3,0)) -> 0 | G66: 0 | H66: =IF($G66=0,0,VLOOKUP(F66,'Cover Sheet'!$D$10:$F$36,3,0)) -> 0 | J66: =IF(I66=0,0,VLOOKUP(I66,'Cover Sheet'!$L$10:$M$13,2,0)) -> 0 | K66: 0 | M66: =IF(L66=0,0,VLOOKUP(L66,'Cover Sheet'!$L$14:$M$34,2,0)) -> 0 | N66: 0 | P66: =IF(L66="",0,VLOOKUP(L66,'Cover Sheet'!$L$14:$O$34,4,0)) -> 0 | Q66: - | S66: =IF(R66=0,0,VLOOKUP(R66,'Cover Sheet'!$L$14:$M$34,2,0)) -> 0 | T66: 0 | V66: =IF(R66="",0,VLOOKUP(R66,'Cover Sheet'!$L$14:$O$34,4,0)) -> 0 | W66: - | X66: =IF(C66=0,0,VLOOKUP(C66,'Cover Sheet'!$D$10:$G$22,4,0)) -> 0 | Y66: =IF(F66=0,0,VLOOKUP(F66,'Cover Sheet'!$D$10:$G$36,4,0)) -> 0 | AB66: 0 | AC66: 7.53 | AD66: - | AE66: - | AF66: - | AI66: 0 | AJ66: - | AK66: 0 | AL66: 0 | AN66: 0 | AO66: 7.53 | AP66: - | AQ66: - | AR66: - | AU66: 0 | AV66: - | AW66: 0 | AX66: 0
A67: 49 | E67: =IF($G67=0,0,VLOOKUP(C67,'Cover Sheet'!$D$10:$F$22,3,0)) -> 0 | G67: 0 | H67: =IF($G67=0,0,VLOOKUP(F67,'Cover Sheet'!$D$10:$F$36,3,0)) -> 0 | J67: =IF(I67=0,0,VLOOKUP(I67,'Cover Sheet'!$L$10:$M$13,2,0)) -> 0 | K67: 0 | M67: =IF(L67=0,0,VLOOKUP(L67,'Cover Sheet'!$L$14:$M$34,2,0)) -> 0 | N67: 0 | P67: =IF(L67="",0,VLOOKUP(L67,'Cover Sheet'!$L$14:$O$34,4,0)) -> 0 | Q67: - | S67: =IF(R67=0,0,VLOOKUP(R67,'Cover Sheet'!$L$14:$M$34,2,0)) -> 0 | T67: 0 | V67: =IF(R67="",0,VLOOKUP(R67,'Cover Sheet'!$L$14:$O$34,4,0)) -> 0 | W67: - | X67: =IF(C67=0,0,VLOOKUP(C67,'Cover Sheet'!$D$10:$G$22,4,0)) -> 0 | Y67: =IF(F67=0,0,VLOOKUP(F67,'Cover Sheet'!$D$10:$G$36,4,0)) -> 0 | AB67: 0 | AC67: 7.53 | AD67: - | AE67: - | AF67: - | AI67: 0 | AJ67: - | AK67: 0 | AL67: 0 | AN67: 0 | AO67: 7.53 | AP67: - | AQ67: - | AR67: - | AU67: 0 | AV67: - | AW67: 0 | AX67: 0
A68: 50 | E68: =IF($G68=0,0,VLOOKUP(C68,'Cover Sheet'!$D$10:$F$22,3,0)) -> 0 | G68: 0 | H68: =IF($G68=0,0,VLOOKUP(F68,'Cover Sheet'!$D$10:$F$36,3,0)) -> 0 | J68: =IF(I68=0,0,VLOOKUP(I68,'Cover Sheet'!$L$10:$M$13,2,0)) -> 0 | K68: 0 | M68: =IF(L68=0,0,VLOOKUP(L68,'Cover Sheet'!$L$14:$M$34,2,0)) -> 0 | N68: 0 | P68: =IF(L68="",0,VLOOKUP(L68,'Cover Sheet'!$L$14:$O$34,4,0)) -> 0 | Q68: - | S68: =IF(R68=0,0,VLOOKUP(R68,'Cover Sheet'!$L$14:$M$34,2,0)) -> 0 | T68: 0 | V68: =IF(R68="",0,VLOOKUP(R68,'Cover Sheet'!$L$14:$O$34,4,0)) -> 0 | W68: - | X68: =IF(C68=0,0,VLOOKUP(C68,'Cover Sheet'!$D$10:$G$22,4,0)) -> 0 | Y68: =IF(F68=0,0,VLOOKUP(F68,'Cover Sheet'!$D$10:$G$36,4,0)) -> 0 | AB68: 0 | AC68: 7.53 | AD68: - | AE68: - | AF68: - | AI68: 0 | AJ68: - | AK68: 0 | AL68: 0 | AN68: 0 | AO68: 7.53 | AP68: - | AQ68: - | AR68: - | AU68: 0 | AV68: - | AW68: 0 | AX68: 0
A69: 51 | E69: =IF($G69=0,0,VLOOKUP(C69,'Cover Sheet'!$D$10:$F$22,3,0)) -> 0 | G69: =D69 -> 0 | H69: =IF($G69=0,0,VLOOKUP(F69,'Cover Sheet'!$D$10:$F$36,3,0)) -> 0 | J69: =IF(I69=0,0,VLOOKUP(I69,'Cover Sheet'!$L$10:$M$13,2,0)) -> 0 | K69: =IF(J69>0,H69*(1-J69),H69) -> 0 | M69: =IF(L69=0,0,VLOOKUP(L69,'Cover Sheet'!$L$14:$M$34,2,0)) -> 0 | N69: =IF(M69>0,ROUNDUP(K69*(1-M69),2),K69) -> 0 | P69: =IF(L69="",0,VLOOKUP(L69,'Cover Sheet'!$L$14:$O$34,4,0)) -> 0 | Q69: =IF(L69="","-",IF(OR(L69="PP1",L69="P2"),P69*$D$10*E69*G69/12*43560,P69*$D$10*K69*G69/12*43560)) -> - | S69: =IF(R69=0,0,VLOOKUP(R69,'Cover Sheet'!$L$14:$M$34,2,0)) -> 0 | T69: =IF(S69>0,N69*(1-S69),N69) -> 0 | V69: =IF(R69="",0,VLOOKUP(R69,'Cover Sheet'!$L$14:$O$34,4,0)) -> 0 | W69: =IF(R69="","-",V69*$D$10*N69*G69/12*43560) -> - | X69: =IF(C69=0,0,VLOOKUP(C69,'Cover Sheet'!$D$10:$G$22,4,0)) -> 0 | Y69: =IF(F69=0,0,VLOOKUP(F69,'Cover Sheet'!$D$10:$G$36,4,0)) -> 0 | AB69: =Y69 -> 0 | AC69: 7.53 | AD69: =IF(AB69=0,"-",1000/AB69-10) -> - | AE69: - | AF69: =Q69 -> - | AH69: =IF(AG69="","",AF69*AG69) ->  | AI69: =IF(OR(AB69=0,L69=""),0,12*AH69/43560/D69) -> 0 | AJ69: - | AK69: =IF(AB69=0,0,1000/(10+5*AC69+10*AJ69-10*(AJ69^2+1.25*AJ69*AC69)^(1/2))) -> 0 | AL69: =AK69-AB69 -> 0 | AN69: =AK69 -> 0 | AO69: 7.53 | AP69: =IF(AN69=0,"-",1000/AN69-10) -> - | AQ69: - | AR69: =W69 -> - | AT69: =IF(AS69="","",AR69*AS69) ->  | AU69: =IF(OR(AN69=0,R69=""),0,12*AT69/43560/D69) -> 0 | AV69: - | AW69: =IF(AN69=0,0,1000/(10+5*AO69+10*AV69-10*(AV69^2+1.25*AV69*AO69)^(1/2))) -> 0 | AX69: =AW69-AN69 -> 0
A70: 52 | E70: =IF($G70=0,0,VLOOKUP(C70,'Cover Sheet'!$D$10:$F$22,3,0)) -> 0 | G70: 0 | H70: =IF($G70=0,0,VLOOKUP(F70,'Cover Sheet'!$D$10:$F$36,3,0)) -> 0 | J70: =IF(I70=0,0,VLOOKUP(I70,'Cover Sheet'!$L$10:$M$13,2,0)) -> 0 | K70: 0 | M70: =IF(L70=0,0,VLOOKUP(L70,'Cover Sheet'!$L$14:$M$34,2,0)) -> 0 | N70: 0 | P70: =IF(L70="",0,VLOOKUP(L70,'Cover Sheet'!$L$14:$O$34,4,0)) -> 0 | Q70: - | S70: =IF(R70=0,0,VLOOKUP(R70,'Cover Sheet'!$L$14:$M$34,2,0)) -> 0 | T70: 0 | V70: =IF(R70="",0,VLOOKUP(R70,'Cover Sheet'!$L$14:$O$34,4,0)) -> 0 | W70: - | X70: =IF(C70=0,0,VLOOKUP(C70,'Cover Sheet'!$D$10:$G$22,4,0)) -> 0 | Y70: =IF(F70=0,0,VLOOKUP(F70,'Cover Sheet'!$D$10:$G$36,4,0)) -> 0 | AB70: 0 | AC70: 7.53 | AD70: - | AE70: - | AF70: - | AI70: 0 | AJ70: - | AK70: 0 | AL70: 0 | AN70: 0 | AO70: 7.53 | AP70: - | AQ70: - | AR70: - | AU70: 0 | AV70: - | AW70: 0 | AX70: 0
A71: 53 | E71: =IF($G71=0,0,VLOOKUP(C71,'Cover Sheet'!$D$10:$F$22,3,0)) -> 0 | G71: 0 | H71: =IF($G71=0,0,VLOOKUP(F71,'Cover Sheet'!$D$10:$F$36,3,0)) -> 0 | J71: =IF(I71=0,0,VLOOKUP(I71,'Cover Sheet'!$L$10:$M$13,2,0)) -> 0 | K71: 0 | M71: =IF(L71=0,0,VLOOKUP(L71,'Cover Sheet'!$L$14:$M$34,2,0)) -> 0 | N71: 0 | P71: =IF(L71="",0,VLOOKUP(L71,'Cover Sheet'!$L$14:$O$34,4,0)) -> 0 | Q71: - | S71: =IF(R71=0,0,VLOOKUP(R71,'Cover Sheet'!$L$14:$M$34,2,0)) -> 0 | T71: 0 | V71: =IF(R71="",0,VLOOKUP(R71,'Cover Sheet'!$L$14:$O$34,4,0)) -> 0 | W71: - | X71: =IF(C71=0,0,VLOOKUP(C71,'Cover Sheet'!$D$10:$G$22,4,0)) -> 0 | Y71: =IF(F71=0,0,VLOOKUP(F71,'Cover Sheet'!$D$10:$G$36,4,0)) -> 0 | AB71: 0 | AC71: 7.53 | AD71: - | AE71: =IF(AB71=0,"-",(AC71-0.2*AD71)^2/(AC71+0.8*AD71)) -> - | AF71: - | AI71: 0 | AJ71: - | AK71: 0 | AL71: 0 | AN71: 0 | AO71: 7.53 | AP71: - | AQ71: =IF(AN71=0,"-",(AO71-0.2*AP71)^2/(AO71+0.8*AP71)) -> - | AR71: - | AU71: 0 | AV71: - | AW71: 0 | AX71: 0
A72: 54 | E72: =IF($G72=0,0,VLOOKUP(C72,'Cover Sheet'!$D$10:$F$22,3,0)) -> 0 | G72: 0 | H72: =IF($G72=0,0,VLOOKUP(F72,'Cover Sheet'!$D$10:$F$36,3,0)) -> 0 | J72: =IF(I72=0,0,VLOOKUP(I72,'Cover Sheet'!$L$10:$M$13,2,0)) -> 0 | K72: 0 | M72: =IF(L72=0,0,VLOOKUP(L72,'Cover Sheet'!$L$14:$M$34,2,0)) -> 0 | N72: 0 | P72: =IF(L72="",0,VLOOKUP(L72,'Cover Sheet'!$L$14:$O$34,4,0)) -> 0 | Q72: - | S72: =IF(R72=0,0,VLOOKUP(R72,'Cover Sheet'!$L$14:$M$34,2,0)) -> 0 | T72: 0 | V72: =IF(R72="",0,VLOOKUP(R72,'Cover Sheet'!$L$14:$O$34,4,0)) -> 0 | W72: - | X72: =IF(C72=0,0,VLOOKUP(C72,'Cover Sheet'!$D$10:$G$22,4,0)) -> 0 | Y72: =IF(F72=0,0,VLOOKUP(F72,'Cover Sheet'!$D$10:$G$36,4,0)) -> 0 | AB72: 0 | AC72: 7.53 | AD72: - | AE72: =IF(AB72=0,"-",(AC72-0.2*AD72)^2/(AC72+0.8*AD72)) -> - | AF72: - | AI72: 0 | AJ72: - | AK72: 0 | AL72: 0 | AN72: 0 | AO72: 7.53 | AP72: - | AQ72: =IF(AN72=0,"-",(AO72-0.2*AP72)^2/(AO72+0.8*AP72)) -> - | AR72: - | AU72: 0 | AV72: - | AW72: 0 | AX72: 0
A73: 55 | E73: =IF($G73=0,0,VLOOKUP(C73,'Cover Sheet'!$D$10:$F$22,3,0)) -> 0 | G73: 0 | H73: =IF($G73=0,0,VLOOKUP(F73,'Cover Sheet'!$D$10:$F$36,3,0)) -> 0 | J73: =IF(I73=0,0,VLOOKUP(I73,'Cover Sheet'!$L$10:$M$13,2,0)) -> 0 | K73: 0 | M73: =IF(L73=0,0,VLOOKUP(L73,'Cover Sheet'!$L$14:$M$34,2,0)) -> 0 | N73: 0 | P73: =IF(L73="",0,VLOOKUP(L73,'Cover Sheet'!$L$14:$O$34,4,0)) -> 0 | Q73: - | S73: =IF(R73=0,0,VLOOKUP(R73,'Cover Sheet'!$L$14:$M$34,2,0)) -> 0 | T73: 0 | V73: =IF(R73="",0,VLOOKUP(R73,'Cover Sheet'!$L$14:$O$34,4,0)) -> 0 | W73: - | X73: =IF(C73=0,0,VLOOKUP(C73,'Cover Sheet'!$D$10:$G$22,4,0)) -> 0 | Y73: =IF(F73=0,0,VLOOKUP(F73,'Cover Sheet'!$D$10:$G$36,4,0)) -> 0 | AB73: 0 | AC73: 7.53 | AD73: - | AE73: - | AF73: - | AI73: 0 | AJ73: - | AK73: 0 | AL73: 0 | AN73: 0 | AO73: 7.53 | AP73: - | AQ73: - | AR73: - | AU73: 0 | AV73: - | AW73: 0 | AX73: 0
A74: 56 | E74: =IF($G74=0,0,VLOOKUP(C74,'Cover Sheet'!$D$10:$F$22,3,0)) -> 0 | G74: 0 | H74: =IF($G74=0,0,VLOOKUP(F74,'Cover Sheet'!$D$10:$F$36,3,0)) -> 0 | J74: =IF(I74=0,0,VLOOKUP(I74,'Cover Sheet'!$L$10:$M$13,2,0)) -> 0 | K74: 0 | M74: =IF(L74=0,0,VLOOKUP(L74,'Cover Sheet'!$L$14:$M$34,2,0)) -> 0 | N74: 0 | P74: =IF(L74="",0,VLOOKUP(L74,'Cover Sheet'!$L$14:$O$34,4,0)) -> 0 | Q74: - | S74: =IF(R74=0,0,VLOOKUP(R74,'Cover Sheet'!$L$14:$M$34,2,0)) -> 0 | T74: 0 | V74: =IF(R74="",0,VLOOKUP(R74,'Cover Sheet'!$L$14:$O$34,4,0)) -> 0 | W74: - | X74: =IF(C74=0,0,VLOOKUP(C74,'Cover Sheet'!$D$10:$G$22,4,0)) -> 0 | Y74: =IF(F74=0,0,VLOOKUP(F74,'Cover Sheet'!$D$10:$G$36,4,0)) -> 0 | AB74: 0 | AC74: 7.53 | AD74: - | AE74: - | AF74: - | AI74: 0 | AJ74: - | AK74: 0 | AL74: 0 | AN74: 0 | AO74: 7.53 | AP74: - | AQ74: - | AR74: - | AU74: 0 | AV74: - | AW74: 0 | AX74: 0
A75: 57 | E75: =IF($G75=0,0,VLOOKUP(C75,'Cover Sheet'!$D$10:$F$22,3,0)) -> 0 | G75: 0 | H75: =IF($G75=0,0,VLOOKUP(F75,'Cover Sheet'!$D$10:$F$36,3,0)) -> 0 | J75: =IF(I75=0,0,VLOOKUP(I75,'Cover Sheet'!$L$10:$M$13,2,0)) -> 0 | K75: 0 | M75: =IF(L75=0,0,VLOOKUP(L75,'Cover Sheet'!$L$14:$M$34,2,0)) -> 0 | N75: 0 | P75: =IF(L75="",0,VLOOKUP(L75,'Cover Sheet'!$L$14:$O$34,4,0)) -> 0 | Q75: - | S75: =IF(R75=0,0,VLOOKUP(R75,'Cover Sheet'!$L$14:$M$34,2,0)) -> 0 | T75: 0 | V75: =IF(R75="",0,VLOOKUP(R75,'Cover Sheet'!$L$14:$O$34,4,0)) -> 0 | W75: - | X75: =IF(C75=0,0,VLOOKUP(C75,'Cover Sheet'!$D$10:$G$22,4,0)) -> 0 | Y75: =IF(F75=0,0,VLOOKUP(F75,'Cover Sheet'!$D$10:$G$36,4,0)) -> 0 | AB75: 0 | AC75: 7.53 | AD75: - | AE75: - | AF75: - | AI75: 0 | AJ75: - | AK75: 0 | AL75: 0 | AN75: 0 | AO75: 7.53 | AP75: - | AQ75: - | AR75: - | AU75: 0 | AV75: - | AW75: 0 | AX75: 0
A76: 58 | E76: =IF($G76=0,0,VLOOKUP(C76,'Cover Sheet'!$D$10:$F$22,3,0)) -> 0 | G76: 0 | H76: =IF($G76=0,0,VLOOKUP(F76,'Cover Sheet'!$D$10:$F$36,3,0)) -> 0 | J76: =IF(I76=0,0,VLOOKUP(I76,'Cover Sheet'!$L$10:$M$13,2,0)) -> 0 | K76: 0 | M76: =IF(L76=0,0,VLOOKUP(L76,'Cover Sheet'!$L$14:$M$34,2,0)) -> 0 | N76: 0 | P76: =IF(L76="",0,VLOOKUP(L76,'Cover Sheet'!$L$14:$O$34,4,0)) -> 0 | Q76: - | S76: =IF(R76=0,0,VLOOKUP(R76,'Cover Sheet'!$L$14:$M$34,2,0)) -> 0 | T76: 0 | V76: =IF(R76="",0,VLOOKUP(R76,'Cover Sheet'!$L$14:$O$34,4,0)) -> 0 | W76: - | X76: =IF(C76=0,0,VLOOKUP(C76,'Cover Sheet'!$D$10:$G$22,4,0)) -> 0 | Y76: =IF(F76=0,0,VLOOKUP(F76,'Cover Sheet'!$D$10:$G$36,4,0)) -> 0 | AB76: 0 | AC76: 7.53 | AD76: - | AE76: - | AF76: - | AI76: 0 | AJ76: - | AK76: 0 | AL76: 0 | AN76: 0 | AO76: 7.53 | AP76: - | AQ76: - | AR76: - | AU76: 0 | AV76: - | AW76: 0 | AX76: 0
A77: 59 | E77: =IF($G77=0,0,VLOOKUP(C77,'Cover Sheet'!$D$10:$F$22,3,0)) -> 0 | G77: 0 | H77: =IF($G77=0,0,VLOOKUP(F77,'Cover Sheet'!$D$10:$F$36,3,0)) -> 0 | J77: =IF(I77=0,0,VLOOKUP(I77,'Cover Sheet'!$L$10:$M$13,2,0)) -> 0 | K77: 0 | M77: =IF(L77=0,0,VLOOKUP(L77,'Cover Sheet'!$L$14:$M$34,2,0)) -> 0 | N77: 0 | P77: =IF(L77="",0,VLOOKUP(L77,'Cover Sheet'!$L$14:$O$34,4,0)) -> 0 | Q77: - | S77: =IF(R77=0,0,VLOOKUP(R77,'Cover Sheet'!$L$14:$M$34,2,0)) -> 0 | T77: 0 | V77: =IF(R77="",0,VLOOKUP(R77,'Cover Sheet'!$L$14:$O$34,4,0)) -> 0 | W77: - | X77: =IF(C77=0,0,VLOOKUP(C77,'Cover Sheet'!$D$10:$G$22,4,0)) -> 0 | Y77: =IF(F77=0,0,VLOOKUP(F77,'Cover Sheet'!$D$10:$G$36,4,0)) -> 0 | AB77: 0 | AC77: 7.53 | AD77: - | AE77: - | AF77: - | AI77: 0 | AJ77: - | AK77: 0 | AL77: 0 | AN77: 0 | AO77: 7.53 | AP77: - | AQ77: - | AR77: - | AU77: 0 | AV77: - | AW77: 0 | AX77: 0
A78: 60 | E78: =IF($G78=0,0,VLOOKUP(C78,'Cover Sheet'!$D$10:$F$22,3,0)) -> 0 | G78: 0 | H78: =IF($G78=0,0,VLOOKUP(F78,'Cover Sheet'!$D$10:$F$36,3,0)) -> 0 | J78: =IF(I78=0,0,VLOOKUP(I78,'Cover Sheet'!$L$10:$M$13,2,0)) -> 0 | K78: 0 | M78: =IF(L78=0,0,VLOOKUP(L78,'Cover Sheet'!$L$14:$M$34,2,0)) -> 0 | N78: 0 | P78: =IF(L78="",0,VLOOKUP(L78,'Cover Sheet'!$L$14:$O$34,4,0)) -> 0 | Q78: - | S78: =IF(R78=0,0,VLOOKUP(R78,'Cover Sheet'!$L$14:$M$34,2,0)) -> 0 | T78: 0 | V78: =IF(R78="",0,VLOOKUP(R78,'Cover Sheet'!$L$14:$O$34,4,0)) -> 0 | W78: - | X78: =IF(C78=0,0,VLOOKUP(C78,'Cover Sheet'!$D$10:$G$22,4,0)) -> 0 | Y78: =IF(F78=0,0,VLOOKUP(F78,'Cover Sheet'!$D$10:$G$36,4,0)) -> 0 | AB78: 0 | AC78: 7.53 | AD78: - | AE78: - | AF78: - | AI78: 0 | AJ78: - | AK78: 0 | AL78: 0 | AN78: 0 | AO78: 7.53 | AP78: - | AQ78: - | AR78: - | AU78: 0 | AV78: - | AW78: 0 | AX78: 0
A79: 61 | E79: =IF($G79=0,0,VLOOKUP(C79,'Cover Sheet'!$D$10:$F$22,3,0)) -> 0 | G79: 0 | H79: =IF($G79=0,0,VLOOKUP(F79,'Cover Sheet'!$D$10:$F$36,3,0)) -> 0 | J79: =IF(I79=0,0,VLOOKUP(I79,'Cover Sheet'!$L$10:$M$13,2,0)) -> 0 | K79: 0 | M79: =IF(L79=0,0,VLOOKUP(L79,'Cover Sheet'!$L$14:$M$34,2,0)) -> 0 | N79: 0 | P79: =IF(L79="",0,VLOOKUP(L79,'Cover Sheet'!$L$14:$O$34,4,0)) -> 0 | Q79: - | S79: =IF(R79=0,0,VLOOKUP(R79,'Cover Sheet'!$L$14:$M$34,2,0)) -> 0 | T79: 0 | V79: =IF(R79="",0,VLOOKUP(R79,'Cover Sheet'!$L$14:$O$34,4,0)) -> 0 | W79: - | X79: =IF(C79=0,0,VLOOKUP(C79,'Cover Sheet'!$D$10:$G$22,4,0)) -> 0 | Y79: =IF(F79=0,0,VLOOKUP(F79,'Cover Sheet'!$D$10:$G$36,4,0)) -> 0 | AB79: 0 | AC79: 7.53 | AD79: - | AE79: =IF(AB79=0,"-",(AC79-0.2*AD79)^2/(AC79+0.8*AD79)) -> - | AF79: - | AI79: 0 | AJ79: - | AK79: 0 | AL79: 0 | AN79: 0 | AO79: 7.53 | AP79: - | AQ79: =IF(AN79=0,"-",(AO79-0.2*AP79)^2/(AO79+0.8*AP79)) -> - | AR79: - | AU79: 0 | AV79: - | AW79: 0 | AX79: 0
A80: 62 | E80: =IF($G80=0,0,VLOOKUP(C80,'Cover Sheet'!$D$10:$F$22,3,0)) -> 0 | G80: 0 | H80: =IF($G80=0,0,VLOOKUP(F80,'Cover Sheet'!$D$10:$F$36,3,0)) -> 0 | J80: =IF(I80=0,0,VLOOKUP(I80,'Cover Sheet'!$L$10:$M$13,2,0)) -> 0 | K80: 0 | M80: =IF(L80=0,0,VLOOKUP(L80,'Cover Sheet'!$L$14:$M$34,2,0)) -> 0 | N80: 0 | P80: =IF(L80="",0,VLOOKUP(L80,'Cover Sheet'!$L$14:$O$34,4,0)) -> 0 | Q80: - | S80: =IF(R80=0,0,VLOOKUP(R80,'Cover Sheet'!$L$14:$M$34,2,0)) -> 0 | T80: 0 | V80: =IF(R80="",0,VLOOKUP(R80,'Cover Sheet'!$L$14:$O$34,4,0)) -> 0 | W80: - | X80: =IF(C80=0,0,VLOOKUP(C80,'Cover Sheet'!$D$10:$G$22,4,0)) -> 0 | Y80: =IF(F80=0,0,VLOOKUP(F80,'Cover Sheet'!$D$10:$G$36,4,0)) -> 0 | AB80: 0 | AC80: 7.53 | AD80: - | AE80: =IF(AB80=0,"-",(AC80-0.2*AD80)^2/(AC80+0.8*AD80)) -> - | AF80: - | AI80: 0 | AJ80: - | AK80: 0 | AL80: 0 | AN80: 0 | AO80: 7.53 | AP80: - | AQ80: =IF(AN80=0,"-",(AO80-0.2*AP80)^2/(AO80+0.8*AP80)) -> - | AR80: - | AU80: 0 | AV80: - | AW80: 0 | AX80: 0
A81: 63 | E81: =IF($G81=0,0,VLOOKUP(C81,'Cover Sheet'!$D$10:$F$22,3,0)) -> 0 | G81: 0 | H81: =IF($G81=0,0,VLOOKUP(F81,'Cover Sheet'!$D$10:$F$36,3,0)) -> 0 | J81: =IF(I81=0,0,VLOOKUP(I81,'Cover Sheet'!$L$10:$M$13,2,0)) -> 0 | K81: 0 | M81: =IF(L81=0,0,VLOOKUP(L81,'Cover Sheet'!$L$14:$M$34,2,0)) -> 0 | N81: 0 | P81: =IF(L81="",0,VLOOKUP(L81,'Cover Sheet'!$L$14:$O$34,4,0)) -> 0 | Q81: - | S81: =IF(R81=0,0,VLOOKUP(R81,'Cover Sheet'!$L$14:$M$34,2,0)) -> 0 | T81: 0 | V81: =IF(R81="",0,VLOOKUP(R81,'Cover Sheet'!$L$14:$O$34,4,0)) -> 0 | W81: - | X81: =IF(C81=0,0,VLOOKUP(C81,'Cover Sheet'!$D$10:$G$22,4,0)) -> 0 | Y81: =IF(F81=0,0,VLOOKUP(F81,'Cover Sheet'!$D$10:$G$36,4,0)) -> 0 | AB81: 0 | AC81: 7.53 | AD81: - | AE81: - | AF81: - | AI81: 0 | AJ81: - | AK81: 0 | AL81: 0 | AN81: 0 | AO81: 7.53 | AP81: - | AQ81: - | AR81: - | AU81: 0 | AV81: - | AW81: 0 | AX81: 0
A82: 64 | E82: =IF($G82=0,0,VLOOKUP(C82,'Cover Sheet'!$D$10:$F$22,3,0)) -> 0 | G82: 0 | H82: =IF($G82=0,0,VLOOKUP(F82,'Cover Sheet'!$D$10:$F$36,3,0)) -> 0 | J82: =IF(I82=0,0,VLOOKUP(I82,'Cover Sheet'!$L$10:$M$13,2,0)) -> 0 | K82: 0 | M82: =IF(L82=0,0,VLOOKUP(L82,'Cover Sheet'!$L$14:$M$34,2,0)) -> 0 | N82: 0 | P82: =IF(L82="",0,VLOOKUP(L82,'Cover Sheet'!$L$14:$O$34,4,0)) -> 0 | Q82: - | S82: =IF(R82=0,0,VLOOKUP(R82,'Cover Sheet'!$L$14:$M$34,2,0)) -> 0 | T82: 0 | V82: =IF(R82="",0,VLOOKUP(R82,'Cover Sheet'!$L$14:$O$34,4,0)) -> 0 | W82: - | X82: =IF(C82=0,0,VLOOKUP(C82,'Cover Sheet'!$D$10:$G$22,4,0)) -> 0 | Y82: =IF(F82=0,0,VLOOKUP(F82,'Cover Sheet'!$D$10:$G$36,4,0)) -> 0 | AB82: 0 | AC82: 7.53 | AD82: - | AE82: - | AF82: - | AI82: 0 | AJ82: - | AK82: 0 | AL82: 0 | AN82: 0 | AO82: 7.53 | AP82: - | AQ82: - | AR82: - | AU82: 0 | AV82: - | AW82: 0 | AX82: 0
A83: 65 | E83: =IF($G83=0,0,VLOOKUP(C83,'Cover Sheet'!$D$10:$F$22,3,0)) -> 0 | G83: 0 | H83: =IF($G83=0,0,VLOOKUP(F83,'Cover Sheet'!$D$10:$F$36,3,0)) -> 0 | J83: =IF(I83=0,0,VLOOKUP(I83,'Cover Sheet'!$L$10:$M$13,2,0)) -> 0 | K83: 0 | M83: =IF(L83=0,0,VLOOKUP(L83,'Cover Sheet'!$L$14:$M$34,2,0)) -> 0 | N83: 0 | P83: =IF(L83="",0,VLOOKUP(L83,'Cover Sheet'!$L$14:$O$34,4,0)) -> 0 | Q83: - | S83: =IF(R83=0,0,VLOOKUP(R83,'Cover Sheet'!$L$14:$M$34,2,0)) -> 0 | T83: 0 | V83: =IF(R83="",0,VLOOKUP(R83,'Cover Sheet'!$L$14:$O$34,4,0)) -> 0 | W83: - | X83: =IF(C83=0,0,VLOOKUP(C83,'Cover Sheet'!$D$10:$G$22,4,0)) -> 0 | Y83: =IF(F83=0,0,VLOOKUP(F83,'Cover Sheet'!$D$10:$G$36,4,0)) -> 0 | AB83: 0 | AC83: 7.53 | AD83: - | AE83: - | AF83: - | AI83: 0 | AJ83: - | AK83: 0 | AL83: 0 | AN83: 0 | AO83: 7.53 | AP83: - | AQ83: - | AR83: - | AU83: 0 | AV83: - | AW83: 0 | AX83: 0
A84: 66 | E84: =IF($G84=0,0,VLOOKUP(C84,'Cover Sheet'!$D$10:$F$22,3,0)) -> 0 | G84: 0 | H84: =IF($G84=0,0,VLOOKUP(F84,'Cover Sheet'!$D$10:$F$36,3,0)) -> 0 | J84: =IF(I84=0,0,VLOOKUP(I84,'Cover Sheet'!$L$10:$M$13,2,0)) -> 0 | K84: 0 | M84: =IF(L84=0,0,VLOOKUP(L84,'Cover Sheet'!$L$14:$M$34,2,0)) -> 0 | N84: 0 | P84: =IF(L84="",0,VLOOKUP(L84,'Cover Sheet'!$L$14:$O$34,4,0)) -> 0 | Q84: - | S84: =IF(R84=0,0,VLOOKUP(R84,'Cover Sheet'!$L$14:$M$34,2,0)) -> 0 | T84: 0 | V84: =IF(R84="",0,VLOOKUP(R84,'Cover Sheet'!$L$14:$O$34,4,0)) -> 0 | W84: - | X84: =IF(C84=0,0,VLOOKUP(C84,'Cover Sheet'!$D$10:$G$22,4,0)) -> 0 | Y84: =IF(F84=0,0,VLOOKUP(F84,'Cover Sheet'!$D$10:$G$36,4,0)) -> 0 | AB84: 0 | AC84: 7.53 | AD84: - | AE84: - | AF84: - | AI84: 0 | AJ84: =IF(AB84=0,"-",IF(AE84-AI84<0,0,AE84-AI84)) -> - | AK84: 0 | AL84: 0 | AN84: 0 | AO84: 7.53 | AP84: - | AQ84: - | AR84: - | AU84: 0 | AV84: =IF(AN84=0,"-",IF(AQ84-AU84<0,0,AQ84-AU84)) -> - | AW84: 0 | AX84: 0
A85: 67 | E85: =IF($G85=0,0,VLOOKUP(C85,'Cover Sheet'!$D$10:$F$22,3,0)) -> 0 | G85: 0 | H85: =IF($G85=0,0,VLOOKUP(F85,'Cover Sheet'!$D$10:$F$36,3,0)) -> 0 | J85: =IF(I85=0,0,VLOOKUP(I85,'Cover Sheet'!$L$10:$M$13,2,0)) -> 0 | K85: 0 | M85: =IF(L85=0,0,VLOOKUP(L85,'Cover Sheet'!$L$14:$M$34,2,0)) -> 0 | N85: 0 | P85: =IF(L85="",0,VLOOKUP(L85,'Cover Sheet'!$L$14:$O$34,4,0)) -> 0 | Q85: - | S85: =IF(R85=0,0,VLOOKUP(R85,'Cover Sheet'!$L$14:$M$34,2,0)) -> 0 | T85: 0 | V85: =IF(R85="",0,VLOOKUP(R85,'Cover Sheet'!$L$14:$O$34,4,0)) -> 0 | W85: - | X85: =IF(C85=0,0,VLOOKUP(C85,'Cover Sheet'!$D$10:$G$22,4,0)) -> 0 | Y85: =IF(F85=0,0,VLOOKUP(F85,'Cover Sheet'!$D$10:$G$36,4,0)) -> 0 | AB85: 0 | AC85: 7.53 | AD85: - | AE85: - | AF85: - | AI85: 0 | AJ85: - | AK85: 0 | AL85: 0 | AN85: 0 | AO85: 7.53 | AP85: - | AQ85: - | AR85: - | AU85: 0 | AV85: - | AW85: 0 | AX85: 0
A86: 68 | E86: =IF($G86=0,0,VLOOKUP(C86,'Cover Sheet'!$D$10:$F$22,3,0)) -> 0 | G86: 0 | H86: =IF($G86=0,0,VLOOKUP(F86,'Cover Sheet'!$D$10:$F$36,3,0)) -> 0 | J86: =IF(I86=0,0,VLOOKUP(I86,'Cover Sheet'!$L$10:$M$13,2,0)) -> 0 | K86: 0 | M86: =IF(L86=0,0,VLOOKUP(L86,'Cover Sheet'!$L$14:$M$34,2,0)) -> 0 | N86: 0 | P86: =IF(L86="",0,VLOOKUP(L86,'Cover Sheet'!$L$14:$O$34,4,0)) -> 0 | Q86: - | S86: =IF(R86=0,0,VLOOKUP(R86,'Cover Sheet'!$L$14:$M$34,2,0)) -> 0 | T86: 0 | V86: =IF(R86="",0,VLOOKUP(R86,'Cover Sheet'!$L$14:$O$34,4,0)) -> 0 | W86: - | X86: =IF(C86=0,0,VLOOKUP(C86,'Cover Sheet'!$D$10:$G$22,4,0)) -> 0 | Y86: =IF(F86=0,0,VLOOKUP(F86,'Cover Sheet'!$D$10:$G$36,4,0)) -> 0 | AB86: 0 | AC86: 7.53 | AD86: - | AE86: - | AF86: - | AI86: 0 | AJ86: - | AK86: 0 | AL86: 0 | AN86: 0 | AO86: 7.53 | AP86: - | AQ86: - | AR86: - | AU86: 0 | AV86: - | AW86: 0 | AX86: 0
A87: 69 | E87: =IF($G87=0,0,VLOOKUP(C87,'Cover Sheet'!$D$10:$F$22,3,0)) -> 0 | G87: =D87 -> 0 | H87: =IF($G87=0,0,VLOOKUP(F87,'Cover Sheet'!$D$10:$F$36,3,0)) -> 0 | J87: =IF(I87=0,0,VLOOKUP(I87,'Cover Sheet'!$L$10:$M$13,2,0)) -> 0 | K87: =IF(J87>0,H87*(1-J87),H87) -> 0 | M87: =IF(L87=0,0,VLOOKUP(L87,'Cover Sheet'!$L$14:$M$34,2,0)) -> 0 | N87: =IF(M87>0,ROUNDUP(K87*(1-M87),2),K87) -> 0 | P87: =IF(L87="",0,VLOOKUP(L87,'Cover Sheet'!$L$14:$O$34,4,0)) -> 0 | Q87: =IF(L87="","-",IF(OR(L87="PP1",L87="P2"),P87*$D$10*E87*G87/12*43560,P87*$D$10*K87*G87/12*43560)) -> - | S87: =IF(R87=0,0,VLOOKUP(R87,'Cover Sheet'!$L$14:$M$34,2,0)) -> 0 | T87: =IF(S87>0,N87*(1-S87),N87) -> 0 | V87: =IF(R87="",0,VLOOKUP(R87,'Cover Sheet'!$L$14:$O$34,4,0)) -> 0 | W87: =IF(R87="","-",V87*$D$10*N87*G87/12*43560) -> - | X87: =IF(C87=0,0,VLOOKUP(C87,'Cover Sheet'!$D$10:$G$22,4,0)) -> 0 | Y87: =IF(F87=0,0,VLOOKUP(F87,'Cover Sheet'!$D$10:$G$36,4,0)) -> 0 | AB87: =Y87 -> 0 | AC87: 7.53 | AD87: =IF(AB87=0,"-",1000/AB87-10) -> - | AE87: - | AF87: =Q87 -> - | AH87: =IF(AG87="","",AF87*AG87) ->  | AI87: =IF(OR(AB87=0,L87=""),0,12*AH87/43560/D87) -> 0 | AJ87: - | AK87: =IF(AB87=0,0,1000/(10+5*AC87+10*AJ87-10*(AJ87^2+1.25*AJ87*AC87)^(1/2))) -> 0 | AL87: =AK87-AB87 -> 0 | AN87: =AK87 -> 0 | AO87: 7.53 | AP87: =IF(AN87=0,"-",1000/AN87-10) -> - | AQ87: - | AR87: =W87 -> - | AT87: =IF(AS87="","",AR87*AS87) ->  | AU87: =IF(OR(AN87=0,R87=""),0,12*AT87/43560/D87) -> 0 | AV87: - | AW87: =IF(AN87=0,0,1000/(10+5*AO87+10*AV87-10*(AV87^2+1.25*AV87*AO87)^(1/2))) -> 0 | AX87: =AW87-AN87 -> 0
A88: 70 | E88: =IF($G88=0,0,VLOOKUP(C88,'Cover Sheet'!$D$10:$F$22,3,0)) -> 0 | G88: 0 | H88: =IF($G88=0,0,VLOOKUP(F88,'Cover Sheet'!$D$10:$F$36,3,0)) -> 0 | J88: =IF(I88=0,0,VLOOKUP(I88,'Cover Sheet'!$L$10:$M$13,2,0)) -> 0 | K88: 0 | M88: =IF(L88=0,0,VLOOKUP(L88,'Cover Sheet'!$L$14:$M$34,2,0)) -> 0 | N88: 0 | P88: =IF(L88="",0,VLOOKUP(L88,'Cover Sheet'!$L$14:$O$34,4,0)) -> 0 | Q88: - | S88: =IF(R88=0,0,VLOOKUP(R88,'Cover Sheet'!$L$14:$M$34,2,0)) -> 0 | T88: 0 | V88: =IF(R88="",0,VLOOKUP(R88,'Cover Sheet'!$L$14:$O$34,4,0)) -> 0 | W88: - | X88: =IF(C88=0,0,VLOOKUP(C88,'Cover Sheet'!$D$10:$G$22,4,0)) -> 0 | Y88: =IF(F88=0,0,VLOOKUP(F88,'Cover Sheet'!$D$10:$G$36,4,0)) -> 0 | AB88: 0 | AC88: 7.53 | AD88: - | AE88: - | AF88: - | AI88: 0 | AJ88: - | AK88: 0 | AL88: 0 | AN88: 0 | AO88: 7.53 | AP88: - | AQ88: - | AR88: - | AU88: 0 | AV88: - | AW88: 0 | AX88: 0
A89: 71 | E89: =IF($G89=0,0,VLOOKUP(C89,'Cover Sheet'!$D$10:$F$22,3,0)) -> 0 | G89: 0 | H89: =IF($G89=0,0,VLOOKUP(F89,'Cover Sheet'!$D$10:$F$36,3,0)) -> 0 | J89: =IF(I89=0,0,VLOOKUP(I89,'Cover Sheet'!$L$10:$M$13,2,0)) -> 0 | K89: 0 | M89: =IF(L89=0,0,VLOOKUP(L89,'Cover Sheet'!$L$14:$M$34,2,0)) -> 0 | N89: 0 | P89: =IF(L89="",0,VLOOKUP(L89,'Cover Sheet'!$L$14:$O$34,4,0)) -> 0 | Q89: - | S89: =IF(R89=0,0,VLOOKUP(R89,'Cover Sheet'!$L$14:$M$34,2,0)) -> 0 | T89: 0 | V89: =IF(R89="",0,VLOOKUP(R89,'Cover Sheet'!$L$14:$O$34,4,0)) -> 0 | W89: - | X89: =IF(C89=0,0,VLOOKUP(C89,'Cover Sheet'!$D$10:$G$22,4,0)) -> 0 | Y89: =IF(F89=0,0,VLOOKUP(F89,'Cover Sheet'!$D$10:$G$36,4,0)) -> 0 | AB89: 0 | AC89: 7.53 | AD89: - | AE89: - | AF89: - | AI89: 0 | AJ89: - | AK89: 0 | AL89: 0 | AN89: 0 | AO89: 7.53 | AP89: - | AQ89: - | AR89: - | AU89: 0 | AV89: - | AW89: 0 | AX89: 0
A90: 72 | E90: =IF($G90=0,0,VLOOKUP(C90,'Cover Sheet'!$D$10:$F$22,3,0)) -> 0 | G90: 0 | H90: =IF($G90=0,0,VLOOKUP(F90,'Cover Sheet'!$D$10:$F$36,3,0)) -> 0 | J90: =IF(I90=0,0,VLOOKUP(I90,'Cover Sheet'!$L$10:$M$13,2,0)) -> 0 | K90: 0 | M90: =IF(L90=0,0,VLOOKUP(L90,'Cover Sheet'!$L$14:$M$34,2,0)) -> 0 | N90: 0 | P90: =IF(L90="",0,VLOOKUP(L90,'Cover Sheet'!$L$14:$O$34,4,0)) -> 0 | Q90: - | S90: =IF(R90=0,0,VLOOKUP(R90,'Cover Sheet'!$L$14:$M$34,2,0)) -> 0 | T90: 0 | V90: =IF(R90="",0,VLOOKUP(R90,'Cover Sheet'!$L$14:$O$34,4,0)) -> 0 | W90: - | X90: =IF(C90=0,0,VLOOKUP(C90,'Cover Sheet'!$D$10:$G$22,4,0)) -> 0 | Y90: =IF(F90=0,0,VLOOKUP(F90,'Cover Sheet'!$D$10:$G$36,4,0)) -> 0 | AB90: 0 | AC90: 7.53 | AD90: - | AE90: - | AF90: - | AI90: 0 | AJ90: - | AK90: 0 | AL90: 0 | AN90: 0 | AO90: 7.53 | AP90: - | AQ90: - | AR90: - | AU90: 0 | AV90: - | AW90: 0 | AX90: 0
A91: 73 | E91: =IF($G91=0,0,VLOOKUP(C91,'Cover Sheet'!$D$10:$F$22,3,0)) -> 0 | G91: 0 | H91: =IF($G91=0,0,VLOOKUP(F91,'Cover Sheet'!$D$10:$F$36,3,0)) -> 0 | J91: =IF(I91=0,0,VLOOKUP(I91,'Cover Sheet'!$L$10:$M$13,2,0)) -> 0 | K91: 0 | M91: =IF(L91=0,0,VLOOKUP(L91,'Cover Sheet'!$L$14:$M$34,2,0)) -> 0 | N91: 0 | P91: =IF(L91="",0,VLOOKUP(L91,'Cover Sheet'!$L$14:$O$34,4,0)) -> 0 | Q91: - | S91: =IF(R91=0,0,VLOOKUP(R91,'Cover Sheet'!$L$14:$M$34,2,0)) -> 0 | T91: 0 | V91: =IF(R91="",0,VLOOKUP(R91,'Cover Sheet'!$L$14:$O$34,4,0)) -> 0 | W91: - | X91: =IF(C91=0,0,VLOOKUP(C91,'Cover Sheet'!$D$10:$G$22,4,0)) -> 0 | Y91: =IF(F91=0,0,VLOOKUP(F91,'Cover Sheet'!$D$10:$G$36,4,0)) -> 0 | AB91: 0 | AC91: 7.53 | AD91: - | AE91: - | AF91: - | AI91: 0 | AJ91: - | AK91: 0 | AL91: 0 | AN91: 0 | AO91: 7.53 | AP91: - | AQ91: - | AR91: - | AU91: 0 | AV91: - | AW91: 0 | AX91: 0
A92: 74 | E92: =IF($G92=0,0,VLOOKUP(C92,'Cover Sheet'!$D$10:$F$22,3,0)) -> 0 | G92: 0 | H92: =IF($G92=0,0,VLOOKUP(F92,'Cover Sheet'!$D$10:$F$36,3,0)) -> 0 | J92: =IF(I92=0,0,VLOOKUP(I92,'Cover Sheet'!$L$10:$M$13,2,0)) -> 0 | K92: 0 | M92: =IF(L92=0,0,VLOOKUP(L92,'Cover Sheet'!$L$14:$M$34,2,0)) -> 0 | N92: 0 | P92: =IF(L92="",0,VLOOKUP(L92,'Cover Sheet'!$L$14:$O$34,4,0)) -> 0 | Q92: - | S92: =IF(R92=0,0,VLOOKUP(R92,'Cover Sheet'!$L$14:$M$34,2,0)) -> 0 | T92: 0 | V92: =IF(R92="",0,VLOOKUP(R92,'Cover Sheet'!$L$14:$O$34,4,0)) -> 0 | W92: - | X92: =IF(C92=0,0,VLOOKUP(C92,'Cover Sheet'!$D$10:$G$22,4,0)) -> 0 | Y92: =IF(F92=0,0,VLOOKUP(F92,'Cover Sheet'!$D$10:$G$36,4,0)) -> 0 | AB92: 0 | AC92: 7.53 | AD92: - | AE92: - | AF92: - | AI92: 0 | AJ92: - | AK92: 0 | AL92: 0 | AN92: 0 | AO92: 7.53 | AP92: - | AQ92: - | AR92: - | AU92: 0 | AV92: - | AW92: 0 | AX92: 0
A93: 75 | E93: =IF($G93=0,0,VLOOKUP(C93,'Cover Sheet'!$D$10:$F$22,3,0)) -> 0 | G93: 0 | H93: =IF($G93=0,0,VLOOKUP(F93,'Cover Sheet'!$D$10:$F$36,3,0)) -> 0 | J93: =IF(I93=0,0,VLOOKUP(I93,'Cover Sheet'!$L$10:$M$13,2,0)) -> 0 | K93: 0 | M93: =IF(L93=0,0,VLOOKUP(L93,'Cover Sheet'!$L$14:$M$34,2,0)) -> 0 | N93: 0 | P93: =IF(L93="",0,VLOOKUP(L93,'Cover Sheet'!$L$14:$O$34,4,0)) -> 0 | Q93: - | S93: =IF(R93=0,0,VLOOKUP(R93,'Cover Sheet'!$L$14:$M$34,2,0)) -> 0 | T93: 0 | V93: =IF(R93="",0,VLOOKUP(R93,'Cover Sheet'!$L$14:$O$34,4,0)) -> 0 | W93: - | X93: =IF(C93=0,0,VLOOKUP(C93,'Cover Sheet'!$D$10:$G$22,4,0)) -> 0 | Y93: =IF(F93=0,0,VLOOKUP(F93,'Cover Sheet'!$D$10:$G$36,4,0)) -> 0 | AB93: 0 | AC93: 7.53 | AD93: - | AE93: - | AF93: - | AI93: 0 | AJ93: - | AK93: 0 | AL93: 0 | AN93: 0 | AO93: 7.53 | AP93: - | AQ93: - | AR93: - | AU93: 0 | AV93: - | AW93: 0 | AX93: 0
A94: 76 | E94: =IF($G94=0,0,VLOOKUP(C94,'Cover Sheet'!$D$10:$F$22,3,0)) -> 0 | G94: 0 | H94: =IF($G94=0,0,VLOOKUP(F94,'Cover Sheet'!$D$10:$F$36,3,0)) -> 0 | J94: =IF(I94=0,0,VLOOKUP(I94,'Cover Sheet'!$L$10:$M$13,2,0)) -> 0 | K94: 0 | M94: =IF(L94=0,0,VLOOKUP(L94,'Cover Sheet'!$L$14:$M$34,2,0)) -> 0 | N94: 0 | P94: =IF(L94="",0,VLOOKUP(L94,'Cover Sheet'!$L$14:$O$34,4,0)) -> 0 | Q94: - | S94: =IF(R94=0,0,VLOOKUP(R94,'Cover Sheet'!$L$14:$M$34,2,0)) -> 0 | T94: 0 | V94: =IF(R94="",0,VLOOKUP(R94,'Cover Sheet'!$L$14:$O$34,4,0)) -> 0 | W94: - | X94: =IF(C94=0,0,VLOOKUP(C94,'Cover Sheet'!$D$10:$G$22,4,0)) -> 0 | Y94: =IF(F94=0,0,VLOOKUP(F94,'Cover Sheet'!$D$10:$G$36,4,0)) -> 0 | AB94: 0 | AC94: 7.53 | AD94: - | AE94: =IF(AB94=0,"-",(AC94-0.2*AD94)^2/(AC94+0.8*AD94)) -> - | AF94: - | AI94: 0 | AJ94: - | AK94: 0 | AL94: 0 | AN94: 0 | AO94: 7.53 | AP94: - | AQ94: =IF(AN94=0,"-",(AO94-0.2*AP94)^2/(AO94+0.8*AP94)) -> - | AR94: - | AU94: 0 | AV94: - | AW94: 0 | AX94: 0
A95: 77 | E95: =IF($G95=0,0,VLOOKUP(C95,'Cover Sheet'!$D$10:$F$22,3,0)) -> 0 | G95: 0 | H95: =IF($G95=0,0,VLOOKUP(F95,'Cover Sheet'!$D$10:$F$36,3,0)) -> 0 | J95: =IF(I95=0,0,VLOOKUP(I95,'Cover Sheet'!$L$10:$M$13,2,0)) -> 0 | K95: 0 | M95: =IF(L95=0,0,VLOOKUP(L95,'Cover Sheet'!$L$14:$M$34,2,0)) -> 0 | N95: 0 | P95: =IF(L95="",0,VLOOKUP(L95,'Cover Sheet'!$L$14:$O$34,4,0)) -> 0 | Q95: - | S95: =IF(R95=0,0,VLOOKUP(R95,'Cover Sheet'!$L$14:$M$34,2,0)) -> 0 | T95: 0 | V95: =IF(R95="",0,VLOOKUP(R95,'Cover Sheet'!$L$14:$O$34,4,0)) -> 0 | W95: - | X95: =IF(C95=0,0,VLOOKUP(C95,'Cover Sheet'!$D$10:$G$22,4,0)) -> 0 | Y95: =IF(F95=0,0,VLOOKUP(F95,'Cover Sheet'!$D$10:$G$36,4,0)) -> 0 | AB95: 0 | AC95: 7.53 | AD95: - | AE95: =IF(AB95=0,"-",(AC95-0.2*AD95)^2/(AC95+0.8*AD95)) -> - | AF95: - | AI95: 0 | AJ95: - | AK95: 0 | AL95: 0 | AN95: 0 | AO95: 7.53 | AP95: - | AQ95: =IF(AN95=0,"-",(AO95-0.2*AP95)^2/(AO95+0.8*AP95)) -> - | AR95: - | AU95: 0 | AV95: - | AW95: 0 | AX95: 0
A96: 78 | E96: =IF($G96=0,0,VLOOKUP(C96,'Cover Sheet'!$D$10:$F$22,3,0)) -> 0 | G96: =D96 -> 0 | H96: =IF($G96=0,0,VLOOKUP(F96,'Cover Sheet'!$D$10:$F$36,3,0)) -> 0 | J96: =IF(I96=0,0,VLOOKUP(I96,'Cover Sheet'!$L$10:$M$13,2,0)) -> 0 | K96: =IF(J96>0,H96*(1-J96),H96) -> 0 | M96: =IF(L96=0,0,VLOOKUP(L96,'Cover Sheet'!$L$14:$M$34,2,0)) -> 0 | N96: =IF(M96>0,ROUNDUP(K96*(1-M96),2),K96) -> 0 | P96: =IF(L96="",0,VLOOKUP(L96,'Cover Sheet'!$L$14:$O$34,4,0)) -> 0 | Q96: =IF(L96="","-",IF(OR(L96="PP1",L96="P2"),P96*$D$10*E96*G96/12*43560,P96*$D$10*K96*G96/12*43560)) -> - | S96: =IF(R96=0,0,VLOOKUP(R96,'Cover Sheet'!$L$14:$M$34,2,0)) -> 0 | T96: =IF(S96>0,N96*(1-S96),N96) -> 0 | V96: =IF(R96="",0,VLOOKUP(R96,'Cover Sheet'!$L$14:$O$34,4,0)) -> 0 | W96: =IF(R96="","-",V96*$D$10*N96*G96/12*43560) -> - | X96: =IF(C96=0,0,VLOOKUP(C96,'Cover Sheet'!$D$10:$G$22,4,0)) -> 0 | Y96: =IF(F96=0,0,VLOOKUP(F96,'Cover Sheet'!$D$10:$G$36,4,0)) -> 0 | AB96: =Y96 -> 0 | AC96: 7.53 | AD96: =IF(AB96=0,"-",1000/AB96-10) -> - | AE96: =IF(AB96=0,"-",(AC96-0.2*AD96)^2/(AC96+0.8*AD96)) -> - | AF96: =Q96 -> - | AH96: =IF(AG96="","",AF96*AG96) ->  | AI96: =IF(OR(AB96=0,L96=""),0,12*AH96/43560/D96) -> 0 | AJ96: - | AK96: =IF(AB96=0,0,1000/(10+5*AC96+10*AJ96-10*(AJ96^2+1.25*AJ96*AC96)^(1/2))) -> 0 | AL96: =AK96-AB96 -> 0 | AN96: =AK96 -> 0 | AO96: 7.53 | AP96: =IF(AN96=0,"-",1000/AN96-10) -> - | AQ96: =IF(AN96=0,"-",(AO96-0.2*AP96)^2/(AO96+0.8*AP96)) -> - | AR96: =W96 -> - | AT96: =IF(AS96="","",AR96*AS96) ->  | AU96: =IF(OR(AN96=0,R96=""),0,12*AT96/43560/D96) -> 0 | AV96: - | AW96: =IF(AN96=0,0,1000/(10+5*AO96+10*AV96-10*(AV96^2+1.25*AV96*AO96)^(1/2))) -> 0 | AX96: =AW96-AN96 -> 0
A97: 79 | E97: =IF($G97=0,0,VLOOKUP(C97,'Cover Sheet'!$D$10:$F$22,3,0)) -> 0 | G97: 0 | H97: =IF($G97=0,0,VLOOKUP(F97,'Cover Sheet'!$D$10:$F$36,3,0)) -> 0 | J97: =IF(I97=0,0,VLOOKUP(I97,'Cover Sheet'!$L$10:$M$13,2,0)) -> 0 | K97: 0 | M97: =IF(L97=0,0,VLOOKUP(L97,'Cover Sheet'!$L$14:$M$34,2,0)) -> 0 | N97: 0 | P97: =IF(L97="",0,VLOOKUP(L97,'Cover Sheet'!$L$14:$O$34,4,0)) -> 0 | Q97: - | S97: =IF(R97=0,0,VLOOKUP(R97,'Cover Sheet'!$L$14:$M$34,2,0)) -> 0 | T97: 0 | V97: =IF(R97="",0,VLOOKUP(R97,'Cover Sheet'!$L$14:$O$34,4,0)) -> 0 | W97: - | X97: =IF(C97=0,0,VLOOKUP(C97,'Cover Sheet'!$D$10:$G$22,4,0)) -> 0 | Y97: =IF(F97=0,0,VLOOKUP(F97,'Cover Sheet'!$D$10:$G$36,4,0)) -> 0 | AB97: 0 | AC97: 7.53 | AD97: - | AE97: - | AF97: - | AI97: 0 | AJ97: - | AK97: 0 | AL97: 0 | AN97: 0 | AO97: 7.53 | AP97: - | AQ97: - | AR97: - | AU97: 0 | AV97: - | AW97: 0 | AX97: 0
A98: 80 | E98: =IF($G98=0,0,VLOOKUP(C98,'Cover Sheet'!$D$10:$F$22,3,0)) -> 0 | G98: 0 | H98: =IF($G98=0,0,VLOOKUP(F98,'Cover Sheet'!$D$10:$F$36,3,0)) -> 0 | J98: =IF(I98=0,0,VLOOKUP(I98,'Cover Sheet'!$L$10:$M$13,2,0)) -> 0 | K98: 0 | M98: =IF(L98=0,0,VLOOKUP(L98,'Cover Sheet'!$L$14:$M$34,2,0)) -> 0 | N98: 0 | P98: =IF(L98="",0,VLOOKUP(L98,'Cover Sheet'!$L$14:$O$34,4,0)) -> 0 | Q98: - | S98: =IF(R98=0,0,VLOOKUP(R98,'Cover Sheet'!$L$14:$M$34,2,0)) -> 0 | T98: 0 | V98: =IF(R98="",0,VLOOKUP(R98,'Cover Sheet'!$L$14:$O$34,4,0)) -> 0 | W98: - | X98: =IF(C98=0,0,VLOOKUP(C98,'Cover Sheet'!$D$10:$G$22,4,0)) -> 0 | Y98: =IF(F98=0,0,VLOOKUP(F98,'Cover Sheet'!$D$10:$G$36,4,0)) -> 0 | AB98: 0 | AC98: 7.53 | AD98: - | AE98: - | AF98: - | AI98: 0 | AJ98: - | AK98: 0 | AL98: 0 | AN98: 0 | AO98: 7.53 | AP98: - | AQ98: - | AR98: - | AU98: 0 | AV98: - | AW98: 0 | AX98: 0
A99: 81 | E99: =IF($G99=0,0,VLOOKUP(C99,'Cover Sheet'!$D$10:$F$22,3,0)) -> 0 | G99: 0 | H99: =IF($G99=0,0,VLOOKUP(F99,'Cover Sheet'!$D$10:$F$36,3,0)) -> 0 | J99: =IF(I99=0,0,VLOOKUP(I99,'Cover Sheet'!$L$10:$M$13,2,0)) -> 0 | K99: 0 | M99: =IF(L99=0,0,VLOOKUP(L99,'Cover Sheet'!$L$14:$M$34,2,0)) -> 0 | N99: 0 | P99: =IF(L99="",0,VLOOKUP(L99,'Cover Sheet'!$L$14:$O$34,4,0)) -> 0 | Q99: - | S99: =IF(R99=0,0,VLOOKUP(R99,'Cover Sheet'!$L$14:$M$34,2,0)) -> 0 | T99: 0 | V99: =IF(R99="",0,VLOOKUP(R99,'Cover Sheet'!$L$14:$O$34,4,0)) -> 0 | W99: - | X99: =IF(C99=0,0,VLOOKUP(C99,'Cover Sheet'!$D$10:$G$22,4,0)) -> 0 | Y99: =IF(F99=0,0,VLOOKUP(F99,'Cover Sheet'!$D$10:$G$36,4,0)) -> 0 | AB99: 0 | AC99: 7.53 | AD99: - | AE99: - | AF99: - | AI99: 0 | AJ99: - | AK99: 0 | AL99: 0 | AN99: 0 | AO99: 7.53 | AP99: - | AQ99: - | AR99: - | AU99: 0 | AV99: - | AW99: 0 | AX99: 0
A100: 82 | E100: =IF($G100=0,0,VLOOKUP(C100,'Cover Sheet'!$D$10:$F$22,3,0)) -> 0 | G100: 0 | H100: =IF($G100=0,0,VLOOKUP(F100,'Cover Sheet'!$D$10:$F$36,3,0)) -> 0 | J100: =IF(I100=0,0,VLOOKUP(I100,'Cover Sheet'!$L$10:$M$13,2,0)) -> 0 | K100: 0 | M100: =IF(L100=0,0,VLOOKUP(L100,'Cover Sheet'!$L$14:$M$34,2,0)) -> 0 | N100: 0 | P100: =IF(L100="",0,VLOOKUP(L100,'Cover Sheet'!$L$14:$O$34,4,0)) -> 0 | Q100: - | S100: =IF(R100=0,0,VLOOKUP(R100,'Cover Sheet'!$L$14:$M$34,2,0)) -> 0 | T100: 0 | V100: =IF(R100="",0,VLOOKUP(R100,'Cover Sheet'!$L$14:$O$34,4,0)) -> 0 | W100: - | X100: =IF(C100=0,0,VLOOKUP(C100,'Cover Sheet'!$D$10:$G$22,4,0)) -> 0 | Y100: =IF(F100=0,0,VLOOKUP(F100,'Cover Sheet'!$D$10:$G$36,4,0)) -> 0 | AB100: 0 | AC100: 7.53 | AD100: - | AE100: - | AF100: - | AI100: 0 | AJ100: - | AK100: 0 | AL100: 0 | AN100: 0 | AO100: 7.53 | AP100: - | AQ100: - | AR100: - | AU100: 0 | AV100: - | AW100: 0 | AX100: 0
A101: 83 | E101: =IF($G101=0,0,VLOOKUP(C101,'Cover Sheet'!$D$10:$F$22,3,0)) -> 0 | G101: 0 | H101: =IF($G101=0,0,VLOOKUP(F101,'Cover Sheet'!$D$10:$F$36,3,0)) -> 0 | J101: =IF(I101=0,0,VLOOKUP(I101,'Cover Sheet'!$L$10:$M$13,2,0)) -> 0 | K101: 0 | M101: =IF(L101=0,0,VLOOKUP(L101,'Cover Sheet'!$L$14:$M$34,2,0)) -> 0 | N101: 0 | P101: =IF(L101="",0,VLOOKUP(L101,'Cover Sheet'!$L$14:$O$34,4,0)) -> 0 | Q101: - | S101: =IF(R101=0,0,VLOOKUP(R101,'Cover Sheet'!$L$14:$M$34,2,0)) -> 0 | T101: 0 | V101: =IF(R101="",0,VLOOKUP(R101,'Cover Sheet'!$L$14:$O$34,4,0)) -> 0 | W101: - | X101: =IF(C101=0,0,VLOOKUP(C101,'Cover Sheet'!$D$10:$G$22,4,0)) -> 0 | Y101: =IF(F101=0,0,VLOOKUP(F101,'Cover Sheet'!$D$10:$G$36,4,0)) -> 0 | AB101: 0 | AC101: 7.53 | AD101: - | AE101: - | AF101: - | AI101: 0 | AJ101: - | AK101: 0 | AL101: 0 | AN101: 0 | AO101: 7.53 | AP101: - | AQ101: - | AR101: - | AU101: 0 | AV101: - | AW101: 0 | AX101: 0
A102: 84 | E102: =IF($G102=0,0,VLOOKUP(C102,'Cover Sheet'!$D$10:$F$22,3,0)) -> 0 | G102: 0 | H102: =IF($G102=0,0,VLOOKUP(F102,'Cover Sheet'!$D$10:$F$36,3,0)) -> 0 | J102: =IF(I102=0,0,VLOOKUP(I102,'Cover Sheet'!$L$10:$M$13,2,0)) -> 0 | K102: 0 | M102: =IF(L102=0,0,VLOOKUP(L102,'Cover Sheet'!$L$14:$M$34,2,0)) -> 0 | N102: 0 | P102: =IF(L102="",0,VLOOKUP(L102,'Cover Sheet'!$L$14:$O$34,4,0)) -> 0 | Q102: - | S102: =IF(R102=0,0,VLOOKUP(R102,'Cover Sheet'!$L$14:$M$34,2,0)) -> 0 | T102: 0 | V102: =IF(R102="",0,VLOOKUP(R102,'Cover Sheet'!$L$14:$O$34,4,0)) -> 0 | W102: - | X102: =IF(C102=0,0,VLOOKUP(C102,'Cover Sheet'!$D$10:$G$22,4,0)) -> 0 | Y102: =IF(F102=0,0,VLOOKUP(F102,'Cover Sheet'!$D$10:$G$36,4,0)) -> 0 | AB102: 0 | AC102: 7.53 | AD102: - | AE102: - | AF102: - | AI102: 0 | AJ102: - | AK102: 0 | AL102: 0 | AN102: 0 | AO102: 7.53 | AP102: - | AQ102: - | AR102: - | AU102: 0 | AV102: - | AW102: 0 | AX102: 0
A103: 85 | E103: =IF($G103=0,0,VLOOKUP(C103,'Cover Sheet'!$D$10:$F$22,3,0)) -> 0 | G103: 0 | H103: =IF($G103=0,0,VLOOKUP(F103,'Cover Sheet'!$D$10:$F$36,3,0)) -> 0 | J103: =IF(I103=0,0,VLOOKUP(I103,'Cover Sheet'!$L$10:$M$13,2,0)) -> 0 | K103: 0 | M103: =IF(L103=0,0,VLOOKUP(L103,'Cover Sheet'!$L$14:$M$34,2,0)) -> 0 | N103: 0 | P103: =IF(L103="",0,VLOOKUP(L103,'Cover Sheet'!$L$14:$O$34,4,0)) -> 0 | Q103: - | S103: =IF(R103=0,0,VLOOKUP(R103,'Cover Sheet'!$L$14:$M$34,2,0)) -> 0 | T103: 0 | V103: =IF(R103="",0,VLOOKUP(R103,'Cover Sheet'!$L$14:$O$34,4,0)) -> 0 | W103: - | X103: =IF(C103=0,0,VLOOKUP(C103,'Cover Sheet'!$D$10:$G$22,4,0)) -> 0 | Y103: =IF(F103=0,0,VLOOKUP(F103,'Cover Sheet'!$D$10:$G$36,4,0)) -> 0 | AB103: 0 | AC103: 7.53 | AD103: - | AE103: - | AF103: - | AI103: 0 | AJ103: - | AK103: 0 | AL103: 0 | AN103: 0 | AO103: 7.53 | AP103: - | AQ103: - | AR103: - | AU103: 0 | AV103: - | AW103: 0 | AX103: 0
A104: 86 | E104: =IF($G104=0,0,VLOOKUP(C104,'Cover Sheet'!$D$10:$F$22,3,0)) -> 0 | G104: 0 | H104: =IF($G104=0,0,VLOOKUP(F104,'Cover Sheet'!$D$10:$F$36,3,0)) -> 0 | J104: =IF(I104=0,0,VLOOKUP(I104,'Cover Sheet'!$L$10:$M$13,2,0)) -> 0 | K104: 0 | M104: =IF(L104=0,0,VLOOKUP(L104,'Cover Sheet'!$L$14:$M$34,2,0)) -> 0 | N104: 0 | P104: =IF(L104="",0,VLOOKUP(L104,'Cover Sheet'!$L$14:$O$34,4,0)) -> 0 | Q104: - | S104: =IF(R104=0,0,VLOOKUP(R104,'Cover Sheet'!$L$14:$M$34,2,0)) -> 0 | T104: 0 | V104: =IF(R104="",0,VLOOKUP(R104,'Cover Sheet'!$L$14:$O$34,4,0)) -> 0 | W104: - | X104: =IF(C104=0,0,VLOOKUP(C104,'Cover Sheet'!$D$10:$G$22,4,0)) -> 0 | Y104: =IF(F104=0,0,VLOOKUP(F104,'Cover Sheet'!$D$10:$G$36,4,0)) -> 0 | AB104: 0 | AC104: 7.53 | AD104: - | AE104: - | AF104: - | AI104: 0 | AJ104: - | AK104: 0 | AL104: 0 | AN104: 0 | AO104: 7.53 | AP104: - | AQ104: - | AR104: - | AU104: 0 | AV104: - | AW104: 0 | AX104: 0
A105: 87 | E105: =IF($G105=0,0,VLOOKUP(C105,'Cover Sheet'!$D$10:$F$22,3,0)) -> 0 | G105: 0 | H105: =IF($G105=0,0,VLOOKUP(F105,'Cover Sheet'!$D$10:$F$36,3,0)) -> 0 | J105: =IF(I105=0,0,VLOOKUP(I105,'Cover Sheet'!$L$10:$M$13,2,0)) -> 0 | K105: 0 | M105: =IF(L105=0,0,VLOOKUP(L105,'Cover Sheet'!$L$14:$M$34,2,0)) -> 0 | N105: 0 | P105: =IF(L105="",0,VLOOKUP(L105,'Cover Sheet'!$L$14:$O$34,4,0)) -> 0 | Q105: - | S105: =IF(R105=0,0,VLOOKUP(R105,'Cover Sheet'!$L$14:$M$34,2,0)) -> 0 | T105: 0 | V105: =IF(R105="",0,VLOOKUP(R105,'Cover Sheet'!$L$14:$O$34,4,0)) -> 0 | W105: - | X105: =IF(C105=0,0,VLOOKUP(C105,'Cover Sheet'!$D$10:$G$22,4,0)) -> 0 | Y105: =IF(F105=0,0,VLOOKUP(F105,'Cover Sheet'!$D$10:$G$36,4,0)) -> 0 | AB105: 0 | AC105: 7.53 | AD105: - | AE105: - | AF105: - | AI105: 0 | AJ105: - | AK105: 0 | AL105: 0 | AN105: 0 | AO105: 7.53 | AP105: - | AQ105: - | AR105: - | AU105: 0 | AV105: - | AW105: 0 | AX105: 0
A106: 88 | E106: =IF($G106=0,0,VLOOKUP(C106,'Cover Sheet'!$D$10:$F$22,3,0)) -> 0 | G106: 0 | H106: =IF($G106=0,0,VLOOKUP(F106,'Cover Sheet'!$D$10:$F$36,3,0)) -> 0 | J106: =IF(I106=0,0,VLOOKUP(I106,'Cover Sheet'!$L$10:$M$13,2,0)) -> 0 | K106: 0 | M106: =IF(L106=0,0,VLOOKUP(L106,'Cover Sheet'!$L$14:$M$34,2,0)) -> 0 | N106: 0 | P106: =IF(L106="",0,VLOOKUP(L106,'Cover Sheet'!$L$14:$O$34,4,0)) -> 0 | Q106: - | S106: =IF(R106=0,0,VLOOKUP(R106,'Cover Sheet'!$L$14:$M$34,2,0)) -> 0 | T106: 0 | V106: =IF(R106="",0,VLOOKUP(R106,'Cover Sheet'!$L$14:$O$34,4,0)) -> 0 | W106: - | X106: =IF(C106=0,0,VLOOKUP(C106,'Cover Sheet'!$D$10:$G$22,4,0)) -> 0 | Y106: =IF(F106=0,0,VLOOKUP(F106,'Cover Sheet'!$D$10:$G$36,4,0)) -> 0 | AB106: 0 | AC106: 7.53 | AD106: - | AE106: - | AF106: - | AI106: 0 | AJ106: - | AK106: 0 | AL106: 0 | AN106: 0 | AO106: 7.53 | AP106: - | AQ106: - | AR106: - | AU106: 0 | AV106: - | AW106: 0 | AX106: 0
A107: 89 | E107: =IF($G107=0,0,VLOOKUP(C107,'Cover Sheet'!$D$10:$F$22,3,0)) -> 0 | G107: 0 | H107: =IF($G107=0,0,VLOOKUP(F107,'Cover Sheet'!$D$10:$F$36,3,0)) -> 0 | J107: =IF(I107=0,0,VLOOKUP(I107,'Cover Sheet'!$L$10:$M$13,2,0)) -> 0 | K107: 0 | M107: =IF(L107=0,0,VLOOKUP(L107,'Cover Sheet'!$L$14:$M$34,2,0)) -> 0 | N107: 0 | P107: =IF(L107="",0,VLOOKUP(L107,'Cover Sheet'!$L$14:$O$34,4,0)) -> 0 | Q107: - | S107: =IF(R107=0,0,VLOOKUP(R107,'Cover Sheet'!$L$14:$M$34,2,0)) -> 0 | T107: 0 | V107: =IF(R107="",0,VLOOKUP(R107,'Cover Sheet'!$L$14:$O$34,4,0)) -> 0 | W107: - | X107: =IF(C107=0,0,VLOOKUP(C107,'Cover Sheet'!$D$10:$G$22,4,0)) -> 0 | Y107: =IF(F107=0,0,VLOOKUP(F107,'Cover Sheet'!$D$10:$G$36,4,0)) -> 0 | AB107: 0 | AC107: 7.53 | AD107: - | AE107: - | AF107: - | AI107: 0 | AJ107: - | AK107: 0 | AL107: 0 | AN107: 0 | AO107: 7.53 | AP107: - | AQ107: - | AR107: - | AU107: 0 | AV107: - | AW107: 0 | AX107: 0
A108: 90 | E108: =IF($G108=0,0,VLOOKUP(C108,'Cover Sheet'!$D$10:$F$22,3,0)) -> 0 | G108: 0 | H108: =IF($G108=0,0,VLOOKUP(F108,'Cover Sheet'!$D$10:$F$36,3,0)) -> 0 | J108: =IF(I108=0,0,VLOOKUP(I108,'Cover Sheet'!$L$10:$M$13,2,0)) -> 0 | K108: 0 | M108: =IF(L108=0,0,VLOOKUP(L108,'Cover Sheet'!$L$14:$M$34,2,0)) -> 0 | N108: 0 | P108: =IF(L108="",0,VLOOKUP(L108,'Cover Sheet'!$L$14:$O$34,4,0)) -> 0 | Q108: - | S108: =IF(R108=0,0,VLOOKUP(R108,'Cover Sheet'!$L$14:$M$34,2,0)) -> 0 | T108: 0 | V108: =IF(R108="",0,VLOOKUP(R108,'Cover Sheet'!$L$14:$O$34,4,0)) -> 0 | W108: - | X108: =IF(C108=0,0,VLOOKUP(C108,'Cover Sheet'!$D$10:$G$22,4,0)) -> 0 | Y108: =IF(F108=0,0,VLOOKUP(F108,'Cover Sheet'!$D$10:$G$36,4,0)) -> 0 | AB108: 0 | AC108: 7.53 | AD108: - | AE108: - | AF108: - | AI108: 0 | AJ108: - | AK108: 0 | AL108: 0 | AN108: 0 | AO108: 7.53 | AP108: - | AQ108: - | AR108: - | AU108: 0 | AV108: - | AW108: 0 | AX108: 0
A109: 91 | E109: =IF($G109=0,0,VLOOKUP(C109,'Cover Sheet'!$D$10:$F$22,3,0)) -> 0 | G109: 0 | H109: =IF($G109=0,0,VLOOKUP(F109,'Cover Sheet'!$D$10:$F$36,3,0)) -> 0 | J109: =IF(I109=0,0,VLOOKUP(I109,'Cover Sheet'!$L$10:$M$13,2,0)) -> 0 | K109: 0 | M109: =IF(L109=0,0,VLOOKUP(L109,'Cover Sheet'!$L$14:$M$34,2,0)) -> 0 | N109: 0 | P109: =IF(L109="",0,VLOOKUP(L109,'Cover Sheet'!$L$14:$O$34,4,0)) -> 0 | Q109: - | S109: =IF(R109=0,0,VLOOKUP(R109,'Cover Sheet'!$L$14:$M$34,2,0)) -> 0 | T109: 0 | V109: =IF(R109="",0,VLOOKUP(R109,'Cover Sheet'!$L$14:$O$34,4,0)) -> 0 | W109: - | X109: =IF(C109=0,0,VLOOKUP(C109,'Cover Sheet'!$D$10:$G$22,4,0)) -> 0 | Y109: =IF(F109=0,0,VLOOKUP(F109,'Cover Sheet'!$D$10:$G$36,4,0)) -> 0 | AB109: 0 | AC109: 7.53 | AD109: - | AE109: - | AF109: - | AI109: 0 | AJ109: - | AK109: 0 | AL109: 0 | AN109: 0 | AO109: 7.53 | AP109: - | AQ109: - | AR109: - | AU109: 0 | AV109: - | AW109: 0 | AX109: 0
A110: 92 | E110: =IF($G110=0,0,VLOOKUP(C110,'Cover Sheet'!$D$10:$F$22,3,0)) -> 0 | G110: =D110 -> 0 | H110: =IF($G110=0,0,VLOOKUP(F110,'Cover Sheet'!$D$10:$F$36,3,0)) -> 0 | J110: =IF(I110=0,0,VLOOKUP(I110,'Cover Sheet'!$L$10:$M$13,2,0)) -> 0 | K110: =IF(J110>0,H110*(1-J110),H110) -> 0 | M110: =IF(L110=0,0,VLOOKUP(L110,'Cover Sheet'!$L$14:$M$34,2,0)) -> 0 | N110: =IF(M110>0,ROUNDUP(K110*(1-M110),2),K110) -> 0 | P110: =IF(L110="",0,VLOOKUP(L110,'Cover Sheet'!$L$14:$O$34,4,0)) -> 0 | Q110: =IF(L110="","-",IF(OR(L110="PP1",L110="P2"),P110*$D$10*E110*G110/12*43560,P110*$D$10*K110*G110/12*43560)) -> - | S110: =IF(R110=0,0,VLOOKUP(R110,'Cover Sheet'!$L$14:$M$34,2,0)) -> 0 | T110: =IF(S110>0,N110*(1-S110),N110) -> 0 | V110: =IF(R110="",0,VLOOKUP(R110,'Cover Sheet'!$L$14:$O$34,4,0)) -> 0 | W110: =IF(R110="","-",V110*$D$10*N110*G110/12*43560) -> - | X110: =IF(C110=0,0,VLOOKUP(C110,'Cover Sheet'!$D$10:$G$22,4,0)) -> 0 | Y110: =IF(F110=0,0,VLOOKUP(F110,'Cover Sheet'!$D$10:$G$36,4,0)) -> 0 | AB110: =Y110 -> 0 | AC110: 7.53 | AD110: =IF(AB110=0,"-",1000/AB110-10) -> - | AE110: =IF(AB110=0,"-",(AC110-0.2*AD110)^2/(AC110+0.8*AD110)) -> - | AF110: =Q110 -> - | AH110: =IF(AG110="","",AF110*AG110) ->  | AI110: =IF(OR(AB110=0,L110=""),0,12*AH110/43560/D110) -> 0 | AJ110: - | AK110: =IF(AB110=0,0,1000/(10+5*AC110+10*AJ110-10*(AJ110^2+1.25*AJ110*AC110)^(1/2))) -> 0 | AL110: =AK110-AB110 -> 0 | AN110: =AK110 -> 0 | AO110: 7.53 | AP110: =IF(AN110=0,"-",1000/AN110-10) -> - | AQ110: =IF(AN110=0,"-",(AO110-0.2*AP110)^2/(AO110+0.8*AP110)) -> - | AR110: =W110 -> - | AT110: =IF(AS110="","",AR110*AS110) ->  | AU110: =IF(OR(AN110=0,R110=""),0,12*AT110/43560/D110) -> 0 | AV110: - | AW110: =IF(AN110=0,0,1000/(10+5*AO110+10*AV110-10*(AV110^2+1.25*AV110*AO110)^(1/2))) -> 0 | AX110: =AW110-AN110 -> 0
A111: 93 | E111: =IF($G111=0,0,VLOOKUP(C111,'Cover Sheet'!$D$10:$F$22,3,0)) -> 0 | G111: 0 | H111: =IF($G111=0,0,VLOOKUP(F111,'Cover Sheet'!$D$10:$F$36,3,0)) -> 0 | J111: =IF(I111=0,0,VLOOKUP(I111,'Cover Sheet'!$L$10:$M$13,2,0)) -> 0 | K111: 0 | M111: =IF(L111=0,0,VLOOKUP(L111,'Cover Sheet'!$L$14:$M$34,2,0)) -> 0 | N111: 0 | P111: =IF(L111="",0,VLOOKUP(L111,'Cover Sheet'!$L$14:$O$34,4,0)) -> 0 | Q111: - | S111: =IF(R111=0,0,VLOOKUP(R111,'Cover Sheet'!$L$14:$M$34,2,0)) -> 0 | T111: 0 | V111: =IF(R111="",0,VLOOKUP(R111,'Cover Sheet'!$L$14:$O$34,4,0)) -> 0 | W111: - | X111: =IF(C111=0,0,VLOOKUP(C111,'Cover Sheet'!$D$10:$G$22,4,0)) -> 0 | Y111: =IF(F111=0,0,VLOOKUP(F111,'Cover Sheet'!$D$10:$G$36,4,0)) -> 0 | AB111: 0 | AC111: 7.53 | AD111: - | AE111: - | AF111: - | AI111: 0 | AJ111: - | AK111: 0 | AL111: 0 | AN111: 0 | AO111: 7.53 | AP111: - | AQ111: - | AR111: - | AU111: 0 | AV111: - | AW111: 0 | AX111: 0
A112: 94 | E112: =IF($G112=0,0,VLOOKUP(C112,'Cover Sheet'!$D$10:$F$22,3,0)) -> 0 | G112: 0 | H112: =IF($G112=0,0,VLOOKUP(F112,'Cover Sheet'!$D$10:$F$36,3,0)) -> 0 | J112: =IF(I112=0,0,VLOOKUP(I112,'Cover Sheet'!$L$10:$M$13,2,0)) -> 0 | K112: 0 | M112: =IF(L112=0,0,VLOOKUP(L112,'Cover Sheet'!$L$14:$M$34,2,0)) -> 0 | N112: 0 | P112: =IF(L112="",0,VLOOKUP(L112,'Cover Sheet'!$L$14:$O$34,4,0)) -> 0 | Q112: - | S112: =IF(R112=0,0,VLOOKUP(R112,'Cover Sheet'!$L$14:$M$34,2,0)) -> 0 | T112: 0 | V112: =IF(R112="",0,VLOOKUP(R112,'Cover Sheet'!$L$14:$O$34,4,0)) -> 0 | W112: - | X112: =IF(C112=0,0,VLOOKUP(C112,'Cover Sheet'!$D$10:$G$22,4,0)) -> 0 | Y112: =IF(F112=0,0,VLOOKUP(F112,'Cover Sheet'!$D$10:$G$36,4,0)) -> 0 | AB112: 0 | AC112: 7.53 | AD112: - | AE112: - | AF112: - | AI112: 0 | AJ112: - | AK112: 0 | AL112: 0 | AN112: 0 | AO112: 7.53 | AP112: - | AQ112: - | AR112: - | AU112: 0 | AV112: - | AW112: 0 | AX112: 0
A113: 95 | E113: =IF($G113=0,0,VLOOKUP(C113,'Cover Sheet'!$D$10:$F$22,3,0)) -> 0 | G113: 0 | H113: =IF($G113=0,0,VLOOKUP(F113,'Cover Sheet'!$D$10:$F$36,3,0)) -> 0 | J113: =IF(I113=0,0,VLOOKUP(I113,'Cover Sheet'!$L$10:$M$13,2,0)) -> 0 | K113: 0 | M113: =IF(L113=0,0,VLOOKUP(L113,'Cover Sheet'!$L$14:$M$34,2,0)) -> 0 | N113: 0 | P113: =IF(L113="",0,VLOOKUP(L113,'Cover Sheet'!$L$14:$O$34,4,0)) -> 0 | Q113: - | S113: =IF(R113=0,0,VLOOKUP(R113,'Cover Sheet'!$L$14:$M$34,2,0)) -> 0 | T113: 0 | V113: =IF(R113="",0,VLOOKUP(R113,'Cover Sheet'!$L$14:$O$34,4,0)) -> 0 | W113: - | X113: =IF(C113=0,0,VLOOKUP(C113,'Cover Sheet'!$D$10:$G$22,4,0)) -> 0 | Y113: =IF(F113=0,0,VLOOKUP(F113,'Cover Sheet'!$D$10:$G$36,4,0)) -> 0 | AB113: 0 | AC113: 7.53 | AD113: - | AE113: - | AF113: - | AI113: 0 | AJ113: - | AK113: 0 | AL113: 0 | AN113: 0 | AO113: 7.53 | AP113: - | AQ113: - | AR113: - | AU113: 0 | AV113: - | AW113: 0 | AX113: 0
A114: 96 | E114: =IF($G114=0,0,VLOOKUP(C114,'Cover Sheet'!$D$10:$F$22,3,0)) -> 0 | G114: =D114 -> 0 | H114: =IF($G114=0,0,VLOOKUP(F114,'Cover Sheet'!$D$10:$F$36,3,0)) -> 0 | J114: =IF(I114=0,0,VLOOKUP(I114,'Cover Sheet'!$L$10:$M$13,2,0)) -> 0 | K114: =IF(J114>0,H114*(1-J114),H114) -> 0 | M114: =IF(L114=0,0,VLOOKUP(L114,'Cover Sheet'!$L$14:$M$34,2,0)) -> 0 | N114: =IF(M114>0,ROUNDUP(K114*(1-M114),2),K114) -> 0 | P114: =IF(L114="",0,VLOOKUP(L114,'Cover Sheet'!$L$14:$O$34,4,0)) -> 0 | Q114: =IF(L114="","-",IF(OR(L114="PP1",L114="P2"),P114*$D$10*E114*G114/12*43560,P114*$D$10*K114*G114/12*43560)) -> - | S114: =IF(R114=0,0,VLOOKUP(R114,'Cover Sheet'!$L$14:$M$34,2,0)) -> 0 | T114: =IF(S114>0,N114*(1-S114),N114) -> 0 | V114: =IF(R114="",0,VLOOKUP(R114,'Cover Sheet'!$L$14:$O$34,4,0)) -> 0 | W114: =IF(R114="","-",V114*$D$10*N114*G114/12*43560) -> - | X114: =IF(C114=0,0,VLOOKUP(C114,'Cover Sheet'!$D$10:$G$22,4,0)) -> 0 | Y114: =IF(F114=0,0,VLOOKUP(F114,'Cover Sheet'!$D$10:$G$36,4,0)) -> 0 | AB114: =Y114 -> 0 | AC114: 7.53 | AD114: =IF(AB114=0,"-",1000/AB114-10) -> - | AE114: - | AF114: =Q114 -> - | AH114: =IF(AG114="","",AF114*AG114) ->  | AI114: =IF(OR(AB114=0,L114=""),0,12*AH114/43560/D114) -> 0 | AJ114: - | AK114: =IF(AB114=0,0,1000/(10+5*AC114+10*AJ114-10*(AJ114^2+1.25*AJ114*AC114)^(1/2))) -> 0 | AL114: =AK114-AB114 -> 0 | AN114: =AK114 -> 0 | AO114: 7.53 | AP114: =IF(AN114=0,"-",1000/AN114-10) -> - | AQ114: - | AR114: =W114 -> - | AT114: =IF(AS114="","",AR114*AS114) ->  | AU114: =IF(OR(AN114=0,R114=""),0,12*AT114/43560/D114) -> 0 | AV114: - | AW114: =IF(AN114=0,0,1000/(10+5*AO114+10*AV114-10*(AV114^2+1.25*AV114*AO114)^(1/2))) -> 0 | AX114: =AW114-AN114 -> 0
A115: 97 | E115: =IF($G115=0,0,VLOOKUP(C115,'Cover Sheet'!$D$10:$F$22,3,0)) -> 0 | G115: 0 | H115: =IF($G115=0,0,VLOOKUP(F115,'Cover Sheet'!$D$10:$F$36,3,0)) -> 0 | J115: =IF(I115=0,0,VLOOKUP(I115,'Cover Sheet'!$L$10:$M$13,2,0)) -> 0 | K115: 0 | M115: =IF(L115=0,0,VLOOKUP(L115,'Cover Sheet'!$L$14:$M$34,2,0)) -> 0 | N115: 0 | P115: =IF(L115="",0,VLOOKUP(L115,'Cover Sheet'!$L$14:$O$34,4,0)) -> 0 | Q115: - | S115: =IF(R115=0,0,VLOOKUP(R115,'Cover Sheet'!$L$14:$M$34,2,0)) -> 0 | T115: 0 | V115: =IF(R115="",0,VLOOKUP(R115,'Cover Sheet'!$L$14:$O$34,4,0)) -> 0 | W115: - | X115: =IF(C115=0,0,VLOOKUP(C115,'Cover Sheet'!$D$10:$G$22,4,0)) -> 0 | Y115: =IF(F115=0,0,VLOOKUP(F115,'Cover Sheet'!$D$10:$G$36,4,0)) -> 0 | AB115: 0 | AC115: 7.53 | AD115: - | AE115: - | AF115: - | AI115: 0 | AJ115: - | AK115: 0 | AL115: 0 | AN115: 0 | AO115: 7.53 | AP115: - | AQ115: - | AR115: - | AU115: 0 | AV115: - | AW115: 0 | AX115: 0
A116: 98 | E116: =IF($G116=0,0,VLOOKUP(C116,'Cover Sheet'!$D$10:$F$22,3,0)) -> 0 | G116: 0 | H116: =IF($G116=0,0,VLOOKUP(F116,'Cover Sheet'!$D$10:$F$36,3,0)) -> 0 | J116: =IF(I116=0,0,VLOOKUP(I116,'Cover Sheet'!$L$10:$M$13,2,0)) -> 0 | K116: 0 | M116: =IF(L116=0,0,VLOOKUP(L116,'Cover Sheet'!$L$14:$M$34,2,0)) -> 0 | N116: 0 | P116: =IF(L116="",0,VLOOKUP(L116,'Cover Sheet'!$L$14:$O$34,4,0)) -> 0 | Q116: - | S116: =IF(R116=0,0,VLOOKUP(R116,'Cover Sheet'!$L$14:$M$34,2,0)) -> 0 | T116: 0 | V116: =IF(R116="",0,VLOOKUP(R116,'Cover Sheet'!$L$14:$O$34,4,0)) -> 0 | W116: - | X116: =IF(C116=0,0,VLOOKUP(C116,'Cover Sheet'!$D$10:$G$22,4,0)) -> 0 | Y116: =IF(F116=0,0,VLOOKUP(F116,'Cover Sheet'!$D$10:$G$36,4,0)) -> 0 | AB116: 0 | AC116: 7.53 | AD116: - | AE116: - | AF116: - | AI116: 0 | AJ116: - | AK116: 0 | AL116: 0 | AN116: 0 | AO116: 7.53 | AP116: - | AQ116: - | AR116: - | AU116: 0 | AV116: - | AW116: 0 | AX116: 0
A117: 99 | E117: =IF($G117=0,0,VLOOKUP(C117,'Cover Sheet'!$D$10:$F$22,3,0)) -> 0 | G117: 0 | H117: =IF($G117=0,0,VLOOKUP(F117,'Cover Sheet'!$D$10:$F$36,3,0)) -> 0 | J117: =IF(I117=0,0,VLOOKUP(I117,'Cover Sheet'!$L$10:$M$13,2,0)) -> 0 | K117: 0 | M117: =IF(L117=0,0,VLOOKUP(L117,'Cover Sheet'!$L$14:$M$34,2,0)) -> 0 | N117: 0 | P117: =IF(L117="",0,VLOOKUP(L117,'Cover Sheet'!$L$14:$O$34,4,0)) -> 0 | Q117: - | S117: =IF(R117=0,0,VLOOKUP(R117,'Cover Sheet'!$L$14:$M$34,2,0)) -> 0 | T117: 0 | V117: =IF(R117="",0,VLOOKUP(R117,'Cover Sheet'!$L$14:$O$34,4,0)) -> 0 | W117: - | X117: =IF(C117=0,0,VLOOKUP(C117,'Cover Sheet'!$D$10:$G$22,4,0)) -> 0 | Y117: =IF(F117=0,0,VLOOKUP(F117,'Cover Sheet'!$D$10:$G$36,4,0)) -> 0 | AB117: 0 | AC117: 7.53 | AD117: - | AE117: - | AF117: - | AI117: 0 | AJ117: - | AK117: 0 | AL117: 0 | AN117: 0 | AO117: 7.53 | AP117: - | AQ117: - | AR117: - | AU117: 0 | AV117: - | AW117: 0 | AX117: 0
A118: 100 | E118: =IF($G118=0,0,VLOOKUP(C118,'Cover Sheet'!$D$10:$F$22,3,0)) -> 0 | G118: 0 | H118: =IF($G118=0,0,VLOOKUP(F118,'Cover Sheet'!$D$10:$F$36,3,0)) -> 0 | J118: =IF(I118=0,0,VLOOKUP(I118,'Cover Sheet'!$L$10:$M$13,2,0)) -> 0 | K118: =IF(J118>0,H118*(1-J118),H118) -> 0 | M118: =IF(L118=0,0,VLOOKUP(L118,'Cover Sheet'!$L$14:$M$34,2,0)) -> 0 | N118: =IF(M118>0,ROUNDUP(K118*(1-M118),2),K118) -> 0 | P118: =IF(L118="",0,VLOOKUP(L118,'Cover Sheet'!$L$14:$O$34,4,0)) -> 0 | Q118: =IF(L118="","-",IF(OR(L118="PP1",L118="P2"),P118*$D$10*E118*G118/12*43560,P118*$D$10*K118*G118/12*43560)) -> - | S118: =IF(R118=0,0,VLOOKUP(R118,'Cover Sheet'!$L$14:$M$34,2,0)) -> 0 | T118: =IF(S118>0,N118*(1-S118),N118) -> 0 | V118: =IF(R118="",0,VLOOKUP(R118,'Cover Sheet'!$L$14:$O$34,4,0)) -> 0 | W118: - | X118: =IF(C118=0,0,VLOOKUP(C118,'Cover Sheet'!$D$10:$G$22,4,0)) -> 0 | Y118: =IF(F118=0,0,VLOOKUP(F118,'Cover Sheet'!$D$10:$G$36,4,0)) -> 0 | AB118: =Y118 -> 0 | AC118: 7.53 | AD118: - | AE118: =IF(AB118=0,"-",(AC118-0.2*AD118)^2/(AC118+0.8*AD118)) -> - | AF118: =Q118 -> - | AH118: =IF(AG118="","",AF118*AG118) ->  | AI118: 0 | AJ118: - | AK118: =IF(AB118=0,0,1000/(10+5*AC118+10*AJ118-10*(AJ118^2+1.25*AJ118*AC118)^(1/2))) -> 0 | AL118: =AK118-AB118 -> 0 | AN118: =AK118 -> 0 | AO118: 7.53 | AP118: - | AQ118: - | AR118: =W118 -> - | AT118: =IF(AS118="","",AR118*AS118) ->  | AU118: =IF(OR(AN118=0,R118=""),0,12*AT118/43560/D118) -> 0 | AV118: - | AW118: 0 | AX118: =AW118-AN118 -> 0
A119: =A118+1 -> 101 | E119: =IF($G119=0,0,VLOOKUP(C119,'Cover Sheet'!$D$10:$F$22,3,0)) -> 0 | G119: 0 | H119: =IF($G119=0,0,VLOOKUP(F119,'Cover Sheet'!$D$10:$F$36,3,0)) -> 0 | J119: =IF(I119=0,0,VLOOKUP(I119,'Cover Sheet'!$L$10:$M$13,2,0)) -> 0 | K119: =IF(J119>0,H119*(1-J119),H119) -> 0 | M119: =IF(L119=0,0,VLOOKUP(L119,'Cover Sheet'!$L$14:$M$34,2,0)) -> 0 | N119: =IF(M119>0,ROUNDUP(K119*(1-M119),2),K119) -> 0 | P119: =IF(L119="",0,VLOOKUP(L119,'Cover Sheet'!$L$14:$O$34,4,0)) -> 0 | Q119: =IF(L119="","-",IF(OR(L119="PP1",L119="P2"),P119*$D$10*E119*G119/12*43560,P119*$D$10*K119*G119/12*43560)) -> - | S119: =IF(R119=0,0,VLOOKUP(R119,'Cover Sheet'!$L$14:$M$34,2,0)) -> 0 | T119: =IF(S119>0,N119*(1-S119),N119) -> 0 | V119: =IF(R119="",0,VLOOKUP(R119,'Cover Sheet'!$L$14:$O$34,4,0)) -> 0 | W119: - | X119: =IF(C119=0,0,VLOOKUP(C119,'Cover Sheet'!$D$10:$G$22,4,0)) -> 0 | Y119: =IF(F119=0,0,VLOOKUP(F119,'Cover Sheet'!$D$10:$G$36,4,0)) -> 0 | AB119: =Y119 -> 0 | AC119: =$AC$19 -> 7.53 | AD119: - | AE119: =IF(AB119=0,"-",(AC119-0.2*AD119)^2/(AC119+0.8*AD119)) -> - | AF119: =Q119 -> - | AH119: =IF(AG119="","",AF119*AG119) ->  | AI119: 0 | AJ119: - | AK119: =IF(AB119=0,0,1000/(10+5*AC119+10*AJ119-10*(AJ119^2+1.25*AJ119*AC119)^(1/2))) -> 0 | AL119: =AK119-AB119 -> 0 | AN119: =AK119 -> 0 | AO119: =$AC$19 -> 7.53 | AP119: - | AQ119: - | AR119: =W119 -> - | AT119: =IF(AS119="","",AR119*AS119) ->  | AU119: =IF(OR(AN119=0,R119=""),0,12*AT119/43560/D119) -> 0 | AV119: - | AW119: 0 | AX119: =AW119-AN119 -> 0
A120: 102 | E120: =IF($G120=0,0,VLOOKUP(C120,'Cover Sheet'!$D$10:$F$22,3,0)) -> 0 | G120: 0 | H120: =IF($G120=0,0,VLOOKUP(F120,'Cover Sheet'!$D$10:$F$36,3,0)) -> 0 | J120: =IF(I120=0,0,VLOOKUP(I120,'Cover Sheet'!$L$10:$M$13,2,0)) -> 0 | K120: 0 | M120: =IF(L120=0,0,VLOOKUP(L120,'Cover Sheet'!$L$14:$M$34,2,0)) -> 0 | N120: 0 | P120: =IF(L120="",0,VLOOKUP(L120,'Cover Sheet'!$L$14:$O$34,4,0)) -> 0 | Q120: =IF(L120="","-",IF(OR(L120="PP1",L120="P2"),P120*$D$10*E120*G120/12*43560,P120*$D$10*K120*G120/12*43560)) -> - | S120: =IF(R120=0,0,VLOOKUP(R120,'Cover Sheet'!$L$14:$M$34,2,0)) -> 0 | T120: =IF(S120>0,N120*(1-S120),N120) -> 0 | V120: =IF(R120="",0,VLOOKUP(R120,'Cover Sheet'!$L$14:$O$34,4,0)) -> 0 | W120: - | X120: =IF(C120=0,0,VLOOKUP(C120,'Cover Sheet'!$D$10:$G$22,4,0)) -> 0 | Y120: =IF(F120=0,0,VLOOKUP(F120,'Cover Sheet'!$D$10:$G$36,4,0)) -> 0 | AB120: 0 | AC120: 7.53 | AD120: - | AE120: - | AF120: =Q120 -> - | AI120: 0 | AJ120: - | AK120: 0 | AL120: 0 | AN120: 0 | AO120: 7.53 | AP120: - | AQ120: - | AR120: - | AU120: 0 | AV120: - | AW120: 0 | AX120: 0
A121: 103 | E121: =IF($G121=0,0,VLOOKUP(C121,'Cover Sheet'!$D$10:$F$22,3,0)) -> 0 | G121: 0 | H121: =IF($G121=0,0,VLOOKUP(F121,'Cover Sheet'!$D$10:$F$36,3,0)) -> 0 | J121: =IF(I121=0,0,VLOOKUP(I121,'Cover Sheet'!$L$10:$M$13,2,0)) -> 0 | K121: 0 | M121: =IF(L121=0,0,VLOOKUP(L121,'Cover Sheet'!$L$14:$M$34,2,0)) -> 0 | N121: 0 | P121: =IF(L121="",0,VLOOKUP(L121,'Cover Sheet'!$L$14:$O$34,4,0)) -> 0 | Q121: - | S121: =IF(R121=0,0,VLOOKUP(R121,'Cover Sheet'!$L$14:$M$34,2,0)) -> 0 | T121: 0 | V121: =IF(R121="",0,VLOOKUP(R121,'Cover Sheet'!$L$14:$O$34,4,0)) -> 0 | W121: - | X121: =IF(C121=0,0,VLOOKUP(C121,'Cover Sheet'!$D$10:$G$22,4,0)) -> 0 | Y121: =IF(F121=0,0,VLOOKUP(F121,'Cover Sheet'!$D$10:$G$36,4,0)) -> 0 | AB121: 0 | AC121: 7.53 | AD121: - | AE121: - | AF121: - | AI121: 0 | AJ121: - | AK121: 0 | AL121: 0 | AN121: 0 | AO121: 7.53 | AP121: - | AQ121: - | AR121: - | AU121: 0 | AV121: - | AW121: 0 | AX121: 0
A122: 104 | E122: =IF($G122=0,0,VLOOKUP(C122,'Cover Sheet'!$D$10:$F$22,3,0)) -> 0 | G122: 0 | H122: =IF($G122=0,0,VLOOKUP(F122,'Cover Sheet'!$D$10:$F$36,3,0)) -> 0 | J122: =IF(I122=0,0,VLOOKUP(I122,'Cover Sheet'!$L$10:$M$13,2,0)) -> 0 | K122: 0 | M122: =IF(L122=0,0,VLOOKUP(L122,'Cover Sheet'!$L$14:$M$34,2,0)) -> 0 | N122: 0 | P122: =IF(L122="",0,VLOOKUP(L122,'Cover Sheet'!$L$14:$O$34,4,0)) -> 0 | Q122: - | S122: =IF(R122=0,0,VLOOKUP(R122,'Cover Sheet'!$L$14:$M$34,2,0)) -> 0 | T122: 0 | V122: =IF(R122="",0,VLOOKUP(R122,'Cover Sheet'!$L$14:$O$34,4,0)) -> 0 | W122: - | X122: =IF(C122=0,0,VLOOKUP(C122,'Cover Sheet'!$D$10:$G$22,4,0)) -> 0 | Y122: =IF(F122=0,0,VLOOKUP(F122,'Cover Sheet'!$D$10:$G$36,4,0)) -> 0 | AB122: 0 | AC122: 7.53 | AD122: - | AE122: - | AF122: - | AI122: 0 | AJ122: - | AK122: 0 | AL122: 0 | AN122: 0 | AO122: 7.53 | AP122: - | AQ122: - | AR122: - | AU122: 0 | AV122: - | AW122: 0 | AX122: 0
A123: 105 | E123: =IF($G123=0,0,VLOOKUP(C123,'Cover Sheet'!$D$10:$F$22,3,0)) -> 0 | G123: 0 | H123: =IF($G123=0,0,VLOOKUP(F123,'Cover Sheet'!$D$10:$F$36,3,0)) -> 0 | J123: =IF(I123=0,0,VLOOKUP(I123,'Cover Sheet'!$L$10:$M$13,2,0)) -> 0 | K123: 0 | M123: =IF(L123=0,0,VLOOKUP(L123,'Cover Sheet'!$L$14:$M$34,2,0)) -> 0 | N123: 0 | P123: =IF(L123="",0,VLOOKUP(L123,'Cover Sheet'!$L$14:$O$34,4,0)) -> 0 | Q123: - | S123: =IF(R123=0,0,VLOOKUP(R123,'Cover Sheet'!$L$14:$M$34,2,0)) -> 0 | T123: 0 | V123: =IF(R123="",0,VLOOKUP(R123,'Cover Sheet'!$L$14:$O$34,4,0)) -> 0 | W123: - | X123: =IF(C123=0,0,VLOOKUP(C123,'Cover Sheet'!$D$10:$G$22,4,0)) -> 0 | Y123: =IF(F123=0,0,VLOOKUP(F123,'Cover Sheet'!$D$10:$G$36,4,0)) -> 0 | AB123: 0 | AC123: 7.53 | AD123: - | AE123: - | AF123: - | AI123: 0 | AJ123: - | AK123: 0 | AL123: 0 | AN123: 0 | AO123: 7.53 | AP123: - | AQ123: - | AR123: - | AU123: 0 | AV123: - | AW123: 0 | AX123: 0
A124: 106 | E124: =IF($G124=0,0,VLOOKUP(C124,'Cover Sheet'!$D$10:$F$22,3,0)) -> 0 | G124: 0 | H124: =IF($G124=0,0,VLOOKUP(F124,'Cover Sheet'!$D$10:$F$36,3,0)) -> 0 | J124: =IF(I124=0,0,VLOOKUP(I124,'Cover Sheet'!$L$10:$M$13,2,0)) -> 0 | K124: 0 | M124: =IF(L124=0,0,VLOOKUP(L124,'Cover Sheet'!$L$14:$M$34,2,0)) -> 0 | N124: 0 | P124: =IF(L124="",0,VLOOKUP(L124,'Cover Sheet'!$L$14:$O$34,4,0)) -> 0 | Q124: - | S124: =IF(R124=0,0,VLOOKUP(R124,'Cover Sheet'!$L$14:$M$34,2,0)) -> 0 | T124: 0 | V124: =IF(R124="",0,VLOOKUP(R124,'Cover Sheet'!$L$14:$O$34,4,0)) -> 0 | W124: - | X124: =IF(C124=0,0,VLOOKUP(C124,'Cover Sheet'!$D$10:$G$22,4,0)) -> 0 | Y124: =IF(F124=0,0,VLOOKUP(F124,'Cover Sheet'!$D$10:$G$36,4,0)) -> 0 | AB124: 0 | AC124: 7.53 | AD124: - | AE124: - | AF124: - | AI124: 0 | AJ124: - | AK124: 0 | AL124: 0 | AN124: 0 | AO124: 7.53 | AP124: - | AQ124: - | AR124: - | AU124: 0 | AV124: - | AW124: 0 | AX124: 0
A125: 107 | E125: =IF($G125=0,0,VLOOKUP(C125,'Cover Sheet'!$D$10:$F$22,3,0)) -> 0 | G125: 0 | H125: =IF($G125=0,0,VLOOKUP(F125,'Cover Sheet'!$D$10:$F$36,3,0)) -> 0 | J125: =IF(I125=0,0,VLOOKUP(I125,'Cover Sheet'!$L$10:$M$13,2,0)) -> 0 | K125: 0 | M125: =IF(L125=0,0,VLOOKUP(L125,'Cover Sheet'!$L$14:$M$34,2,0)) -> 0 | N125: 0 | P125: =IF(L125="",0,VLOOKUP(L125,'Cover Sheet'!$L$14:$O$34,4,0)) -> 0 | Q125: - | S125: =IF(R125=0,0,VLOOKUP(R125,'Cover Sheet'!$L$14:$M$34,2,0)) -> 0 | T125: 0 | V125: =IF(R125="",0,VLOOKUP(R125,'Cover Sheet'!$L$14:$O$34,4,0)) -> 0 | W125: - | X125: =IF(C125=0,0,VLOOKUP(C125,'Cover Sheet'!$D$10:$G$22,4,0)) -> 0 | Y125: =IF(F125=0,0,VLOOKUP(F125,'Cover Sheet'!$D$10:$G$36,4,0)) -> 0 | AB125: 0 | AC125: 7.53 | AD125: - | AE125: - | AF125: - | AI125: 0 | AJ125: - | AK125: 0 | AL125: 0 | AN125: 0 | AO125: 7.53 | AP125: - | AQ125: - | AR125: - | AU125: 0 | AV125: - | AW125: 0 | AX125: 0
A126: 108 | E126: =IF($G126=0,0,VLOOKUP(C126,'Cover Sheet'!$D$10:$F$22,3,0)) -> 0 | G126: 0 | H126: =IF($G126=0,0,VLOOKUP(F126,'Cover Sheet'!$D$10:$F$36,3,0)) -> 0 | J126: =IF(I126=0,0,VLOOKUP(I126,'Cover Sheet'!$L$10:$M$13,2,0)) -> 0 | K126: 0 | M126: =IF(L126=0,0,VLOOKUP(L126,'Cover Sheet'!$L$14:$M$34,2,0)) -> 0 | N126: 0 | P126: =IF(L126="",0,VLOOKUP(L126,'Cover Sheet'!$L$14:$O$34,4,0)) -> 0 | Q126: - | S126: =IF(R126=0,0,VLOOKUP(R126,'Cover Sheet'!$L$14:$M$34,2,0)) -> 0 | T126: 0 | V126: =IF(R126="",0,VLOOKUP(R126,'Cover Sheet'!$L$14:$O$34,4,0)) -> 0 | W126: - | X126: =IF(C126=0,0,VLOOKUP(C126,'Cover Sheet'!$D$10:$G$22,4,0)) -> 0 | Y126: =IF(F126=0,0,VLOOKUP(F126,'Cover Sheet'!$D$10:$G$36,4,0)) -> 0 | AB126: 0 | AC126: 7.53 | AD126: - | AE126: - | AF126: - | AI126: 0 | AJ126: - | AK126: 0 | AL126: 0 | AN126: 0 | AO126: 7.53 | AP126: - | AQ126: - | AR126: - | AU126: 0 | AV126: - | AW126: 0 | AX126: 0
A127: 109 | E127: =IF($G127=0,0,VLOOKUP(C127,'Cover Sheet'!$D$10:$F$22,3,0)) -> 0 | G127: 0 | H127: =IF($G127=0,0,VLOOKUP(F127,'Cover Sheet'!$D$10:$F$36,3,0)) -> 0 | J127: =IF(I127=0,0,VLOOKUP(I127,'Cover Sheet'!$L$10:$M$13,2,0)) -> 0 | K127: 0 | M127: =IF(L127=0,0,VLOOKUP(L127,'Cover Sheet'!$L$14:$M$34,2,0)) -> 0 | N127: 0 | P127: =IF(L127="",0,VLOOKUP(L127,'Cover Sheet'!$L$14:$O$34,4,0)) -> 0 | Q127: - | S127: =IF(R127=0,0,VLOOKUP(R127,'Cover Sheet'!$L$14:$M$34,2,0)) -> 0 | T127: 0 | V127: =IF(R127="",0,VLOOKUP(R127,'Cover Sheet'!$L$14:$O$34,4,0)) -> 0 | W127: - | X127: =IF(C127=0,0,VLOOKUP(C127,'Cover Sheet'!$D$10:$G$22,4,0)) -> 0 | Y127: =IF(F127=0,0,VLOOKUP(F127,'Cover Sheet'!$D$10:$G$36,4,0)) -> 0 | AB127: 0 | AC127: 7.53 | AD127: - | AE127: - | AF127: - | AI127: 0 | AJ127: - | AK127: 0 | AL127: 0 | AN127: 0 | AO127: 7.53 | AP127: - | AQ127: - | AR127: - | AU127: 0 | AV127: - | AW127: 0 | AX127: 0
A128: 110 | E128: =IF($G128=0,0,VLOOKUP(C128,'Cover Sheet'!$D$10:$F$22,3,0)) -> 0 | G128: 0 | H128: =IF($G128=0,0,VLOOKUP(F128,'Cover Sheet'!$D$10:$F$36,3,0)) -> 0 | J128: =IF(I128=0,0,VLOOKUP(I128,'Cover Sheet'!$L$10:$M$13,2,0)) -> 0 | K128: 0 | M128: =IF(L128=0,0,VLOOKUP(L128,'Cover Sheet'!$L$14:$M$34,2,0)) -> 0 | N128: 0 | P128: =IF(L128="",0,VLOOKUP(L128,'Cover Sheet'!$L$14:$O$34,4,0)) -> 0 | Q128: - | S128: =IF(R128=0,0,VLOOKUP(R128,'Cover Sheet'!$L$14:$M$34,2,0)) -> 0 | T128: 0 | V128: =IF(R128="",0,VLOOKUP(R128,'Cover Sheet'!$L$14:$O$34,4,0)) -> 0 | W128: - | X128: =IF(C128=0,0,VLOOKUP(C128,'Cover Sheet'!$D$10:$G$22,4,0)) -> 0 | Y128: =IF(F128=0,0,VLOOKUP(F128,'Cover Sheet'!$D$10:$G$36,4,0)) -> 0 | AB128: 0 | AC128: 7.53 | AD128: - | AE128: - | AF128: - | AI128: 0 | AJ128: - | AK128: 0 | AL128: 0 | AN128: 0 | AO128: 7.53 | AP128: - | AQ128: - | AR128: - | AU128: 0 | AV128: - | AW128: 0 | AX128: 0
A129: 111 | E129: =IF($G129=0,0,VLOOKUP(C129,'Cover Sheet'!$D$10:$F$22,3,0)) -> 0 | G129: 0 | H129: =IF($G129=0,0,VLOOKUP(F129,'Cover Sheet'!$D$10:$F$36,3,0)) -> 0 | J129: =IF(I129=0,0,VLOOKUP(I129,'Cover Sheet'!$L$10:$M$13,2,0)) -> 0 | K129: 0 | M129: =IF(L129=0,0,VLOOKUP(L129,'Cover Sheet'!$L$14:$M$34,2,0)) -> 0 | N129: 0 | P129: =IF(L129="",0,VLOOKUP(L129,'Cover Sheet'!$L$14:$O$34,4,0)) -> 0 | Q129: - | S129: =IF(R129=0,0,VLOOKUP(R129,'Cover Sheet'!$L$14:$M$34,2,0)) -> 0 | T129: 0 | V129: =IF(R129="",0,VLOOKUP(R129,'Cover Sheet'!$L$14:$O$34,4,0)) -> 0 | W129: - | X129: =IF(C129=0,0,VLOOKUP(C129,'Cover Sheet'!$D$10:$G$22,4,0)) -> 0 | Y129: =IF(F129=0,0,VLOOKUP(F129,'Cover Sheet'!$D$10:$G$36,4,0)) -> 0 | AB129: 0 | AC129: 7.53 | AD129: - | AE129: =IF(AB129=0,"-",(AC129-0.2*AD129)^2/(AC129+0.8*AD129)) -> - | AF129: - | AI129: 0 | AJ129: - | AK129: 0 | AL129: 0 | AN129: 0 | AO129: 7.53 | AP129: - | AQ129: =IF(AN129=0,"-",(AO129-0.2*AP129)^2/(AO129+0.8*AP129)) -> - | AR129: - | AU129: 0 | AV129: - | AW129: 0 | AX129: 0
A130: 112 | E130: =IF($G130=0,0,VLOOKUP(C130,'Cover Sheet'!$D$10:$F$22,3,0)) -> 0 | G130: 0 | H130: =IF($G130=0,0,VLOOKUP(F130,'Cover Sheet'!$D$10:$F$36,3,0)) -> 0 | J130: =IF(I130=0,0,VLOOKUP(I130,'Cover Sheet'!$L$10:$M$13,2,0)) -> 0 | K130: 0 | M130: =IF(L130=0,0,VLOOKUP(L130,'Cover Sheet'!$L$14:$M$34,2,0)) -> 0 | N130: 0 | P130: =IF(L130="",0,VLOOKUP(L130,'Cover Sheet'!$L$14:$O$34,4,0)) -> 0 | Q130: - | S130: =IF(R130=0,0,VLOOKUP(R130,'Cover Sheet'!$L$14:$M$34,2,0)) -> 0 | T130: 0 | V130: =IF(R130="",0,VLOOKUP(R130,'Cover Sheet'!$L$14:$O$34,4,0)) -> 0 | W130: - | X130: =IF(C130=0,0,VLOOKUP(C130,'Cover Sheet'!$D$10:$G$22,4,0)) -> 0 | Y130: =IF(F130=0,0,VLOOKUP(F130,'Cover Sheet'!$D$10:$G$36,4,0)) -> 0 | AB130: 0 | AC130: 7.53 | AD130: - | AE130: =IF(AB130=0,"-",(AC130-0.2*AD130)^2/(AC130+0.8*AD130)) -> - | AF130: - | AI130: 0 | AJ130: - | AK130: 0 | AL130: 0 | AN130: 0 | AO130: 7.53 | AP130: - | AQ130: =IF(AN130=0,"-",(AO130-0.2*AP130)^2/(AO130+0.8*AP130)) -> - | AR130: - | AU130: 0 | AV130: - | AW130: 0 | AX130: 0
A131: 113 | E131: =IF($G131=0,0,VLOOKUP(C131,'Cover Sheet'!$D$10:$F$22,3,0)) -> 0 | G131: 0 | H131: =IF($G131=0,0,VLOOKUP(F131,'Cover Sheet'!$D$10:$F$36,3,0)) -> 0 | J131: =IF(I131=0,0,VLOOKUP(I131,'Cover Sheet'!$L$10:$M$13,2,0)) -> 0 | K131: 0 | M131: =IF(L131=0,0,VLOOKUP(L131,'Cover Sheet'!$L$14:$M$34,2,0)) -> 0 | N131: 0 | P131: =IF(L131="",0,VLOOKUP(L131,'Cover Sheet'!$L$14:$O$34,4,0)) -> 0 | Q131: - | S131: =IF(R131=0,0,VLOOKUP(R131,'Cover Sheet'!$L$14:$M$34,2,0)) -> 0 | T131: 0 | V131: =IF(R131="",0,VLOOKUP(R131,'Cover Sheet'!$L$14:$O$34,4,0)) -> 0 | W131: - | X131: =IF(C131=0,0,VLOOKUP(C131,'Cover Sheet'!$D$10:$G$22,4,0)) -> 0 | Y131: =IF(F131=0,0,VLOOKUP(F131,'Cover Sheet'!$D$10:$G$36,4,0)) -> 0 | AB131: 0 | AC131: 7.53 | AD131: - | AE131: - | AF131: - | AI131: 0 | AJ131: - | AK131: 0 | AL131: 0 | AN131: 0 | AO131: 7.53 | AP131: - | AQ131: - | AR131: - | AU131: 0 | AV131: - | AW131: 0 | AX131: 0
A132: 114 | E132: =IF($G132=0,0,VLOOKUP(C132,'Cover Sheet'!$D$10:$F$22,3,0)) -> 0 | G132: 0 | H132: =IF($G132=0,0,VLOOKUP(F132,'Cover Sheet'!$D$10:$F$36,3,0)) -> 0 | J132: =IF(I132=0,0,VLOOKUP(I132,'Cover Sheet'!$L$10:$M$13,2,0)) -> 0 | K132: 0 | M132: =IF(L132=0,0,VLOOKUP(L132,'Cover Sheet'!$L$14:$M$34,2,0)) -> 0 | N132: 0 | P132: =IF(L132="",0,VLOOKUP(L132,'Cover Sheet'!$L$14:$O$34,4,0)) -> 0 | Q132: - | S132: =IF(R132=0,0,VLOOKUP(R132,'Cover Sheet'!$L$14:$M$34,2,0)) -> 0 | T132: 0 | V132: =IF(R132="",0,VLOOKUP(R132,'Cover Sheet'!$L$14:$O$34,4,0)) -> 0 | W132: - | X132: =IF(C132=0,0,VLOOKUP(C132,'Cover Sheet'!$D$10:$G$22,4,0)) -> 0 | Y132: =IF(F132=0,0,VLOOKUP(F132,'Cover Sheet'!$D$10:$G$36,4,0)) -> 0 | AB132: 0 | AC132: 7.53 | AD132: - | AE132: - | AF132: - | AI132: 0 | AJ132: - | AK132: 0 | AL132: 0 | AN132: 0 | AO132: 7.53 | AP132: - | AQ132: - | AR132: - | AU132: 0 | AV132: - | AW132: 0 | AX132: 0
A133: 115 | E133: =IF($G133=0,0,VLOOKUP(C133,'Cover Sheet'!$D$10:$F$22,3,0)) -> 0 | G133: =D133 -> 0 | H133: =IF($G133=0,0,VLOOKUP(F133,'Cover Sheet'!$D$10:$F$36,3,0)) -> 0 | J133: =IF(I133=0,0,VLOOKUP(I133,'Cover Sheet'!$L$10:$M$13,2,0)) -> 0 | K133: 0 | M133: =IF(L133=0,0,VLOOKUP(L133,'Cover Sheet'!$L$14:$M$34,2,0)) -> 0 | N133: 0 | P133: =IF(L133="",0,VLOOKUP(L133,'Cover Sheet'!$L$14:$O$34,4,0)) -> 0 | Q133: - | S133: =IF(R133=0,0,VLOOKUP(R133,'Cover Sheet'!$L$14:$M$34,2,0)) -> 0 | T133: 0 | V133: =IF(R133="",0,VLOOKUP(R133,'Cover Sheet'!$L$14:$O$34,4,0)) -> 0 | W133: =IF(R133="","-",V133*$D$10*N133*G133/12*43560) -> - | X133: =IF(C133=0,0,VLOOKUP(C133,'Cover Sheet'!$D$10:$G$22,4,0)) -> 0 | Y133: =IF(F133=0,0,VLOOKUP(F133,'Cover Sheet'!$D$10:$G$36,4,0)) -> 0 | AB133: 0 | AC133: 7.53 | AD133: =IF(AB133=0,"-",1000/AB133-10) -> - | AE133: - | AF133: - | AI133: =IF(OR(AB133=0,L133=""),0,12*AH133/43560/D133) -> 0 | AJ133: - | AK133: 0 | AL133: 0 | AN133: 0 | AO133: 7.53 | AP133: =IF(AN133=0,"-",1000/AN133-10) -> - | AQ133: - | AR133: - | AU133: 0 | AV133: - | AW133: =IF(AN133=0,0,1000/(10+5*AO133+10*AV133-10*(AV133^2+1.25*AV133*AO133)^(1/2))) -> 0 | AX133: 0
A134: 116 | E134: =IF($G134=0,0,VLOOKUP(C134,'Cover Sheet'!$D$10:$F$22,3,0)) -> 0 | G134: 0 | H134: =IF($G134=0,0,VLOOKUP(F134,'Cover Sheet'!$D$10:$F$36,3,0)) -> 0 | J134: =IF(I134=0,0,VLOOKUP(I134,'Cover Sheet'!$L$10:$M$13,2,0)) -> 0 | K134: 0 | M134: =IF(L134=0,0,VLOOKUP(L134,'Cover Sheet'!$L$14:$M$34,2,0)) -> 0 | N134: 0 | P134: =IF(L134="",0,VLOOKUP(L134,'Cover Sheet'!$L$14:$O$34,4,0)) -> 0 | Q134: - | S134: =IF(R134=0,0,VLOOKUP(R134,'Cover Sheet'!$L$14:$M$34,2,0)) -> 0 | T134: 0 | V134: =IF(R134="",0,VLOOKUP(R134,'Cover Sheet'!$L$14:$O$34,4,0)) -> 0 | W134: - | X134: =IF(C134=0,0,VLOOKUP(C134,'Cover Sheet'!$D$10:$G$22,4,0)) -> 0 | Y134: =IF(F134=0,0,VLOOKUP(F134,'Cover Sheet'!$D$10:$G$36,4,0)) -> 0 | AB134: 0 | AC134: 7.53 | AD134: - | AE134: - | AF134: - | AI134: 0 | AJ134: - | AK134: 0 | AL134: 0 | AN134: 0 | AO134: 7.53 | AP134: - | AQ134: - | AR134: - | AU134: 0 | AV134: - | AW134: 0 | AX134: 0
A135: 117 | E135: =IF($G135=0,0,VLOOKUP(C135,'Cover Sheet'!$D$10:$F$22,3,0)) -> 0 | G135: 0 | H135: =IF($G135=0,0,VLOOKUP(F135,'Cover Sheet'!$D$10:$F$36,3,0)) -> 0 | J135: =IF(I135=0,0,VLOOKUP(I135,'Cover Sheet'!$L$10:$M$13,2,0)) -> 0 | K135: 0 | M135: =IF(L135=0,0,VLOOKUP(L135,'Cover Sheet'!$L$14:$M$34,2,0)) -> 0 | N135: 0 | P135: =IF(L135="",0,VLOOKUP(L135,'Cover Sheet'!$L$14:$O$34,4,0)) -> 0 | Q135: - | S135: =IF(R135=0,0,VLOOKUP(R135,'Cover Sheet'!$L$14:$M$34,2,0)) -> 0 | T135: 0 | V135: =IF(R135="",0,VLOOKUP(R135,'Cover Sheet'!$L$14:$O$34,4,0)) -> 0 | W135: - | X135: =IF(C135=0,0,VLOOKUP(C135,'Cover Sheet'!$D$10:$G$22,4,0)) -> 0 | Y135: =IF(F135=0,0,VLOOKUP(F135,'Cover Sheet'!$D$10:$G$36,4,0)) -> 0 | AB135: 0 | AC135: 7.53 | AD135: - | AE135: - | AF135: - | AI135: 0 | AJ135: - | AK135: 0 | AL135: 0 | AN135: 0 | AO135: 7.53 | AP135: - | AQ135: - | AR135: - | AU135: 0 | AV135: - | AW135: 0 | AX135: 0
A136: 118 | E136: =IF($G136=0,0,VLOOKUP(C136,'Cover Sheet'!$D$10:$F$22,3,0)) -> 0 | G136: 0 | H136: =IF($G136=0,0,VLOOKUP(F136,'Cover Sheet'!$D$10:$F$36,3,0)) -> 0 | J136: =IF(I136=0,0,VLOOKUP(I136,'Cover Sheet'!$L$10:$M$13,2,0)) -> 0 | K136: 0 | M136: =IF(L136=0,0,VLOOKUP(L136,'Cover Sheet'!$L$14:$M$34,2,0)) -> 0 | N136: 0 | P136: =IF(L136="",0,VLOOKUP(L136,'Cover Sheet'!$L$14:$O$34,4,0)) -> 0 | Q136: - | S136: =IF(R136=0,0,VLOOKUP(R136,'Cover Sheet'!$L$14:$M$34,2,0)) -> 0 | T136: 0 | V136: =IF(R136="",0,VLOOKUP(R136,'Cover Sheet'!$L$14:$O$34,4,0)) -> 0 | W136: - | X136: =IF(C136=0,0,VLOOKUP(C136,'Cover Sheet'!$D$10:$G$22,4,0)) -> 0 | Y136: =IF(F136=0,0,VLOOKUP(F136,'Cover Sheet'!$D$10:$G$36,4,0)) -> 0 | AB136: 0 | AC136: 7.53 | AD136: - | AE136: - | AF136: - | AI136: 0 | AJ136: - | AK136: 0 | AL136: 0 | AN136: 0 | AO136: 7.53 | AP136: - | AQ136: - | AR136: - | AU136: 0 | AV136: - | AW136: 0 | AX136: 0
A137: 119 | E137: =IF($G137=0,0,VLOOKUP(C137,'Cover Sheet'!$D$10:$F$22,3,0)) -> 0 | G137: 0 | H137: =IF($G137=0,0,VLOOKUP(F137,'Cover Sheet'!$D$10:$F$36,3,0)) -> 0 | J137: =IF(I137=0,0,VLOOKUP(I137,'Cover Sheet'!$L$10:$M$13,2,0)) -> 0 | K137: 0 | M137: =IF(L137=0,0,VLOOKUP(L137,'Cover Sheet'!$L$14:$M$34,2,0)) -> 0 | N137: 0 | P137: =IF(L137="",0,VLOOKUP(L137,'Cover Sheet'!$L$14:$O$34,4,0)) -> 0 | Q137: - | S137: =IF(R137=0,0,VLOOKUP(R137,'Cover Sheet'!$L$14:$M$34,2,0)) -> 0 | T137: 0 | V137: =IF(R137="",0,VLOOKUP(R137,'Cover Sheet'!$L$14:$O$34,4,0)) -> 0 | W137: - | X137: =IF(C137=0,0,VLOOKUP(C137,'Cover Sheet'!$D$10:$G$22,4,0)) -> 0 | Y137: =IF(F137=0,0,VLOOKUP(F137,'Cover Sheet'!$D$10:$G$36,4,0)) -> 0 | AB137: 0 | AC137: 7.53 | AD137: - | AE137: - | AF137: - | AI137: 0 | AJ137: - | AK137: 0 | AL137: 0 | AN137: 0 | AO137: 7.53 | AP137: - | AQ137: - | AR137: - | AU137: 0 | AV137: - | AW137: 0 | AX137: 0
A138: 120 | E138: =IF($G138=0,0,VLOOKUP(C138,'Cover Sheet'!$D$10:$F$22,3,0)) -> 0 | G138: 0 | H138: =IF($G138=0,0,VLOOKUP(F138,'Cover Sheet'!$D$10:$F$36,3,0)) -> 0 | J138: =IF(I138=0,0,VLOOKUP(I138,'Cover Sheet'!$L$10:$M$13,2,0)) -> 0 | K138: 0 | M138: =IF(L138=0,0,VLOOKUP(L138,'Cover Sheet'!$L$14:$M$34,2,0)) -> 0 | N138: 0 | P138: =IF(L138="",0,VLOOKUP(L138,'Cover Sheet'!$L$14:$O$34,4,0)) -> 0 | Q138: - | S138: =IF(R138=0,0,VLOOKUP(R138,'Cover Sheet'!$L$14:$M$34,2,0)) -> 0 | T138: 0 | V138: =IF(R138="",0,VLOOKUP(R138,'Cover Sheet'!$L$14:$O$34,4,0)) -> 0 | W138: - | X138: =IF(C138=0,0,VLOOKUP(C138,'Cover Sheet'!$D$10:$G$22,4,0)) -> 0 | Y138: =IF(F138=0,0,VLOOKUP(F138,'Cover Sheet'!$D$10:$G$36,4,0)) -> 0 | AB138: 0 | AC138: 7.53 | AD138: - | AE138: - | AF138: - | AI138: 0 | AJ138: - | AK138: 0 | AL138: 0 | AN138: 0 | AO138: 7.53 | AP138: - | AQ138: - | AR138: - | AU138: 0 | AV138: - | AW138: 0 | AX138: 0
A139: 121 | E139: =IF($G139=0,0,VLOOKUP(C139,'Cover Sheet'!$D$10:$F$22,3,0)) -> 0 | G139: 0 | H139: =IF($G139=0,0,VLOOKUP(F139,'Cover Sheet'!$D$10:$F$36,3,0)) -> 0 | J139: =IF(I139=0,0,VLOOKUP(I139,'Cover Sheet'!$L$10:$M$13,2,0)) -> 0 | K139: 0 | M139: =IF(L139=0,0,VLOOKUP(L139,'Cover Sheet'!$L$14:$M$34,2,0)) -> 0 | N139: 0 | P139: =IF(L139="",0,VLOOKUP(L139,'Cover Sheet'!$L$14:$O$34,4,0)) -> 0 | Q139: - | S139: =IF(R139=0,0,VLOOKUP(R139,'Cover Sheet'!$L$14:$M$34,2,0)) -> 0 | T139: 0 | V139: =IF(R139="",0,VLOOKUP(R139,'Cover Sheet'!$L$14:$O$34,4,0)) -> 0 | W139: - | X139: =IF(C139=0,0,VLOOKUP(C139,'Cover Sheet'!$D$10:$G$22,4,0)) -> 0 | Y139: =IF(F139=0,0,VLOOKUP(F139,'Cover Sheet'!$D$10:$G$36,4,0)) -> 0 | AB139: 0 | AC139: 7.53 | AD139: - | AE139: =IF(AB139=0,"-",(AC139-0.2*AD139)^2/(AC139+0.8*AD139)) -> - | AF139: - | AI139: 0 | AJ139: - | AK139: 0 | AL139: 0 | AN139: 0 | AO139: 7.53 | AP139: - | AQ139: =IF(AN139=0,"-",(AO139-0.2*AP139)^2/(AO139+0.8*AP139)) -> - | AR139: - | AU139: 0 | AV139: - | AW139: 0 | AX139: 0
A140: 122 | E140: =IF($G140=0,0,VLOOKUP(C140,'Cover Sheet'!$D$10:$F$22,3,0)) -> 0 | G140: 0 | H140: =IF($G140=0,0,VLOOKUP(F140,'Cover Sheet'!$D$10:$F$36,3,0)) -> 0 | J140: =IF(I140=0,0,VLOOKUP(I140,'Cover Sheet'!$L$10:$M$13,2,0)) -> 0 | K140: 0 | M140: =IF(L140=0,0,VLOOKUP(L140,'Cover Sheet'!$L$14:$M$34,2,0)) -> 0 | N140: 0 | P140: =IF(L140="",0,VLOOKUP(L140,'Cover Sheet'!$L$14:$O$34,4,0)) -> 0 | Q140: - | S140: =IF(R140=0,0,VLOOKUP(R140,'Cover Sheet'!$L$14:$M$34,2,0)) -> 0 | T140: 0 | V140: =IF(R140="",0,VLOOKUP(R140,'Cover Sheet'!$L$14:$O$34,4,0)) -> 0 | W140: - | X140: =IF(C140=0,0,VLOOKUP(C140,'Cover Sheet'!$D$10:$G$22,4,0)) -> 0 | Y140: =IF(F140=0,0,VLOOKUP(F140,'Cover Sheet'!$D$10:$G$36,4,0)) -> 0 | AB140: 0 | AC140: 7.53 | AD140: - | AE140: =IF(AB140=0,"-",(AC140-0.2*AD140)^2/(AC140+0.8*AD140)) -> - | AF140: - | AI140: 0 | AJ140: - | AK140: 0 | AL140: 0 | AN140: 0 | AO140: 7.53 | AP140: - | AQ140: =IF(AN140=0,"-",(AO140-0.2*AP140)^2/(AO140+0.8*AP140)) -> - | AR140: - | AU140: 0 | AV140: - | AW140: 0 | AX140: 0
A141: 123 | E141: =IF($G141=0,0,VLOOKUP(C141,'Cover Sheet'!$D$10:$F$22,3,0)) -> 0 | G141: 0 | H141: =IF($G141=0,0,VLOOKUP(F141,'Cover Sheet'!$D$10:$F$36,3,0)) -> 0 | J141: =IF(I141=0,0,VLOOKUP(I141,'Cover Sheet'!$L$10:$M$13,2,0)) -> 0 | K141: 0 | M141: =IF(L141=0,0,VLOOKUP(L141,'Cover Sheet'!$L$14:$M$34,2,0)) -> 0 | N141: 0 | P141: =IF(L141="",0,VLOOKUP(L141,'Cover Sheet'!$L$14:$O$34,4,0)) -> 0 | Q141: - | S141: =IF(R141=0,0,VLOOKUP(R141,'Cover Sheet'!$L$14:$M$34,2,0)) -> 0 | T141: 0 | V141: =IF(R141="",0,VLOOKUP(R141,'Cover Sheet'!$L$14:$O$34,4,0)) -> 0 | W141: - | X141: =IF(C141=0,0,VLOOKUP(C141,'Cover Sheet'!$D$10:$G$22,4,0)) -> 0 | Y141: =IF(F141=0,0,VLOOKUP(F141,'Cover Sheet'!$D$10:$G$36,4,0)) -> 0 | AB141: 0 | AC141: 7.53 | AD141: - | AE141: - | AF141: - | AI141: 0 | AJ141: - | AK141: 0 | AL141: 0 | AN141: 0 | AO141: 7.53 | AP141: - | AQ141: - | AR141: - | AU141: 0 | AV141: - | AW141: 0 | AX141: 0
A142: 124 | E142: =IF($G142=0,0,VLOOKUP(C142,'Cover Sheet'!$D$10:$F$22,3,0)) -> 0 | G142: 0 | H142: =IF($G142=0,0,VLOOKUP(F142,'Cover Sheet'!$D$10:$F$36,3,0)) -> 0 | J142: =IF(I142=0,0,VLOOKUP(I142,'Cover Sheet'!$L$10:$M$13,2,0)) -> 0 | K142: 0 | M142: =IF(L142=0,0,VLOOKUP(L142,'Cover Sheet'!$L$14:$M$34,2,0)) -> 0 | N142: 0 | P142: =IF(L142="",0,VLOOKUP(L142,'Cover Sheet'!$L$14:$O$34,4,0)) -> 0 | Q142: - | S142: =IF(R142=0,0,VLOOKUP(R142,'Cover Sheet'!$L$14:$M$34,2,0)) -> 0 | T142: 0 | V142: =IF(R142="",0,VLOOKUP(R142,'Cover Sheet'!$L$14:$O$34,4,0)) -> 0 | W142: - | X142: =IF(C142=0,0,VLOOKUP(C142,'Cover Sheet'!$D$10:$G$22,4,0)) -> 0 | Y142: =IF(F142=0,0,VLOOKUP(F142,'Cover Sheet'!$D$10:$G$36,4,0)) -> 0 | AB142: 0 | AC142: 7.53 | AD142: - | AE142: - | AF142: - | AI142: 0 | AJ142: - | AK142: 0 | AL142: 0 | AN142: 0 | AO142: 7.53 | AP142: - | AQ142: - | AR142: - | AU142: 0 | AV142: - | AW142: 0 | AX142: 0
A143: 125 | E143: =IF($G143=0,0,VLOOKUP(C143,'Cover Sheet'!$D$10:$F$22,3,0)) -> 0 | G143: 0 | H143: =IF($G143=0,0,VLOOKUP(F143,'Cover Sheet'!$D$10:$F$36,3,0)) -> 0 | J143: =IF(I143=0,0,VLOOKUP(I143,'Cover Sheet'!$L$10:$M$13,2,0)) -> 0 | K143: 0 | M143: =IF(L143=0,0,VLOOKUP(L143,'Cover Sheet'!$L$14:$M$34,2,0)) -> 0 | N143: 0 | P143: =IF(L143="",0,VLOOKUP(L143,'Cover Sheet'!$L$14:$O$34,4,0)) -> 0 | Q143: - | S143: =IF(R143=0,0,VLOOKUP(R143,'Cover Sheet'!$L$14:$M$34,2,0)) -> 0 | T143: 0 | V143: =IF(R143="",0,VLOOKUP(R143,'Cover Sheet'!$L$14:$O$34,4,0)) -> 0 | W143: - | X143: =IF(C143=0,0,VLOOKUP(C143,'Cover Sheet'!$D$10:$G$22,4,0)) -> 0 | Y143: =IF(F143=0,0,VLOOKUP(F143,'Cover Sheet'!$D$10:$G$36,4,0)) -> 0 | AB143: 0 | AC143: 7.53 | AD143: - | AE143: - | AF143: - | AI143: 0 | AJ143: - | AK143: 0 | AL143: 0 | AN143: 0 | AO143: 7.53 | AP143: - | AQ143: - | AR143: - | AU143: 0 | AV143: - | AW143: 0 | AX143: 0
A144: 126 | E144: =IF($G144=0,0,VLOOKUP(C144,'Cover Sheet'!$D$10:$F$22,3,0)) -> 0 | G144: 0 | H144: =IF($G144=0,0,VLOOKUP(F144,'Cover Sheet'!$D$10:$F$34,3,0)) -> 0 | J144: =IF(I144=0,0,VLOOKUP(I144,'Cover Sheet'!$L$10:$M$13,2,0)) -> 0 | K144: 0 | M144: =IF(L144=0,0,VLOOKUP(L144,'Cover Sheet'!$L$14:$M$34,2,0)) -> 0 | N144: 0 | P144: =IF(L144="",0,VLOOKUP(L144,'Cover Sheet'!$L$10:$O$34,4,0)) -> 0 | Q144: - | S144: =IF(R144=0,0,VLOOKUP(R144,'Cover Sheet'!$L$14:$M$34,2,0)) -> 0 | T144: 0 | V144: =IF(R144="",0,VLOOKUP(R144,'Cover Sheet'!$L$10:$O$34,4,0)) -> 0 | W144: - | X144: =IF(C144=0,0,VLOOKUP(C144,'Cover Sheet'!$D$10:$G$22,4,0)) -> 0 | Y144: =IF(F144=0,0,VLOOKUP(F144,'Cover Sheet'!$D$10:$G$34,4,0)) -> 0 | AB144: 0 | AC144: 7.53 | AD144: - | AE144: - | AF144: - | AI144: 0 | AJ144: - | AK144: 0 | AL144: 0 | AN144: 0 | AO144: 7.53 | AP144: - | AQ144: - | AR144: - | AU144: 0 | AV144: - | AW144: 0 | AX144: 0
A145: 127 | E145: =IF($G145=0,0,VLOOKUP(C145,'Cover Sheet'!$D$10:$F$22,3,0)) -> 0 | G145: 0 | H145: =IF($G145=0,0,VLOOKUP(F145,'Cover Sheet'!$D$10:$F$34,3,0)) -> 0 | J145: =IF(I145=0,0,VLOOKUP(I145,'Cover Sheet'!$L$10:$M$13,2,0)) -> 0 | K145: 0 | M145: =IF(L145=0,0,VLOOKUP(L145,'Cover Sheet'!$L$14:$M$34,2,0)) -> 0 | N145: 0 | P145: =IF(L145="",0,VLOOKUP(L145,'Cover Sheet'!$L$10:$O$34,4,0)) -> 0 | Q145: - | S145: =IF(R145=0,0,VLOOKUP(R145,'Cover Sheet'!$L$14:$M$34,2,0)) -> 0 | T145: 0 | V145: =IF(R145="",0,VLOOKUP(R145,'Cover Sheet'!$L$10:$O$34,4,0)) -> 0 | W145: - | X145: =IF(C145=0,0,VLOOKUP(C145,'Cover Sheet'!$D$10:$G$22,4,0)) -> 0 | Y145: =IF(F145=0,0,VLOOKUP(F145,'Cover Sheet'!$D$10:$G$34,4,0)) -> 0 | AB145: 0 | AC145: 7.53 | AD145: - | AE145: - | AF145: - | AI145: 0 | AJ145: - | AK145: 0 | AL145: 0 | AN145: 0 | AO145: 7.53 | AP145: - | AQ145: - | AR145: - | AU145: 0 | AV145: - | AW145: 0 | AX145: 0
A146: 128 | E146: =IF($G146=0,0,VLOOKUP(C146,'Cover Sheet'!$D$10:$F$22,3,0)) -> 0 | G146: 0 | H146: =IF($G146=0,0,VLOOKUP(F146,'Cover Sheet'!$D$10:$F$34,3,0)) -> 0 | J146: =IF(I146=0,0,VLOOKUP(I146,'Cover Sheet'!$L$10:$M$13,2,0)) -> 0 | K146: 0 | M146: =IF(L146=0,0,VLOOKUP(L146,'Cover Sheet'!$L$14:$M$34,2,0)) -> 0 | N146: 0 | P146: =IF(L146="",0,VLOOKUP(L146,'Cover Sheet'!$L$10:$O$34,4,0)) -> 0 | Q146: - | S146: =IF(R146=0,0,VLOOKUP(R146,'Cover Sheet'!$L$14:$M$34,2,0)) -> 0 | T146: 0 | V146: =IF(R146="",0,VLOOKUP(R146,'Cover Sheet'!$L$10:$O$34,4,0)) -> 0 | W146: - | X146: =IF(C146=0,0,VLOOKUP(C146,'Cover Sheet'!$D$10:$G$22,4,0)) -> 0 | Y146: =IF(F146=0,0,VLOOKUP(F146,'Cover Sheet'!$D$10:$G$34,4,0)) -> 0 | AB146: 0 | AC146: 7.53 | AD146: - | AE146: - | AF146: - | AI146: 0 | AJ146: - | AK146: 0 | AL146: 0 | AN146: 0 | AO146: 7.53 | AP146: - | AQ146: - | AR146: - | AU146: 0 | AV146: - | AW146: 0 | AX146: 0
A147: 129 | E147: =IF($G147=0,0,VLOOKUP(C147,'Cover Sheet'!$D$10:$F$22,3,0)) -> 0 | G147: 0 | H147: =IF($G147=0,0,VLOOKUP(F147,'Cover Sheet'!$D$10:$F$34,3,0)) -> 0 | J147: =IF(I147=0,0,VLOOKUP(I147,'Cover Sheet'!$L$10:$M$13,2,0)) -> 0 | K147: 0 | M147: =IF(L147=0,0,VLOOKUP(L147,'Cover Sheet'!$L$14:$M$34,2,0)) -> 0 | N147: 0 | P147: =IF(L147="",0,VLOOKUP(L147,'Cover Sheet'!$L$10:$O$34,4,0)) -> 0 | Q147: - | S147: =IF(R147=0,0,VLOOKUP(R147,'Cover Sheet'!$L$14:$M$34,2,0)) -> 0 | T147: 0 | V147: =IF(R147="",0,VLOOKUP(R147,'Cover Sheet'!$L$10:$O$34,4,0)) -> 0 | W147: - | X147: =IF(C147=0,0,VLOOKUP(C147,'Cover Sheet'!$D$10:$G$22,4,0)) -> 0 | Y147: =IF(F147=0,0,VLOOKUP(F147,'Cover Sheet'!$D$10:$G$34,4,0)) -> 0 | AB147: 0 | AC147: 7.53 | AD147: - | AE147: - | AF147: - | AI147: 0 | AJ147: - | AK147: 0 | AL147: 0 | AN147: 0 | AO147: 7.53 | AP147: - | AQ147: - | AR147: - | AU147: 0 | AV147: - | AW147: 0 | AX147: 0
A148: 130 | E148: =IF($G148=0,0,VLOOKUP(C148,'Cover Sheet'!$D$10:$F$22,3,0)) -> 0 | G148: 0 | H148: =IF($G148=0,0,VLOOKUP(F148,'Cover Sheet'!$D$10:$F$34,3,0)) -> 0 | J148: =IF(I148=0,0,VLOOKUP(I148,'Cover Sheet'!$L$10:$M$13,2,0)) -> 0 | K148: 0 | M148: =IF(L148=0,0,VLOOKUP(L148,'Cover Sheet'!$L$14:$M$34,2,0)) -> 0 | N148: 0 | P148: =IF(L148="",0,VLOOKUP(L148,'Cover Sheet'!$L$10:$O$34,4,0)) -> 0 | Q148: - | S148: =IF(R148=0,0,VLOOKUP(R148,'Cover Sheet'!$L$14:$M$34,2,0)) -> 0 | T148: 0 | V148: =IF(R148="",0,VLOOKUP(R148,'Cover Sheet'!$L$10:$O$34,4,0)) -> 0 | W148: - | X148: =IF(C148=0,0,VLOOKUP(C148,'Cover Sheet'!$D$10:$G$22,4,0)) -> 0 | Y148: =IF(F148=0,0,VLOOKUP(F148,'Cover Sheet'!$D$10:$G$34,4,0)) -> 0 | AB148: 0 | AC148: 7.53 | AD148: - | AE148: - | AF148: - | AI148: 0 | AJ148: =IF(AB148=0,"-",IF(AE148-AI148<0,0,AE148-AI148)) -> - | AK148: 0 | AL148: 0 | AN148: 0 | AO148: 7.53 | AP148: - | AQ148: - | AR148: - | AU148: 0 | AV148: =IF(AN148=0,"-",IF(AQ148-AU148<0,0,AQ148-AU148)) -> - | AW148: 0 | AX148: 0
A149: 131 | E149: =IF($G149=0,0,VLOOKUP(C149,'Cover Sheet'!$D$10:$F$22,3,0)) -> 0 | G149: 0 | H149: =IF($G149=0,0,VLOOKUP(F149,'Cover Sheet'!$D$10:$F$34,3,0)) -> 0 | J149: =IF(I149=0,0,VLOOKUP(I149,'Cover Sheet'!$L$10:$M$13,2,0)) -> 0 | K149: 0 | M149: =IF(L149=0,0,VLOOKUP(L149,'Cover Sheet'!$L$14:$M$34,2,0)) -> 0 | N149: 0 | P149: =IF(L149="",0,VLOOKUP(L149,'Cover Sheet'!$L$10:$O$34,4,0)) -> 0 | Q149: - | S149: =IF(R149=0,0,VLOOKUP(R149,'Cover Sheet'!$L$14:$M$34,2,0)) -> 0 | T149: 0 | V149: =IF(R149="",0,VLOOKUP(R149,'Cover Sheet'!$L$10:$O$34,4,0)) -> 0 | W149: - | X149: =IF(C149=0,0,VLOOKUP(C149,'Cover Sheet'!$D$10:$G$22,4,0)) -> 0 | Y149: =IF(F149=0,0,VLOOKUP(F149,'Cover Sheet'!$D$10:$G$34,4,0)) -> 0 | AB149: 0 | AC149: 7.53 | AD149: - | AE149: =IF(AB149=0,"-",(AC149-0.2*AD149)^2/(AC149+0.8*AD149)) -> - | AF149: - | AI149: 0 | AJ149: - | AK149: 0 | AL149: 0 | AN149: 0 | AO149: 7.53 | AP149: - | AQ149: =IF(AN149=0,"-",(AO149-0.2*AP149)^2/(AO149+0.8*AP149)) -> - | AR149: - | AU149: 0 | AV149: - | AW149: 0 | AX149: 0
A150: 132 | E150: =IF($G150=0,0,VLOOKUP(C150,'Cover Sheet'!$D$10:$F$22,3,0)) -> 0 | G150: 0 | H150: =IF($G150=0,0,VLOOKUP(F150,'Cover Sheet'!$D$10:$F$34,3,0)) -> 0 | J150: =IF(I150=0,0,VLOOKUP(I150,'Cover Sheet'!$L$10:$M$13,2,0)) -> 0 | K150: 0 | M150: =IF(L150=0,0,VLOOKUP(L150,'Cover Sheet'!$L$14:$M$34,2,0)) -> 0 | N150: 0 | P150: =IF(L150="",0,VLOOKUP(L150,'Cover Sheet'!$L$10:$O$34,4,0)) -> 0 | Q150: - | S150: =IF(R150=0,0,VLOOKUP(R150,'Cover Sheet'!$L$14:$M$34,2,0)) -> 0 | T150: 0 | V150: =IF(R150="",0,VLOOKUP(R150,'Cover Sheet'!$L$10:$O$34,4,0)) -> 0 | W150: - | X150: =IF(C150=0,0,VLOOKUP(C150,'Cover Sheet'!$D$10:$G$22,4,0)) -> 0 | Y150: =IF(F150=0,0,VLOOKUP(F150,'Cover Sheet'!$D$10:$G$34,4,0)) -> 0 | AB150: 0 | AC150: 7.53 | AD150: - | AE150: =IF(AB150=0,"-",(AC150-0.2*AD150)^2/(AC150+0.8*AD150)) -> - | AF150: - | AI150: 0 | AJ150: - | AK150: 0 | AL150: 0 | AN150: 0 | AO150: 7.53 | AP150: - | AQ150: =IF(AN150=0,"-",(AO150-0.2*AP150)^2/(AO150+0.8*AP150)) -> - | AR150: - | AU150: 0 | AV150: - | AW150: 0 | AX150: 0
A151: 133 | E151: =IF($G151=0,0,VLOOKUP(C151,'Cover Sheet'!$D$10:$F$22,3,0)) -> 0 | G151: 0 | H151: =IF($G151=0,0,VLOOKUP(F151,'Cover Sheet'!$D$10:$F$34,3,0)) -> 0 | J151: =IF(I151=0,0,VLOOKUP(I151,'Cover Sheet'!$L$10:$M$13,2,0)) -> 0 | K151: 0 | M151: =IF(L151=0,0,VLOOKUP(L151,'Cover Sheet'!$L$14:$M$34,2,0)) -> 0 | N151: 0 | P151: =IF(L151="",0,VLOOKUP(L151,'Cover Sheet'!$L$10:$O$34,4,0)) -> 0 | Q151: - | S151: =IF(R151=0,0,VLOOKUP(R151,'Cover Sheet'!$L$14:$M$34,2,0)) -> 0 | T151: 0 | V151: =IF(R151="",0,VLOOKUP(R151,'Cover Sheet'!$L$10:$O$34,4,0)) -> 0 | W151: - | X151: =IF(C151=0,0,VLOOKUP(C151,'Cover Sheet'!$D$10:$G$22,4,0)) -> 0 | Y151: =IF(F151=0,0,VLOOKUP(F151,'Cover Sheet'!$D$10:$G$34,4,0)) -> 0 | AB151: 0 | AC151: 7.53 | AD151: - | AE151: - | AF151: - | AI151: 0 | AJ151: - | AK151: 0 | AL151: 0 | AN151: 0 | AO151: 7.53 | AP151: - | AQ151: - | AR151: - | AU151: 0 | AV151: - | AW151: 0 | AX151: 0
A152: 134 | E152: =IF($G152=0,0,VLOOKUP(C152,'Cover Sheet'!$D$10:$F$22,3,0)) -> 0 | G152: 0 | H152: =IF($G152=0,0,VLOOKUP(F152,'Cover Sheet'!$D$10:$F$34,3,0)) -> 0 | J152: =IF(I152=0,0,VLOOKUP(I152,'Cover Sheet'!$L$10:$M$13,2,0)) -> 0 | K152: 0 | M152: =IF(L152=0,0,VLOOKUP(L152,'Cover Sheet'!$L$14:$M$34,2,0)) -> 0 | N152: 0 | P152: =IF(L152="",0,VLOOKUP(L152,'Cover Sheet'!$L$10:$O$34,4,0)) -> 0 | Q152: - | S152: =IF(R152=0,0,VLOOKUP(R152,'Cover Sheet'!$L$14:$M$34,2,0)) -> 0 | T152: 0 | V152: =IF(R152="",0,VLOOKUP(R152,'Cover Sheet'!$L$10:$O$34,4,0)) -> 0 | W152: - | X152: =IF(C152=0,0,VLOOKUP(C152,'Cover Sheet'!$D$10:$G$22,4,0)) -> 0 | Y152: =IF(F152=0,0,VLOOKUP(F152,'Cover Sheet'!$D$10:$G$34,4,0)) -> 0 | AB152: 0 | AC152: 7.53 | AD152: - | AE152: - | AF152: - | AI152: 0 | AJ152: - | AK152: 0 | AL152: 0 | AN152: 0 | AO152: 7.53 | AP152: - | AQ152: - | AR152: - | AU152: 0 | AV152: - | AW152: 0 | AX152: 0
A153: 135 | E153: =IF($G153=0,0,VLOOKUP(C153,'Cover Sheet'!$D$10:$F$22,3,0)) -> 0 | G153: 0 | H153: =IF($G153=0,0,VLOOKUP(F153,'Cover Sheet'!$D$10:$F$34,3,0)) -> 0 | J153: =IF(I153=0,0,VLOOKUP(I153,'Cover Sheet'!$L$10:$M$13,2,0)) -> 0 | K153: 0 | M153: =IF(L153=0,0,VLOOKUP(L153,'Cover Sheet'!$L$14:$M$34,2,0)) -> 0 | N153: 0 | P153: =IF(L153="",0,VLOOKUP(L153,'Cover Sheet'!$L$10:$O$34,4,0)) -> 0 | Q153: - | S153: =IF(R153=0,0,VLOOKUP(R153,'Cover Sheet'!$L$14:$M$34,2,0)) -> 0 | T153: 0 | V153: =IF(R153="",0,VLOOKUP(R153,'Cover Sheet'!$L$10:$O$34,4,0)) -> 0 | W153: - | X153: =IF(C153=0,0,VLOOKUP(C153,'Cover Sheet'!$D$10:$G$22,4,0)) -> 0 | Y153: =IF(F153=0,0,VLOOKUP(F153,'Cover Sheet'!$D$10:$G$34,4,0)) -> 0 | AB153: 0 | AC153: 7.53 | AD153: - | AE153: - | AF153: - | AI153: 0 | AJ153: - | AK153: 0 | AL153: 0 | AN153: 0 | AO153: 7.53 | AP153: - | AQ153: - | AR153: - | AU153: 0 | AV153: - | AW153: 0 | AX153: 0
A154: 136 | E154: =IF($G154=0,0,VLOOKUP(C154,'Cover Sheet'!$D$10:$F$22,3,0)) -> 0 | G154: 0 | H154: =IF($G154=0,0,VLOOKUP(F154,'Cover Sheet'!$D$10:$F$34,3,0)) -> 0 | J154: =IF(I154=0,0,VLOOKUP(I154,'Cover Sheet'!$L$10:$M$13,2,0)) -> 0 | K154: 0 | M154: =IF(L154=0,0,VLOOKUP(L154,'Cover Sheet'!$L$14:$M$34,2,0)) -> 0 | N154: 0 | P154: =IF(L154="",0,VLOOKUP(L154,'Cover Sheet'!$L$10:$O$34,4,0)) -> 0 | Q154: - | S154: =IF(R154=0,0,VLOOKUP(R154,'Cover Sheet'!$L$14:$M$34,2,0)) -> 0 | T154: 0 | V154: =IF(R154="",0,VLOOKUP(R154,'Cover Sheet'!$L$10:$O$34,4,0)) -> 0 | W154: - | X154: =IF(C154=0,0,VLOOKUP(C154,'Cover Sheet'!$D$10:$G$22,4,0)) -> 0 | Y154: =IF(F154=0,0,VLOOKUP(F154,'Cover Sheet'!$D$10:$G$34,4,0)) -> 0 | AB154: 0 | AC154: 7.53 | AD154: - | AE154: - | AF154: - | AI154: 0 | AJ154: - | AK154: 0 | AL154: 0 | AN154: 0 | AO154: 7.53 | AP154: - | AQ154: - | AR154: - | AU154: 0 | AV154: - | AW154: 0 | AX154: 0
A155: 137 | E155: =IF($G155=0,0,VLOOKUP(C155,'Cover Sheet'!$D$10:$F$22,3,0)) -> 0 | G155: 0 | H155: =IF($G155=0,0,VLOOKUP(F155,'Cover Sheet'!$D$10:$F$34,3,0)) -> 0 | J155: =IF(I155=0,0,VLOOKUP(I155,'Cover Sheet'!$L$10:$M$13,2,0)) -> 0 | K155: 0 | M155: =IF(L155=0,0,VLOOKUP(L155,'Cover Sheet'!$L$14:$M$34,2,0)) -> 0 | N155: 0 | P155: =IF(L155="",0,VLOOKUP(L155,'Cover Sheet'!$L$10:$O$34,4,0)) -> 0 | Q155: - | S155: =IF(R155=0,0,VLOOKUP(R155,'Cover Sheet'!$L$14:$M$34,2,0)) -> 0 | T155: 0 | V155: =IF(R155="",0,VLOOKUP(R155,'Cover Sheet'!$L$10:$O$34,4,0)) -> 0 | W155: - | X155: =IF(C155=0,0,VLOOKUP(C155,'Cover Sheet'!$D$10:$G$22,4,0)) -> 0 | Y155: =IF(F155=0,0,VLOOKUP(F155,'Cover Sheet'!$D$10:$G$34,4,0)) -> 0 | AB155: 0 | AC155: 7.53 | AD155: - | AE155: - | AF155: - | AI155: 0 | AJ155: - | AK155: 0 | AL155: 0 | AN155: 0 | AO155: 7.53 | AP155: - | AQ155: - | AR155: - | AU155: 0 | AV155: - | AW155: 0 | AX155: 0
A156: 138 | E156: =IF($G156=0,0,VLOOKUP(C156,'Cover Sheet'!$D$10:$F$22,3,0)) -> 0 | G156: 0 | H156: =IF($G156=0,0,VLOOKUP(F156,'Cover Sheet'!$D$10:$F$34,3,0)) -> 0 | J156: =IF(I156=0,0,VLOOKUP(I156,'Cover Sheet'!$L$10:$M$13,2,0)) -> 0 | K156: 0 | M156: =IF(L156=0,0,VLOOKUP(L156,'Cover Sheet'!$L$14:$M$34,2,0)) -> 0 | N156: 0 | P156: =IF(L156="",0,VLOOKUP(L156,'Cover Sheet'!$L$10:$O$34,4,0)) -> 0 | Q156: - | S156: =IF(R156=0,0,VLOOKUP(R156,'Cover Sheet'!$L$14:$M$34,2,0)) -> 0 | T156: 0 | V156: =IF(R156="",0,VLOOKUP(R156,'Cover Sheet'!$L$10:$O$34,4,0)) -> 0 | W156: - | X156: =IF(C156=0,0,VLOOKUP(C156,'Cover Sheet'!$D$10:$G$22,4,0)) -> 0 | Y156: =IF(F156=0,0,VLOOKUP(F156,'Cover Sheet'!$D$10:$G$34,4,0)) -> 0 | AB156: 0 | AC156: 7.53 | AD156: - | AE156: - | AF156: - | AI156: 0 | AJ156: - | AK156: 0 | AL156: 0 | AN156: 0 | AO156: 7.53 | AP156: - | AQ156: - | AR156: - | AU156: 0 | AV156: - | AW156: 0 | AX156: 0
A157: 139 | E157: =IF($G157=0,0,VLOOKUP(C157,'Cover Sheet'!$D$10:$F$22,3,0)) -> 0 | G157: 0 | H157: =IF($G157=0,0,VLOOKUP(F157,'Cover Sheet'!$D$10:$F$34,3,0)) -> 0 | J157: =IF(I157=0,0,VLOOKUP(I157,'Cover Sheet'!$L$10:$M$13,2,0)) -> 0 | K157: 0 | M157: =IF(L157=0,0,VLOOKUP(L157,'Cover Sheet'!$L$14:$M$34,2,0)) -> 0 | N157: 0 | P157: =IF(L157="",0,VLOOKUP(L157,'Cover Sheet'!$L$10:$O$34,4,0)) -> 0 | Q157: - | S157: =IF(R157=0,0,VLOOKUP(R157,'Cover Sheet'!$L$14:$M$34,2,0)) -> 0 | T157: 0 | V157: =IF(R157="",0,VLOOKUP(R157,'Cover Sheet'!$L$10:$O$34,4,0)) -> 0 | W157: - | X157: =IF(C157=0,0,VLOOKUP(C157,'Cover Sheet'!$D$10:$G$22,4,0)) -> 0 | Y157: =IF(F157=0,0,VLOOKUP(F157,'Cover Sheet'!$D$10:$G$34,4,0)) -> 0 | AB157: 0 | AC157: 7.53 | AD157: - | AE157: =IF(AB157=0,"-",(AC157-0.2*AD157)^2/(AC157+0.8*AD157)) -> - | AF157: - | AI157: 0 | AJ157: - | AK157: 0 | AL157: 0 | AN157: 0 | AO157: 7.53 | AP157: - | AQ157: =IF(AN157=0,"-",(AO157-0.2*AP157)^2/(AO157+0.8*AP157)) -> - | AR157: - | AU157: 0 | AV157: - | AW157: 0 | AX157: 0
A158: 140 | E158: =IF($G158=0,0,VLOOKUP(C158,'Cover Sheet'!$D$10:$F$22,3,0)) -> 0 | G158: 0 | H158: =IF($G158=0,0,VLOOKUP(F158,'Cover Sheet'!$D$10:$F$34,3,0)) -> 0 | J158: =IF(I158=0,0,VLOOKUP(I158,'Cover Sheet'!$L$10:$M$13,2,0)) -> 0 | K158: 0 | M158: =IF(L158=0,0,VLOOKUP(L158,'Cover Sheet'!$L$14:$M$34,2,0)) -> 0 | N158: 0 | P158: =IF(L158="",0,VLOOKUP(L158,'Cover Sheet'!$L$10:$O$34,4,0)) -> 0 | Q158: - | S158: =IF(R158=0,0,VLOOKUP(R158,'Cover Sheet'!$L$14:$M$34,2,0)) -> 0 | T158: 0 | V158: =IF(R158="",0,VLOOKUP(R158,'Cover Sheet'!$L$10:$O$34,4,0)) -> 0 | W158: - | X158: =IF(C158=0,0,VLOOKUP(C158,'Cover Sheet'!$D$10:$G$22,4,0)) -> 0 | Y158: =IF(F158=0,0,VLOOKUP(F158,'Cover Sheet'!$D$10:$G$34,4,0)) -> 0 | AB158: 0 | AC158: 7.53 | AD158: - | AE158: =IF(AB158=0,"-",(AC158-0.2*AD158)^2/(AC158+0.8*AD158)) -> - | AF158: - | AI158: 0 | AJ158: - | AK158: 0 | AL158: 0 | AN158: 0 | AO158: 7.53 | AP158: - | AQ158: =IF(AN158=0,"-",(AO158-0.2*AP158)^2/(AO158+0.8*AP158)) -> - | AR158: - | AU158: 0 | AV158: - | AW158: 0 | AX158: 0
A159: 141 | E159: =IF($G159=0,0,VLOOKUP(C159,'Cover Sheet'!$D$10:$F$22,3,0)) -> 0 | G159: 0 | H159: =IF($G159=0,0,VLOOKUP(F159,'Cover Sheet'!$D$10:$F$34,3,0)) -> 0 | J159: =IF(I159=0,0,VLOOKUP(I159,'Cover Sheet'!$L$10:$M$13,2,0)) -> 0 | K159: 0 | M159: =IF(L159=0,0,VLOOKUP(L159,'Cover Sheet'!$L$14:$M$34,2,0)) -> 0 | N159: 0 | P159: =IF(L159="",0,VLOOKUP(L159,'Cover Sheet'!$L$10:$O$34,4,0)) -> 0 | Q159: - | S159: =IF(R159=0,0,VLOOKUP(R159,'Cover Sheet'!$L$14:$M$34,2,0)) -> 0 | T159: 0 | V159: =IF(R159="",0,VLOOKUP(R159,'Cover Sheet'!$L$10:$O$34,4,0)) -> 0 | W159: - | X159: =IF(C159=0,0,VLOOKUP(C159,'Cover Sheet'!$D$10:$G$22,4,0)) -> 0 | Y159: =IF(F159=0,0,VLOOKUP(F159,'Cover Sheet'!$D$10:$G$34,4,0)) -> 0 | AB159: 0 | AC159: 7.53 | AD159: - | AE159: - | AF159: - | AI159: 0 | AJ159: - | AK159: 0 | AL159: 0 | AN159: 0 | AO159: 7.53 | AP159: - | AQ159: - | AR159: - | AU159: 0 | AV159: - | AW159: 0 | AX159: 0
A160: 142 | E160: =IF($G160=0,0,VLOOKUP(C160,'Cover Sheet'!$D$10:$F$22,3,0)) -> 0 | G160: 0 | H160: =IF($G160=0,0,VLOOKUP(F160,'Cover Sheet'!$D$10:$F$34,3,0)) -> 0 | J160: =IF(I160=0,0,VLOOKUP(I160,'Cover Sheet'!$L$10:$M$13,2,0)) -> 0 | K160: 0 | M160: =IF(L160=0,0,VLOOKUP(L160,'Cover Sheet'!$L$14:$M$34,2,0)) -> 0 | N160: 0 | P160: =IF(L160="",0,VLOOKUP(L160,'Cover Sheet'!$L$10:$O$34,4,0)) -> 0 | Q160: - | S160: =IF(R160=0,0,VLOOKUP(R160,'Cover Sheet'!$L$14:$M$34,2,0)) -> 0 | T160: 0 | V160: =IF(R160="",0,VLOOKUP(R160,'Cover Sheet'!$L$10:$O$34,4,0)) -> 0 | W160: - | X160: =IF(C160=0,0,VLOOKUP(C160,'Cover Sheet'!$D$10:$G$22,4,0)) -> 0 | Y160: =IF(F160=0,0,VLOOKUP(F160,'Cover Sheet'!$D$10:$G$34,4,0)) -> 0 | AB160: 0 | AC160: 7.53 | AD160: - | AE160: - | AF160: - | AI160: 0 | AJ160: - | AK160: 0 | AL160: 0 | AN160: 0 | AO160: 7.53 | AP160: - | AQ160: - | AR160: - | AU160: 0 | AV160: - | AW160: 0 | AX160: 0
A161: 143 | E161: =IF($G161=0,0,VLOOKUP(C161,'Cover Sheet'!$D$10:$F$22,3,0)) -> 0 | G161: 0 | H161: =IF($G161=0,0,VLOOKUP(F161,'Cover Sheet'!$D$10:$F$34,3,0)) -> 0 | J161: =IF(I161=0,0,VLOOKUP(I161,'Cover Sheet'!$L$10:$M$13,2,0)) -> 0 | K161: 0 | M161: =IF(L161=0,0,VLOOKUP(L161,'Cover Sheet'!$L$14:$M$34,2,0)) -> 0 | N161: 0 | P161: =IF(L161="",0,VLOOKUP(L161,'Cover Sheet'!$L$10:$O$34,4,0)) -> 0 | Q161: - | S161: =IF(R161=0,0,VLOOKUP(R161,'Cover Sheet'!$L$14:$M$34,2,0)) -> 0 | T161: 0 | V161: =IF(R161="",0,VLOOKUP(R161,'Cover Sheet'!$L$10:$O$34,4,0)) -> 0 | W161: - | X161: =IF(C161=0,0,VLOOKUP(C161,'Cover Sheet'!$D$10:$G$22,4,0)) -> 0 | Y161: =IF(F161=0,0,VLOOKUP(F161,'Cover Sheet'!$D$10:$G$34,4,0)) -> 0 | AB161: 0 | AC161: 7.53 | AD161: - | AE161: - | AF161: - | AI161: 0 | AJ161: - | AK161: 0 | AL161: 0 | AN161: 0 | AO161: 7.53 | AP161: - | AQ161: - | AR161: - | AU161: 0 | AV161: - | AW161: 0 | AX161: 0
A162: 144 | E162: =IF($G162=0,0,VLOOKUP(C162,'Cover Sheet'!$D$10:$F$22,3,0)) -> 0 | G162: 0 | H162: =IF($G162=0,0,VLOOKUP(F162,'Cover Sheet'!$D$10:$F$34,3,0)) -> 0 | J162: =IF(I162=0,0,VLOOKUP(I162,'Cover Sheet'!$L$10:$M$13,2,0)) -> 0 | K162: 0 | M162: =IF(L162=0,0,VLOOKUP(L162,'Cover Sheet'!$L$14:$M$34,2,0)) -> 0 | N162: 0 | P162: =IF(L162="",0,VLOOKUP(L162,'Cover Sheet'!$L$10:$O$34,4,0)) -> 0 | Q162: - | S162: =IF(R162=0,0,VLOOKUP(R162,'Cover Sheet'!$L$14:$M$34,2,0)) -> 0 | T162: 0 | V162: =IF(R162="",0,VLOOKUP(R162,'Cover Sheet'!$L$10:$O$34,4,0)) -> 0 | W162: - | X162: =IF(C162=0,0,VLOOKUP(C162,'Cover Sheet'!$D$10:$G$22,4,0)) -> 0 | Y162: =IF(F162=0,0,VLOOKUP(F162,'Cover Sheet'!$D$10:$G$34,4,0)) -> 0 | AB162: 0 | AC162: 7.53 | AD162: - | AE162: - | AF162: - | AI162: 0 | AJ162: - | AK162: 0 | AL162: 0 | AN162: 0 | AO162: 7.53 | AP162: - | AQ162: - | AR162: - | AU162: 0 | AV162: - | AW162: 0 | AX162: 0
A163: 145 | E163: =IF($G163=0,0,VLOOKUP(C163,'Cover Sheet'!$D$10:$F$22,3,0)) -> 0 | G163: 0 | H163: =IF($G163=0,0,VLOOKUP(F163,'Cover Sheet'!$D$10:$F$34,3,0)) -> 0 | J163: =IF(I163=0,0,VLOOKUP(I163,'Cover Sheet'!$L$10:$M$13,2,0)) -> 0 | K163: 0 | M163: =IF(L163=0,0,VLOOKUP(L163,'Cover Sheet'!$L$14:$M$34,2,0)) -> 0 | N163: 0 | P163: =IF(L163="",0,VLOOKUP(L163,'Cover Sheet'!$L$10:$O$34,4,0)) -> 0 | Q163: - | S163: =IF(R163=0,0,VLOOKUP(R163,'Cover Sheet'!$L$14:$M$34,2,0)) -> 0 | T163: 0 | V163: =IF(R163="",0,VLOOKUP(R163,'Cover Sheet'!$L$10:$O$34,4,0)) -> 0 | W163: - | X163: =IF(C163=0,0,VLOOKUP(C163,'Cover Sheet'!$D$10:$G$22,4,0)) -> 0 | Y163: =IF(F163=0,0,VLOOKUP(F163,'Cover Sheet'!$D$10:$G$34,4,0)) -> 0 | AB163: 0 | AC163: 7.53 | AD163: - | AE163: - | AF163: - | AI163: 0 | AJ163: - | AK163: 0 | AL163: 0 | AN163: 0 | AO163: 7.53 | AP163: - | AQ163: - | AR163: - | AU163: 0 | AV163: - | AW163: 0 | AX163: 0
A164: 146 | E164: =IF($G164=0,0,VLOOKUP(C164,'Cover Sheet'!$D$10:$F$22,3,0)) -> 0 | G164: 0 | H164: =IF($G164=0,0,VLOOKUP(F164,'Cover Sheet'!$D$10:$F$34,3,0)) -> 0 | J164: =IF(I164=0,0,VLOOKUP(I164,'Cover Sheet'!$L$10:$M$13,2,0)) -> 0 | K164: 0 | M164: =IF(L164=0,0,VLOOKUP(L164,'Cover Sheet'!$L$14:$M$34,2,0)) -> 0 | N164: 0 | P164: =IF(L164="",0,VLOOKUP(L164,'Cover Sheet'!$L$10:$O$34,4,0)) -> 0 | Q164: - | S164: =IF(R164=0,0,VLOOKUP(R164,'Cover Sheet'!$L$14:$M$34,2,0)) -> 0 | T164: 0 | V164: =IF(R164="",0,VLOOKUP(R164,'Cover Sheet'!$L$10:$O$34,4,0)) -> 0 | W164: - | X164: =IF(C164=0,0,VLOOKUP(C164,'Cover Sheet'!$D$10:$G$22,4,0)) -> 0 | Y164: =IF(F164=0,0,VLOOKUP(F164,'Cover Sheet'!$D$10:$G$34,4,0)) -> 0 | AB164: 0 | AC164: 7.53 | AD164: - | AE164: - | AF164: - | AI164: 0 | AJ164: - | AK164: 0 | AL164: 0 | AN164: 0 | AO164: 7.53 | AP164: - | AQ164: - | AR164: - | AU164: 0 | AV164: - | AW164: 0 | AX164: 0
A165: 147 | E165: =IF($G165=0,0,VLOOKUP(C165,'Cover Sheet'!$D$10:$F$22,3,0)) -> 0 | G165: 0 | H165: =IF($G165=0,0,VLOOKUP(F165,'Cover Sheet'!$D$10:$F$34,3,0)) -> 0 | J165: =IF(I165=0,0,VLOOKUP(I165,'Cover Sheet'!$L$10:$M$13,2,0)) -> 0 | K165: 0 | M165: =IF(L165=0,0,VLOOKUP(L165,'Cover Sheet'!$L$14:$M$34,2,0)) -> 0 | N165: 0 | P165: =IF(L165="",0,VLOOKUP(L165,'Cover Sheet'!$L$10:$O$34,4,0)) -> 0 | Q165: - | S165: =IF(R165=0,0,VLOOKUP(R165,'Cover Sheet'!$L$14:$M$34,2,0)) -> 0 | T165: 0 | V165: =IF(R165="",0,VLOOKUP(R165,'Cover Sheet'!$L$10:$O$34,4,0)) -> 0 | W165: - | X165: =IF(C165=0,0,VLOOKUP(C165,'Cover Sheet'!$D$10:$G$22,4,0)) -> 0 | Y165: =IF(F165=0,0,VLOOKUP(F165,'Cover Sheet'!$D$10:$G$34,4,0)) -> 0 | AB165: 0 | AC165: 7.53 | AD165: - | AE165: - | AF165: - | AI165: 0 | AJ165: - | AK165: 0 | AL165: 0 | AN165: 0 | AO165: 7.53 | AP165: - | AQ165: - | AR165: - | AU165: 0 | AV165: - | AW165: 0 | AX165: 0
A166: 148 | E166: =IF($G166=0,0,VLOOKUP(C166,'Cover Sheet'!$D$10:$F$22,3,0)) -> 0 | G166: 0 | H166: =IF($G166=0,0,VLOOKUP(F166,'Cover Sheet'!$D$10:$F$34,3,0)) -> 0 | J166: =IF(I166=0,0,VLOOKUP(I166,'Cover Sheet'!$L$10:$M$13,2,0)) -> 0 | K166: 0 | M166: =IF(L166=0,0,VLOOKUP(L166,'Cover Sheet'!$L$14:$M$34,2,0)) -> 0 | N166: 0 | P166: =IF(L166="",0,VLOOKUP(L166,'Cover Sheet'!$L$10:$O$34,4,0)) -> 0 | Q166: - | S166: =IF(R166=0,0,VLOOKUP(R166,'Cover Sheet'!$L$14:$M$34,2,0)) -> 0 | T166: 0 | V166: =IF(R166="",0,VLOOKUP(R166,'Cover Sheet'!$L$10:$O$34,4,0)) -> 0 | W166: - | X166: =IF(C166=0,0,VLOOKUP(C166,'Cover Sheet'!$D$10:$G$22,4,0)) -> 0 | Y166: =IF(F166=0,0,VLOOKUP(F166,'Cover Sheet'!$D$10:$G$34,4,0)) -> 0 | AB166: 0 | AC166: 7.53 | AD166: - | AE166: - | AF166: - | AI166: 0 | AJ166: - | AK166: 0 | AL166: 0 | AN166: 0 | AO166: 7.53 | AP166: - | AQ166: - | AR166: - | AU166: 0 | AV166: - | AW166: 0 | AX166: 0
A167: 149 | E167: =IF($G167=0,0,VLOOKUP(C167,'Cover Sheet'!$D$10:$F$22,3,0)) -> 0 | G167: 0 | H167: =IF($G167=0,0,VLOOKUP(F167,'Cover Sheet'!$D$10:$F$34,3,0)) -> 0 | J167: =IF(I167=0,0,VLOOKUP(I167,'Cover Sheet'!$L$10:$M$13,2,0)) -> 0 | K167: 0 | M167: =IF(L167=0,0,VLOOKUP(L167,'Cover Sheet'!$L$14:$M$34,2,0)) -> 0 | N167: 0 | P167: =IF(L167="",0,VLOOKUP(L167,'Cover Sheet'!$L$10:$O$34,4,0)) -> 0 | Q167: - | S167: =IF(R167=0,0,VLOOKUP(R167,'Cover Sheet'!$L$14:$M$34,2,0)) -> 0 | T167: 0 | V167: =IF(R167="",0,VLOOKUP(R167,'Cover Sheet'!$L$10:$O$34,4,0)) -> 0 | W167: - | X167: =IF(C167=0,0,VLOOKUP(C167,'Cover Sheet'!$D$10:$G$22,4,0)) -> 0 | Y167: =IF(F167=0,0,VLOOKUP(F167,'Cover Sheet'!$D$10:$G$34,4,0)) -> 0 | AB167: 0 | AC167: 7.53 | AD167: - | AE167: - | AF167: - | AI167: 0 | AJ167: - | AK167: 0 | AL167: 0 | AN167: 0 | AO167: 7.53 | AP167: - | AQ167: - | AR167: - | AU167: 0 | AV167: - | AW167: 0 | AX167: 0
A168: 150 | E168: =IF($G168=0,0,VLOOKUP(C168,'Cover Sheet'!$D$10:$F$22,3,0)) -> 0 | G168: 0 | H168: =IF($G168=0,0,VLOOKUP(F168,'Cover Sheet'!$D$10:$F$34,3,0)) -> 0 | J168: =IF(I168=0,0,VLOOKUP(I168,'Cover Sheet'!$L$10:$M$13,2,0)) -> 0 | K168: 0 | M168: =IF(L168=0,0,VLOOKUP(L168,'Cover Sheet'!$L$14:$M$34,2,0)) -> 0 | N168: 0 | P168: =IF(L168="",0,VLOOKUP(L168,'Cover Sheet'!$L$10:$O$34,4,0)) -> 0 | Q168: - | S168: =IF(R168=0,0,VLOOKUP(R168,'Cover Sheet'!$L$14:$M$34,2,0)) -> 0 | T168: 0 | V168: =IF(R168="",0,VLOOKUP(R168,'Cover Sheet'!$L$10:$O$34,4,0)) -> 0 | W168: - | X168: =IF(C168=0,0,VLOOKUP(C168,'Cover Sheet'!$D$10:$G$22,4,0)) -> 0 | Y168: =IF(F168=0,0,VLOOKUP(F168,'Cover Sheet'!$D$10:$G$34,4,0)) -> 0 | AB168: 0 | AC168: 7.53 | AD168: - | AE168: - | AF168: - | AI168: 0 | AJ168: - | AK168: 0 | AL168: 0 | AN168: 0 | AO168: 7.53 | AP168: - | AQ168: - | AR168: - | AU168: 0 | AV168: - | AW168: 0 | AX168: 0
A169: 151 | E169: =IF($G169=0,0,VLOOKUP(C169,'Cover Sheet'!$D$10:$F$22,3,0)) -> 0 | G169: 0 | H169: =IF($G169=0,0,VLOOKUP(F169,'Cover Sheet'!$D$10:$F$34,3,0)) -> 0 | J169: =IF(I169=0,0,VLOOKUP(I169,'Cover Sheet'!$L$10:$M$13,2,0)) -> 0 | K169: 0 | M169: =IF(L169=0,0,VLOOKUP(L169,'Cover Sheet'!$L$14:$M$34,2,0)) -> 0 | N169: 0 | P169: =IF(L169="",0,VLOOKUP(L169,'Cover Sheet'!$L$10:$O$34,4,0)) -> 0 | Q169: - | S169: =IF(R169=0,0,VLOOKUP(R169,'Cover Sheet'!$L$14:$M$34,2,0)) -> 0 | T169: 0 | V169: =IF(R169="",0,VLOOKUP(R169,'Cover Sheet'!$L$10:$O$34,4,0)) -> 0 | W169: - | X169: =IF(C169=0,0,VLOOKUP(C169,'Cover Sheet'!$D$10:$G$22,4,0)) -> 0 | Y169: =IF(F169=0,0,VLOOKUP(F169,'Cover Sheet'!$D$10:$G$34,4,0)) -> 0 | AB169: 0 | AC169: 7.53 | AD169: - | AE169: - | AF169: - | AI169: 0 | AJ169: - | AK169: 0 | AL169: 0 | AN169: 0 | AO169: 7.53 | AP169: - | AQ169: - | AR169: - | AU169: 0 | AV169: - | AW169: 0 | AX169: 0
A170: 152 | E170: =IF($G170=0,0,VLOOKUP(C170,'Cover Sheet'!$D$10:$F$22,3,0)) -> 0 | G170: 0 | H170: =IF($G170=0,0,VLOOKUP(F170,'Cover Sheet'!$D$10:$F$34,3,0)) -> 0 | J170: =IF(I170=0,0,VLOOKUP(I170,'Cover Sheet'!$L$10:$M$13,2,0)) -> 0 | K170: 0 | M170: =IF(L170=0,0,VLOOKUP(L170,'Cover Sheet'!$L$14:$M$34,2,0)) -> 0 | N170: 0 | P170: =IF(L170="",0,VLOOKUP(L170,'Cover Sheet'!$L$10:$O$34,4,0)) -> 0 | Q170: - | S170: =IF(R170=0,0,VLOOKUP(R170,'Cover Sheet'!$L$14:$M$34,2,0)) -> 0 | T170: 0 | V170: =IF(R170="",0,VLOOKUP(R170,'Cover Sheet'!$L$10:$O$34,4,0)) -> 0 | W170: - | X170: =IF(C170=0,0,VLOOKUP(C170,'Cover Sheet'!$D$10:$G$22,4,0)) -> 0 | Y170: =IF(F170=0,0,VLOOKUP(F170,'Cover Sheet'!$D$10:$G$34,4,0)) -> 0 | AB170: 0 | AC170: 7.53 | AD170: - | AE170: =IF(AB170=0,"-",(AC170-0.2*AD170)^2/(AC170+0.8*AD170)) -> - | AF170: - | AI170: 0 | AJ170: - | AK170: 0 | AL170: 0 | AN170: 0 | AO170: 7.53 | AP170: - | AQ170: =IF(AN170=0,"-",(AO170-0.2*AP170)^2/(AO170+0.8*AP170)) -> - | AR170: - | AU170: 0 | AV170: - | AW170: 0 | AX170: 0
A171: 153 | E171: =IF($G171=0,0,VLOOKUP(C171,'Cover Sheet'!$D$10:$F$22,3,0)) -> 0 | G171: 0 | H171: =IF($G171=0,0,VLOOKUP(F171,'Cover Sheet'!$D$10:$F$34,3,0)) -> 0 | J171: =IF(I171=0,0,VLOOKUP(I171,'Cover Sheet'!$L$10:$M$13,2,0)) -> 0 | K171: 0 | M171: =IF(L171=0,0,VLOOKUP(L171,'Cover Sheet'!$L$14:$M$34,2,0)) -> 0 | N171: 0 | P171: =IF(L171="",0,VLOOKUP(L171,'Cover Sheet'!$L$10:$O$34,4,0)) -> 0 | Q171: - | S171: =IF(R171=0,0,VLOOKUP(R171,'Cover Sheet'!$L$14:$M$34,2,0)) -> 0 | T171: 0 | V171: =IF(R171="",0,VLOOKUP(R171,'Cover Sheet'!$L$10:$O$34,4,0)) -> 0 | W171: - | X171: =IF(C171=0,0,VLOOKUP(C171,'Cover Sheet'!$D$10:$G$22,4,0)) -> 0 | Y171: =IF(F171=0,0,VLOOKUP(F171,'Cover Sheet'!$D$10:$G$34,4,0)) -> 0 | AB171: 0 | AC171: 7.53 | AD171: - | AE171: =IF(AB171=0,"-",(AC171-0.2*AD171)^2/(AC171+0.8*AD171)) -> - | AF171: - | AI171: 0 | AJ171: - | AK171: 0 | AL171: 0 | AN171: 0 | AO171: 7.53 | AP171: - | AQ171: =IF(AN171=0,"-",(AO171-0.2*AP171)^2/(AO171+0.8*AP171)) -> - | AR171: - | AU171: 0 | AV171: - | AW171: 0 | AX171: 0
A172: 154 | E172: =IF($G172=0,0,VLOOKUP(C172,'Cover Sheet'!$D$10:$F$22,3,0)) -> 0 | G172: 0 | H172: =IF($G172=0,0,VLOOKUP(F172,'Cover Sheet'!$D$10:$F$34,3,0)) -> 0 | J172: =IF(I172=0,0,VLOOKUP(I172,'Cover Sheet'!$L$10:$M$13,2,0)) -> 0 | K172: 0 | M172: =IF(L172=0,0,VLOOKUP(L172,'Cover Sheet'!$L$14:$M$34,2,0)) -> 0 | N172: 0 | P172: =IF(L172="",0,VLOOKUP(L172,'Cover Sheet'!$L$10:$O$34,4,0)) -> 0 | Q172: - | S172: =IF(R172=0,0,VLOOKUP(R172,'Cover Sheet'!$L$14:$M$34,2,0)) -> 0 | T172: 0 | V172: =IF(R172="",0,VLOOKUP(R172,'Cover Sheet'!$L$10:$O$34,4,0)) -> 0 | W172: - | X172: =IF(C172=0,0,VLOOKUP(C172,'Cover Sheet'!$D$10:$G$22,4,0)) -> 0 | Y172: =IF(F172=0,0,VLOOKUP(F172,'Cover Sheet'!$D$10:$G$34,4,0)) -> 0 | AB172: 0 | AC172: 7.53 | AD172: - | AE172: - | AF172: - | AI172: 0 | AJ172: - | AK172: 0 | AL172: 0 | AN172: 0 | AO172: 7.53 | AP172: - | AQ172: - | AR172: - | AU172: 0 | AV172: - | AW172: 0 | AX172: 0
A173: 155 | E173: =IF($G173=0,0,VLOOKUP(C173,'Cover Sheet'!$D$10:$F$22,3,0)) -> 0 | G173: 0 | H173: =IF($G173=0,0,VLOOKUP(F173,'Cover Sheet'!$D$10:$F$34,3,0)) -> 0 | J173: =IF(I173=0,0,VLOOKUP(I173,'Cover Sheet'!$L$10:$M$13,2,0)) -> 0 | K173: 0 | M173: =IF(L173=0,0,VLOOKUP(L173,'Cover Sheet'!$L$14:$M$34,2,0)) -> 0 | N173: 0 | P173: =IF(L173="",0,VLOOKUP(L173,'Cover Sheet'!$L$10:$O$34,4,0)) -> 0 | Q173: - | S173: =IF(R173=0,0,VLOOKUP(R173,'Cover Sheet'!$L$14:$M$34,2,0)) -> 0 | T173: 0 | V173: =IF(R173="",0,VLOOKUP(R173,'Cover Sheet'!$L$10:$O$34,4,0)) -> 0 | W173: - | X173: =IF(C173=0,0,VLOOKUP(C173,'Cover Sheet'!$D$10:$G$22,4,0)) -> 0 | Y173: =IF(F173=0,0,VLOOKUP(F173,'Cover Sheet'!$D$10:$G$34,4,0)) -> 0 | AB173: 0 | AC173: 7.53 | AD173: - | AE173: - | AF173: - | AI173: 0 | AJ173: - | AK173: 0 | AL173: 0 | AN173: 0 | AO173: 7.53 | AP173: - | AQ173: - | AR173: - | AU173: 0 | AV173: - | AW173: 0 | AX173: 0
A174: 156 | E174: =IF($G174=0,0,VLOOKUP(C174,'Cover Sheet'!$D$10:$F$22,3,0)) -> 0 | G174: 0 | H174: =IF($G174=0,0,VLOOKUP(F174,'Cover Sheet'!$D$10:$F$34,3,0)) -> 0 | J174: =IF(I174=0,0,VLOOKUP(I174,'Cover Sheet'!$L$10:$M$13,2,0)) -> 0 | K174: 0 | M174: =IF(L174=0,0,VLOOKUP(L174,'Cover Sheet'!$L$14:$M$34,2,0)) -> 0 | N174: 0 | P174: =IF(L174="",0,VLOOKUP(L174,'Cover Sheet'!$L$10:$O$34,4,0)) -> 0 | Q174: - | S174: =IF(R174=0,0,VLOOKUP(R174,'Cover Sheet'!$L$14:$M$34,2,0)) -> 0 | T174: 0 | V174: =IF(R174="",0,VLOOKUP(R174,'Cover Sheet'!$L$10:$O$34,4,0)) -> 0 | W174: - | X174: =IF(C174=0,0,VLOOKUP(C174,'Cover Sheet'!$D$10:$G$22,4,0)) -> 0 | Y174: =IF(F174=0,0,VLOOKUP(F174,'Cover Sheet'!$D$10:$G$34,4,0)) -> 0 | AB174: 0 | AC174: 7.53 | AD174: - | AE174: - | AF174: - | AI174: 0 | AJ174: - | AK174: 0 | AL174: 0 | AN174: 0 | AO174: 7.53 | AP174: - | AQ174: - | AR174: - | AU174: 0 | AV174: - | AW174: 0 | AX174: 0
A175: 157 | E175: =IF($G175=0,0,VLOOKUP(C175,'Cover Sheet'!$D$10:$F$22,3,0)) -> 0 | G175: 0 | H175: =IF($G175=0,0,VLOOKUP(F175,'Cover Sheet'!$D$10:$F$34,3,0)) -> 0 | J175: =IF(I175=0,0,VLOOKUP(I175,'Cover Sheet'!$L$10:$M$13,2,0)) -> 0 | K175: 0 | M175: =IF(L175=0,0,VLOOKUP(L175,'Cover Sheet'!$L$14:$M$34,2,0)) -> 0 | N175: 0 | P175: =IF(L175="",0,VLOOKUP(L175,'Cover Sheet'!$L$10:$O$34,4,0)) -> 0 | Q175: - | S175: =IF(R175=0,0,VLOOKUP(R175,'Cover Sheet'!$L$14:$M$34,2,0)) -> 0 | T175: 0 | V175: =IF(R175="",0,VLOOKUP(R175,'Cover Sheet'!$L$10:$O$34,4,0)) -> 0 | W175: - | X175: =IF(C175=0,0,VLOOKUP(C175,'Cover Sheet'!$D$10:$G$22,4,0)) -> 0 | Y175: =IF(F175=0,0,VLOOKUP(F175,'Cover Sheet'!$D$10:$G$34,4,0)) -> 0 | AB175: 0 | AC175: 7.53 | AD175: - | AE175: - | AF175: - | AI175: 0 | AJ175: - | AK175: 0 | AL175: 0 | AN175: 0 | AO175: 7.53 | AP175: - | AQ175: - | AR175: - | AU175: 0 | AV175: - | AW175: 0 | AX175: 0
A176: 158 | E176: =IF($G176=0,0,VLOOKUP(C176,'Cover Sheet'!$D$10:$F$22,3,0)) -> 0 | G176: 0 | H176: =IF($G176=0,0,VLOOKUP(F176,'Cover Sheet'!$D$10:$F$34,3,0)) -> 0 | J176: =IF(I176=0,0,VLOOKUP(I176,'Cover Sheet'!$L$10:$M$13,2,0)) -> 0 | K176: 0 | M176: =IF(L176=0,0,VLOOKUP(L176,'Cover Sheet'!$L$14:$M$34,2,0)) -> 0 | N176: 0 | P176: =IF(L176="",0,VLOOKUP(L176,'Cover Sheet'!$L$10:$O$34,4,0)) -> 0 | Q176: - | S176: =IF(R176=0,0,VLOOKUP(R176,'Cover Sheet'!$L$14:$M$34,2,0)) -> 0 | T176: 0 | V176: =IF(R176="",0,VLOOKUP(R176,'Cover Sheet'!$L$10:$O$34,4,0)) -> 0 | W176: - | X176: =IF(C176=0,0,VLOOKUP(C176,'Cover Sheet'!$D$10:$G$22,4,0)) -> 0 | Y176: =IF(F176=0,0,VLOOKUP(F176,'Cover Sheet'!$D$10:$G$34,4,0)) -> 0 | AB176: 0 | AC176: 7.53 | AD176: - | AE176: - | AF176: - | AI176: 0 | AJ176: - | AK176: 0 | AL176: 0 | AN176: 0 | AO176: 7.53 | AP176: - | AQ176: - | AR176: - | AU176: 0 | AV176: - | AW176: 0 | AX176: 0
A177: 159 | E177: =IF($G177=0,0,VLOOKUP(C177,'Cover Sheet'!$D$10:$F$22,3,0)) -> 0 | G177: 0 | H177: =IF($G177=0,0,VLOOKUP(F177,'Cover Sheet'!$D$10:$F$34,3,0)) -> 0 | J177: =IF(I177=0,0,VLOOKUP(I177,'Cover Sheet'!$L$10:$M$13,2,0)) -> 0 | K177: 0 | M177: =IF(L177=0,0,VLOOKUP(L177,'Cover Sheet'!$L$14:$M$34,2,0)) -> 0 | N177: 0 | P177: =IF(L177="",0,VLOOKUP(L177,'Cover Sheet'!$L$10:$O$34,4,0)) -> 0 | Q177: - | S177: =IF(R177=0,0,VLOOKUP(R177,'Cover Sheet'!$L$14:$M$34,2,0)) -> 0 | T177: 0 | V177: =IF(R177="",0,VLOOKUP(R177,'Cover Sheet'!$L$10:$O$34,4,0)) -> 0 | W177: - | X177: =IF(C177=0,0,VLOOKUP(C177,'Cover Sheet'!$D$10:$G$22,4,0)) -> 0 | Y177: =IF(F177=0,0,VLOOKUP(F177,'Cover Sheet'!$D$10:$G$34,4,0)) -> 0 | AB177: 0 | AC177: 7.53 | AD177: - | AE177: - | AF177: - | AI177: 0 | AJ177: - | AK177: 0 | AL177: 0 | AN177: 0 | AO177: 7.53 | AP177: - | AQ177: - | AR177: - | AU177: 0 | AV177: - | AW177: 0 | AX177: 0
A178: 160 | E178: =IF($G178=0,0,VLOOKUP(C178,'Cover Sheet'!$D$10:$F$22,3,0)) -> 0 | G178: 0 | H178: =IF($G178=0,0,VLOOKUP(F178,'Cover Sheet'!$D$10:$F$34,3,0)) -> 0 | J178: =IF(I178=0,0,VLOOKUP(I178,'Cover Sheet'!$L$10:$M$13,2,0)) -> 0 | K178: 0 | M178: =IF(L178=0,0,VLOOKUP(L178,'Cover Sheet'!$L$14:$M$34,2,0)) -> 0 | N178: 0 | P178: =IF(L178="",0,VLOOKUP(L178,'Cover Sheet'!$L$10:$O$34,4,0)) -> 0 | Q178: - | S178: =IF(R178=0,0,VLOOKUP(R178,'Cover Sheet'!$L$14:$M$34,2,0)) -> 0 | T178: 0 | V178: =IF(R178="",0,VLOOKUP(R178,'Cover Sheet'!$L$10:$O$34,4,0)) -> 0 | W178: - | X178: =IF(C178=0,0,VLOOKUP(C178,'Cover Sheet'!$D$10:$G$22,4,0)) -> 0 | Y178: =IF(F178=0,0,VLOOKUP(F178,'Cover Sheet'!$D$10:$G$34,4,0)) -> 0 | AB178: 0 | AC178: 7.53 | AD178: - | AE178: =IF(AB178=0,"-",(AC178-0.2*AD178)^2/(AC178+0.8*AD178)) -> - | AF178: - | AI178: 0 | AJ178: - | AK178: 0 | AL178: 0 | AN178: 0 | AO178: 7.53 | AP178: - | AQ178: =IF(AN178=0,"-",(AO178-0.2*AP178)^2/(AO178+0.8*AP178)) -> - | AR178: - | AU178: 0 | AV178: - | AW178: 0 | AX178: 0
A179: 161 | E179: =IF($G179=0,0,VLOOKUP(C179,'Cover Sheet'!$D$10:$F$22,3,0)) -> 0 | G179: 0 | H179: =IF($G179=0,0,VLOOKUP(F179,'Cover Sheet'!$D$10:$F$34,3,0)) -> 0 | J179: =IF(I179=0,0,VLOOKUP(I179,'Cover Sheet'!$L$10:$M$13,2,0)) -> 0 | K179: 0 | M179: =IF(L179=0,0,VLOOKUP(L179,'Cover Sheet'!$L$14:$M$34,2,0)) -> 0 | N179: 0 | P179: =IF(L179="",0,VLOOKUP(L179,'Cover Sheet'!$L$10:$O$34,4,0)) -> 0 | Q179: - | S179: =IF(R179=0,0,VLOOKUP(R179,'Cover Sheet'!$L$14:$M$34,2,0)) -> 0 | T179: 0 | V179: =IF(R179="",0,VLOOKUP(R179,'Cover Sheet'!$L$10:$O$34,4,0)) -> 0 | W179: - | X179: =IF(C179=0,0,VLOOKUP(C179,'Cover Sheet'!$D$10:$G$22,4,0)) -> 0 | Y179: =IF(F179=0,0,VLOOKUP(F179,'Cover Sheet'!$D$10:$G$34,4,0)) -> 0 | AB179: 0 | AC179: 7.53 | AD179: - | AE179: =IF(AB179=0,"-",(AC179-0.2*AD179)^2/(AC179+0.8*AD179)) -> - | AF179: - | AI179: 0 | AJ179: - | AK179: 0 | AL179: 0 | AN179: 0 | AO179: 7.53 | AP179: - | AQ179: =IF(AN179=0,"-",(AO179-0.2*AP179)^2/(AO179+0.8*AP179)) -> - | AR179: - | AU179: 0 | AV179: - | AW179: 0 | AX179: 0
A180: 162 | E180: =IF($G180=0,0,VLOOKUP(C180,'Cover Sheet'!$D$10:$F$22,3,0)) -> 0 | G180: 0 | H180: =IF($G180=0,0,VLOOKUP(F180,'Cover Sheet'!$D$10:$F$34,3,0)) -> 0 | J180: =IF(I180=0,0,VLOOKUP(I180,'Cover Sheet'!$L$10:$M$13,2,0)) -> 0 | K180: 0 | M180: =IF(L180=0,0,VLOOKUP(L180,'Cover Sheet'!$L$14:$M$34,2,0)) -> 0 | N180: 0 | P180: =IF(L180="",0,VLOOKUP(L180,'Cover Sheet'!$L$10:$O$34,4,0)) -> 0 | Q180: - | S180: =IF(R180=0,0,VLOOKUP(R180,'Cover Sheet'!$L$14:$M$34,2,0)) -> 0 | T180: 0 | V180: =IF(R180="",0,VLOOKUP(R180,'Cover Sheet'!$L$10:$O$34,4,0)) -> 0 | W180: - | X180: =IF(C180=0,0,VLOOKUP(C180,'Cover Sheet'!$D$10:$G$22,4,0)) -> 0 | Y180: =IF(F180=0,0,VLOOKUP(F180,'Cover Sheet'!$D$10:$G$34,4,0)) -> 0 | AB180: 0 | AC180: 7.53 | AD180: - | AE180: - | AF180: - | AI180: 0 | AJ180: - | AK180: 0 | AL180: 0 | AN180: 0 | AO180: 7.53 | AP180: - | AQ180: - | AR180: - | AU180: 0 | AV180: - | AW180: 0 | AX180: 0
A181: 163 | E181: =IF($G181=0,0,VLOOKUP(C181,'Cover Sheet'!$D$10:$F$22,3,0)) -> 0 | G181: 0 | H181: =IF($G181=0,0,VLOOKUP(F181,'Cover Sheet'!$D$10:$F$34,3,0)) -> 0 | J181: =IF(I181=0,0,VLOOKUP(I181,'Cover Sheet'!$L$10:$M$13,2,0)) -> 0 | K181: 0 | M181: =IF(L181=0,0,VLOOKUP(L181,'Cover Sheet'!$L$14:$M$34,2,0)) -> 0 | N181: 0 | P181: =IF(L181="",0,VLOOKUP(L181,'Cover Sheet'!$L$10:$O$34,4,0)) -> 0 | Q181: - | S181: =IF(R181=0,0,VLOOKUP(R181,'Cover Sheet'!$L$14:$M$34,2,0)) -> 0 | T181: 0 | V181: =IF(R181="",0,VLOOKUP(R181,'Cover Sheet'!$L$10:$O$34,4,0)) -> 0 | W181: - | X181: =IF(C181=0,0,VLOOKUP(C181,'Cover Sheet'!$D$10:$G$22,4,0)) -> 0 | Y181: =IF(F181=0,0,VLOOKUP(F181,'Cover Sheet'!$D$10:$G$34,4,0)) -> 0 | AB181: 0 | AC181: 7.53 | AD181: - | AE181: - | AF181: - | AI181: 0 | AJ181: - | AK181: 0 | AL181: 0 | AN181: 0 | AO181: 7.53 | AP181: - | AQ181: - | AR181: - | AU181: 0 | AV181: - | AW181: 0 | AX181: 0
A182: 164 | E182: =IF($G182=0,0,VLOOKUP(C182,'Cover Sheet'!$D$10:$F$22,3,0)) -> 0 | G182: 0 | H182: =IF($G182=0,0,VLOOKUP(F182,'Cover Sheet'!$D$10:$F$34,3,0)) -> 0 | J182: =IF(I182=0,0,VLOOKUP(I182,'Cover Sheet'!$L$10:$M$13,2,0)) -> 0 | K182: 0 | M182: =IF(L182=0,0,VLOOKUP(L182,'Cover Sheet'!$L$14:$M$34,2,0)) -> 0 | N182: 0 | P182: =IF(L182="",0,VLOOKUP(L182,'Cover Sheet'!$L$10:$O$34,4,0)) -> 0 | Q182: - | S182: =IF(R182=0,0,VLOOKUP(R182,'Cover Sheet'!$L$14:$M$34,2,0)) -> 0 | T182: 0 | V182: =IF(R182="",0,VLOOKUP(R182,'Cover Sheet'!$L$10:$O$34,4,0)) -> 0 | W182: - | X182: =IF(C182=0,0,VLOOKUP(C182,'Cover Sheet'!$D$10:$G$22,4,0)) -> 0 | Y182: =IF(F182=0,0,VLOOKUP(F182,'Cover Sheet'!$D$10:$G$34,4,0)) -> 0 | AB182: 0 | AC182: 7.53 | AD182: - | AE182: - | AF182: - | AI182: 0 | AJ182: - | AK182: 0 | AL182: 0 | AN182: 0 | AO182: 7.53 | AP182: - | AQ182: - | AR182: - | AU182: 0 | AV182: - | AW182: 0 | AX182: 0
A183: =A182+1 -> 165 | E183: =IF($G183=0,0,VLOOKUP(C183,'Cover Sheet'!$D$10:$F$22,3,0)) -> 0 | G183: 0 | H183: =IF($G183=0,0,VLOOKUP(F183,'Cover Sheet'!$D$10:$F$34,3,0)) -> 0 | J183: =IF(I183=0,0,VLOOKUP(I183,'Cover Sheet'!$L$10:$M$13,2,0)) -> 0 | K183: 0 | M183: =IF(L183=0,0,VLOOKUP(L183,'Cover Sheet'!$L$14:$M$34,2,0)) -> 0 | N183: 0 | P183: =IF(L183="",0,VLOOKUP(L183,'Cover Sheet'!$L$10:$O$34,4,0)) -> 0 | Q183: - | S183: =IF(R183=0,0,VLOOKUP(R183,'Cover Sheet'!$L$14:$M$34,2,0)) -> 0 | T183: 0 | V183: =IF(R183="",0,VLOOKUP(R183,'Cover Sheet'!$L$10:$O$34,4,0)) -> 0 | W183: - | X183: =IF(C183=0,0,VLOOKUP(C183,'Cover Sheet'!$D$10:$G$22,4,0)) -> 0 | Y183: =IF(F183=0,0,VLOOKUP(F183,'Cover Sheet'!$D$10:$G$34,4,0)) -> 0 | AB183: 0 | AC183: 7.53 | AD183: - | AE183: - | AF183: - | AI183: 0 | AJ183: - | AK183: =IF(AB183=0,0,1000/(10+5*AC183+10*AJ183-10*(AJ183^2+1.25*AJ183*AC183)^(1/2))) -> 0 | AL183: 0 | AN183: 0 | AO183: 7.53 | AP183: - | AQ183: - | AR183: - | AU183: 0 | AV183: - | AW183: 0 | AX183: 0
A184: 166 | E184: =IF($G184=0,0,VLOOKUP(C184,'Cover Sheet'!$D$10:$F$22,3,0)) -> 0 | G184: 0 | H184: =IF($G184=0,0,VLOOKUP(F184,'Cover Sheet'!$D$10:$F$34,3,0)) -> 0 | J184: =IF(I184=0,0,VLOOKUP(I184,'Cover Sheet'!$L$10:$M$13,2,0)) -> 0 | K184: 0 | M184: =IF(L184=0,0,VLOOKUP(L184,'Cover Sheet'!$L$14:$M$34,2,0)) -> 0 | N184: 0 | P184: =IF(L184="",0,VLOOKUP(L184,'Cover Sheet'!$L$10:$O$34,4,0)) -> 0 | Q184: - | S184: =IF(R184=0,0,VLOOKUP(R184,'Cover Sheet'!$L$14:$M$34,2,0)) -> 0 | T184: 0 | V184: =IF(R184="",0,VLOOKUP(R184,'Cover Sheet'!$L$10:$O$34,4,0)) -> 0 | W184: - | X184: =IF(C184=0,0,VLOOKUP(C184,'Cover Sheet'!$D$10:$G$22,4,0)) -> 0 | Y184: =IF(F184=0,0,VLOOKUP(F184,'Cover Sheet'!$D$10:$G$34,4,0)) -> 0 | AB184: 0 | AC184: 7.53 | AD184: - | AE184: - | AF184: =Q184 -> - | AI184: 0 | AJ184: - | AK184: 0 | AL184: 0 | AN184: 0 | AO184: 7.53 | AP184: - | AQ184: - | AR184: - | AU184: 0 | AV184: - | AW184: 0 | AX184: 0
A185: 167 | E185: =IF($G185=0,0,VLOOKUP(C185,'Cover Sheet'!$D$10:$F$22,3,0)) -> 0 | G185: 0 | H185: =IF($G185=0,0,VLOOKUP(F185,'Cover Sheet'!$D$10:$F$34,3,0)) -> 0 | J185: =IF(I185=0,0,VLOOKUP(I185,'Cover Sheet'!$L$10:$M$13,2,0)) -> 0 | K185: 0 | M185: =IF(L185=0,0,VLOOKUP(L185,'Cover Sheet'!$L$14:$M$34,2,0)) -> 0 | N185: 0 | P185: =IF(L185="",0,VLOOKUP(L185,'Cover Sheet'!$L$10:$O$34,4,0)) -> 0 | Q185: - | S185: =IF(R185=0,0,VLOOKUP(R185,'Cover Sheet'!$L$14:$M$34,2,0)) -> 0 | T185: 0 | V185: =IF(R185="",0,VLOOKUP(R185,'Cover Sheet'!$L$10:$O$34,4,0)) -> 0 | W185: - | X185: =IF(C185=0,0,VLOOKUP(C185,'Cover Sheet'!$D$10:$G$22,4,0)) -> 0 | Y185: =IF(F185=0,0,VLOOKUP(F185,'Cover Sheet'!$D$10:$G$34,4,0)) -> 0 | AB185: 0 | AC185: 7.53 | AD185: - | AE185: - | AF185: - | AI185: 0 | AJ185: - | AK185: 0 | AL185: 0 | AN185: 0 | AO185: 7.53 | AP185: - | AQ185: - | AR185: - | AU185: 0 | AV185: - | AW185: 0 | AX185: 0
A186: 168 | E186: =IF($G186=0,0,VLOOKUP(C186,'Cover Sheet'!$D$10:$F$22,3,0)) -> 0 | G186: 0 | H186: =IF($G186=0,0,VLOOKUP(F186,'Cover Sheet'!$D$10:$F$34,3,0)) -> 0 | J186: =IF(I186=0,0,VLOOKUP(I186,'Cover Sheet'!$L$10:$M$13,2,0)) -> 0 | K186: 0 | M186: =IF(L186=0,0,VLOOKUP(L186,'Cover Sheet'!$L$14:$M$34,2,0)) -> 0 | N186: 0 | P186: =IF(L186="",0,VLOOKUP(L186,'Cover Sheet'!$L$10:$O$34,4,0)) -> 0 | Q186: - | S186: =IF(R186=0,0,VLOOKUP(R186,'Cover Sheet'!$L$14:$M$34,2,0)) -> 0 | T186: 0 | V186: =IF(R186="",0,VLOOKUP(R186,'Cover Sheet'!$L$10:$O$34,4,0)) -> 0 | W186: - | X186: =IF(C186=0,0,VLOOKUP(C186,'Cover Sheet'!$D$10:$G$22,4,0)) -> 0 | Y186: =IF(F186=0,0,VLOOKUP(F186,'Cover Sheet'!$D$10:$G$34,4,0)) -> 0 | AB186: 0 | AC186: 7.53 | AD186: - | AE186: - | AF186: - | AI186: 0 | AJ186: - | AK186: 0 | AL186: 0 | AN186: 0 | AO186: 7.53 | AP186: - | AQ186: - | AR186: - | AU186: 0 | AV186: - | AW186: 0 | AX186: 0
A187: 169 | E187: =IF($G187=0,0,VLOOKUP(C187,'Cover Sheet'!$D$10:$F$22,3,0)) -> 0 | G187: 0 | H187: =IF($G187=0,0,VLOOKUP(F187,'Cover Sheet'!$D$10:$F$34,3,0)) -> 0 | J187: =IF(I187=0,0,VLOOKUP(I187,'Cover Sheet'!$L$10:$M$13,2,0)) -> 0 | K187: 0 | M187: =IF(L187=0,0,VLOOKUP(L187,'Cover Sheet'!$L$14:$M$34,2,0)) -> 0 | N187: 0 | P187: =IF(L187="",0,VLOOKUP(L187,'Cover Sheet'!$L$10:$O$34,4,0)) -> 0 | Q187: - | S187: =IF(R187=0,0,VLOOKUP(R187,'Cover Sheet'!$L$14:$M$34,2,0)) -> 0 | T187: 0 | V187: =IF(R187="",0,VLOOKUP(R187,'Cover Sheet'!$L$10:$O$34,4,0)) -> 0 | W187: - | X187: =IF(C187=0,0,VLOOKUP(C187,'Cover Sheet'!$D$10:$G$22,4,0)) -> 0 | Y187: =IF(F187=0,0,VLOOKUP(F187,'Cover Sheet'!$D$10:$G$34,4,0)) -> 0 | AB187: 0 | AC187: 7.53 | AD187: - | AE187: - | AF187: - | AI187: 0 | AJ187: - | AK187: 0 | AL187: 0 | AN187: 0 | AO187: 7.53 | AP187: - | AQ187: - | AR187: - | AU187: 0 | AV187: - | AW187: 0 | AX187: 0
A188: 170 | E188: =IF($G188=0,0,VLOOKUP(C188,'Cover Sheet'!$D$10:$F$22,3,0)) -> 0 | G188: 0 | H188: =IF($G188=0,0,VLOOKUP(F188,'Cover Sheet'!$D$10:$F$34,3,0)) -> 0 | J188: =IF(I188=0,0,VLOOKUP(I188,'Cover Sheet'!$L$10:$M$13,2,0)) -> 0 | K188: 0 | M188: =IF(L188=0,0,VLOOKUP(L188,'Cover Sheet'!$L$14:$M$34,2,0)) -> 0 | N188: 0 | P188: =IF(L188="",0,VLOOKUP(L188,'Cover Sheet'!$L$10:$O$34,4,0)) -> 0 | Q188: - | S188: =IF(R188=0,0,VLOOKUP(R188,'Cover Sheet'!$L$14:$M$34,2,0)) -> 0 | T188: 0 | V188: =IF(R188="",0,VLOOKUP(R188,'Cover Sheet'!$L$10:$O$34,4,0)) -> 0 | W188: - | X188: =IF(C188=0,0,VLOOKUP(C188,'Cover Sheet'!$D$10:$G$22,4,0)) -> 0 | Y188: =IF(F188=0,0,VLOOKUP(F188,'Cover Sheet'!$D$10:$G$34,4,0)) -> 0 | AB188: 0 | AC188: 7.53 | AD188: - | AE188: - | AF188: - | AI188: 0 | AJ188: - | AK188: 0 | AL188: 0 | AN188: 0 | AO188: 7.53 | AP188: - | AQ188: - | AR188: - | AU188: 0 | AV188: - | AW188: 0 | AX188: 0
A189: 171 | E189: =IF($G189=0,0,VLOOKUP(C189,'Cover Sheet'!$D$10:$F$22,3,0)) -> 0 | G189: 0 | H189: =IF($G189=0,0,VLOOKUP(F189,'Cover Sheet'!$D$10:$F$34,3,0)) -> 0 | J189: =IF(I189=0,0,VLOOKUP(I189,'Cover Sheet'!$L$10:$M$13,2,0)) -> 0 | K189: 0 | M189: =IF(L189=0,0,VLOOKUP(L189,'Cover Sheet'!$L$14:$M$34,2,0)) -> 0 | N189: 0 | P189: =IF(L189="",0,VLOOKUP(L189,'Cover Sheet'!$L$10:$O$34,4,0)) -> 0 | Q189: - | S189: =IF(R189=0,0,VLOOKUP(R189,'Cover Sheet'!$L$14:$M$34,2,0)) -> 0 | T189: 0 | V189: =IF(R189="",0,VLOOKUP(R189,'Cover Sheet'!$L$10:$O$34,4,0)) -> 0 | W189: - | X189: =IF(C189=0,0,VLOOKUP(C189,'Cover Sheet'!$D$10:$G$22,4,0)) -> 0 | Y189: =IF(F189=0,0,VLOOKUP(F189,'Cover Sheet'!$D$10:$G$34,4,0)) -> 0 | AB189: 0 | AC189: 7.53 | AD189: - | AE189: - | AF189: - | AI189: 0 | AJ189: - | AK189: 0 | AL189: 0 | AN189: 0 | AO189: 7.53 | AP189: - | AQ189: - | AR189: - | AU189: 0 | AV189: - | AW189: 0 | AX189: 0
A190: 172 | E190: =IF($G190=0,0,VLOOKUP(C190,'Cover Sheet'!$D$10:$F$22,3,0)) -> 0 | G190: 0 | H190: =IF($G190=0,0,VLOOKUP(F190,'Cover Sheet'!$D$10:$F$34,3,0)) -> 0 | J190: =IF(I190=0,0,VLOOKUP(I190,'Cover Sheet'!$L$10:$M$13,2,0)) -> 0 | K190: 0 | M190: =IF(L190=0,0,VLOOKUP(L190,'Cover Sheet'!$L$14:$M$34,2,0)) -> 0 | N190: 0 | P190: =IF(L190="",0,VLOOKUP(L190,'Cover Sheet'!$L$10:$O$34,4,0)) -> 0 | Q190: - | S190: =IF(R190=0,0,VLOOKUP(R190,'Cover Sheet'!$L$14:$M$34,2,0)) -> 0 | T190: 0 | V190: =IF(R190="",0,VLOOKUP(R190,'Cover Sheet'!$L$10:$O$34,4,0)) -> 0 | W190: - | X190: =IF(C190=0,0,VLOOKUP(C190,'Cover Sheet'!$D$10:$G$22,4,0)) -> 0 | Y190: =IF(F190=0,0,VLOOKUP(F190,'Cover Sheet'!$D$10:$G$34,4,0)) -> 0 | AB190: 0 | AC190: 7.53 | AD190: - | AE190: - | AF190: - | AI190: 0 | AJ190: - | AK190: 0 | AL190: 0 | AN190: 0 | AO190: 7.53 | AP190: - | AQ190: - | AR190: - | AU190: 0 | AV190: - | AW190: 0 | AX190: 0
A191: 173 | E191: =IF($G191=0,0,VLOOKUP(C191,'Cover Sheet'!$D$10:$F$22,3,0)) -> 0 | G191: 0 | H191: =IF($G191=0,0,VLOOKUP(F191,'Cover Sheet'!$D$10:$F$34,3,0)) -> 0 | J191: =IF(I191=0,0,VLOOKUP(I191,'Cover Sheet'!$L$10:$M$13,2,0)) -> 0 | K191: 0 | M191: =IF(L191=0,0,VLOOKUP(L191,'Cover Sheet'!$L$14:$M$34,2,0)) -> 0 | N191: 0 | P191: =IF(L191="",0,VLOOKUP(L191,'Cover Sheet'!$L$10:$O$34,4,0)) -> 0 | Q191: - | S191: =IF(R191=0,0,VLOOKUP(R191,'Cover Sheet'!$L$14:$M$34,2,0)) -> 0 | T191: 0 | V191: =IF(R191="",0,VLOOKUP(R191,'Cover Sheet'!$L$10:$O$34,4,0)) -> 0 | W191: - | X191: =IF(C191=0,0,VLOOKUP(C191,'Cover Sheet'!$D$10:$G$22,4,0)) -> 0 | Y191: =IF(F191=0,0,VLOOKUP(F191,'Cover Sheet'!$D$10:$G$34,4,0)) -> 0 | AB191: 0 | AC191: 7.53 | AD191: - | AE191: - | AF191: - | AI191: 0 | AJ191: - | AK191: 0 | AL191: 0 | AN191: 0 | AO191: 7.53 | AP191: - | AQ191: - | AR191: - | AU191: 0 | AV191: - | AW191: 0 | AX191: 0
A192: 174 | E192: =IF($G192=0,0,VLOOKUP(C192,'Cover Sheet'!$D$10:$F$22,3,0)) -> 0 | G192: 0 | H192: =IF($G192=0,0,VLOOKUP(F192,'Cover Sheet'!$D$10:$F$34,3,0)) -> 0 | J192: =IF(I192=0,0,VLOOKUP(I192,'Cover Sheet'!$L$10:$M$13,2,0)) -> 0 | K192: 0 | M192: =IF(L192=0,0,VLOOKUP(L192,'Cover Sheet'!$L$14:$M$34,2,0)) -> 0 | N192: 0 | P192: =IF(L192="",0,VLOOKUP(L192,'Cover Sheet'!$L$10:$O$34,4,0)) -> 0 | Q192: - | S192: =IF(R192=0,0,VLOOKUP(R192,'Cover Sheet'!$L$14:$M$34,2,0)) -> 0 | T192: 0 | V192: =IF(R192="",0,VLOOKUP(R192,'Cover Sheet'!$L$10:$O$34,4,0)) -> 0 | W192: - | X192: =IF(C192=0,0,VLOOKUP(C192,'Cover Sheet'!$D$10:$G$22,4,0)) -> 0 | Y192: =IF(F192=0,0,VLOOKUP(F192,'Cover Sheet'!$D$10:$G$34,4,0)) -> 0 | AB192: 0 | AC192: 7.53 | AD192: - | AE192: - | AF192: - | AI192: 0 | AJ192: - | AK192: 0 | AL192: 0 | AN192: 0 | AO192: 7.53 | AP192: - | AQ192: - | AR192: - | AU192: 0 | AV192: - | AW192: 0 | AX192: 0
A193: 175 | E193: =IF($G193=0,0,VLOOKUP(C193,'Cover Sheet'!$D$10:$F$22,3,0)) -> 0 | G193: 0 | H193: =IF($G193=0,0,VLOOKUP(F193,'Cover Sheet'!$D$10:$F$34,3,0)) -> 0 | J193: =IF(I193=0,0,VLOOKUP(I193,'Cover Sheet'!$L$10:$M$13,2,0)) -> 0 | K193: 0 | M193: =IF(L193=0,0,VLOOKUP(L193,'Cover Sheet'!$L$14:$M$34,2,0)) -> 0 | N193: 0 | P193: =IF(L193="",0,VLOOKUP(L193,'Cover Sheet'!$L$10:$O$34,4,0)) -> 0 | Q193: - | S193: =IF(R193=0,0,VLOOKUP(R193,'Cover Sheet'!$L$14:$M$34,2,0)) -> 0 | T193: 0 | V193: =IF(R193="",0,VLOOKUP(R193,'Cover Sheet'!$L$10:$O$34,4,0)) -> 0 | W193: - | X193: =IF(C193=0,0,VLOOKUP(C193,'Cover Sheet'!$D$10:$G$22,4,0)) -> 0 | Y193: =IF(F193=0,0,VLOOKUP(F193,'Cover Sheet'!$D$10:$G$34,4,0)) -> 0 | AB193: 0 | AC193: 7.53 | AD193: - | AE193: =IF(AB193=0,"-",(AC193-0.2*AD193)^2/(AC193+0.8*AD193)) -> - | AF193: - | AI193: 0 | AJ193: - | AK193: 0 | AL193: 0 | AN193: 0 | AO193: 7.53 | AP193: - | AQ193: =IF(AN193=0,"-",(AO193-0.2*AP193)^2/(AO193+0.8*AP193)) -> - | AR193: - | AU193: 0 | AV193: - | AW193: 0 | AX193: 0
A194: 176 | E194: =IF($G194=0,0,VLOOKUP(C194,'Cover Sheet'!$D$10:$F$22,3,0)) -> 0 | G194: 0 | H194: =IF($G194=0,0,VLOOKUP(F194,'Cover Sheet'!$D$10:$F$34,3,0)) -> 0 | J194: =IF(I194=0,0,VLOOKUP(I194,'Cover Sheet'!$L$10:$M$13,2,0)) -> 0 | K194: 0 | M194: =IF(L194=0,0,VLOOKUP(L194,'Cover Sheet'!$L$14:$M$34,2,0)) -> 0 | N194: 0 | P194: =IF(L194="",0,VLOOKUP(L194,'Cover Sheet'!$L$10:$O$34,4,0)) -> 0 | Q194: - | S194: =IF(R194=0,0,VLOOKUP(R194,'Cover Sheet'!$L$14:$M$34,2,0)) -> 0 | T194: 0 | V194: =IF(R194="",0,VLOOKUP(R194,'Cover Sheet'!$L$10:$O$34,4,0)) -> 0 | W194: - | X194: =IF(C194=0,0,VLOOKUP(C194,'Cover Sheet'!$D$10:$G$22,4,0)) -> 0 | Y194: =IF(F194=0,0,VLOOKUP(F194,'Cover Sheet'!$D$10:$G$34,4,0)) -> 0 | AB194: 0 | AC194: 7.53 | AD194: - | AE194: =IF(AB194=0,"-",(AC194-0.2*AD194)^2/(AC194+0.8*AD194)) -> - | AF194: - | AI194: 0 | AJ194: - | AK194: 0 | AL194: 0 | AN194: 0 | AO194: 7.53 | AP194: - | AQ194: =IF(AN194=0,"-",(AO194-0.2*AP194)^2/(AO194+0.8*AP194)) -> - | AR194: - | AU194: 0 | AV194: - | AW194: 0 | AX194: 0
A195: 177 | E195: =IF($G195=0,0,VLOOKUP(C195,'Cover Sheet'!$D$10:$F$22,3,0)) -> 0 | G195: 0 | H195: =IF($G195=0,0,VLOOKUP(F195,'Cover Sheet'!$D$10:$F$34,3,0)) -> 0 | J195: =IF(I195=0,0,VLOOKUP(I195,'Cover Sheet'!$L$10:$M$13,2,0)) -> 0 | K195: 0 | M195: =IF(L195=0,0,VLOOKUP(L195,'Cover Sheet'!$L$14:$M$34,2,0)) -> 0 | N195: 0 | P195: =IF(L195="",0,VLOOKUP(L195,'Cover Sheet'!$L$10:$O$34,4,0)) -> 0 | Q195: - | S195: =IF(R195=0,0,VLOOKUP(R195,'Cover Sheet'!$L$14:$M$34,2,0)) -> 0 | T195: 0 | V195: =IF(R195="",0,VLOOKUP(R195,'Cover Sheet'!$L$10:$O$34,4,0)) -> 0 | W195: - | X195: =IF(C195=0,0,VLOOKUP(C195,'Cover Sheet'!$D$10:$G$22,4,0)) -> 0 | Y195: =IF(F195=0,0,VLOOKUP(F195,'Cover Sheet'!$D$10:$G$34,4,0)) -> 0 | AB195: 0 | AC195: 7.53 | AD195: - | AE195: - | AF195: - | AI195: 0 | AJ195: - | AK195: 0 | AL195: 0 | AN195: 0 | AO195: 7.53 | AP195: - | AQ195: - | AR195: - | AU195: 0 | AV195: - | AW195: 0 | AX195: 0
A196: 178 | E196: =IF($G196=0,0,VLOOKUP(C196,'Cover Sheet'!$D$10:$F$22,3,0)) -> 0 | G196: 0 | H196: =IF($G196=0,0,VLOOKUP(F196,'Cover Sheet'!$D$10:$F$34,3,0)) -> 0 | J196: =IF(I196=0,0,VLOOKUP(I196,'Cover Sheet'!$L$10:$M$13,2,0)) -> 0 | K196: 0 | M196: =IF(L196=0,0,VLOOKUP(L196,'Cover Sheet'!$L$14:$M$34,2,0)) -> 0 | N196: 0 | P196: =IF(L196="",0,VLOOKUP(L196,'Cover Sheet'!$L$10:$O$34,4,0)) -> 0 | Q196: - | S196: =IF(R196=0,0,VLOOKUP(R196,'Cover Sheet'!$L$14:$M$34,2,0)) -> 0 | T196: 0 | V196: =IF(R196="",0,VLOOKUP(R196,'Cover Sheet'!$L$10:$O$34,4,0)) -> 0 | W196: - | X196: =IF(C196=0,0,VLOOKUP(C196,'Cover Sheet'!$D$10:$G$22,4,0)) -> 0 | Y196: =IF(F196=0,0,VLOOKUP(F196,'Cover Sheet'!$D$10:$G$34,4,0)) -> 0 | AB196: 0 | AC196: 7.53 | AD196: - | AE196: - | AF196: - | AI196: 0 | AJ196: - | AK196: 0 | AL196: 0 | AN196: 0 | AO196: 7.53 | AP196: - | AQ196: - | AR196: - | AU196: 0 | AV196: - | AW196: 0 | AX196: 0
A197: 179 | E197: =IF($G197=0,0,VLOOKUP(C197,'Cover Sheet'!$D$10:$F$22,3,0)) -> 0 | G197: 0 | H197: =IF($G197=0,0,VLOOKUP(F197,'Cover Sheet'!$D$10:$F$34,3,0)) -> 0 | J197: =IF(I197=0,0,VLOOKUP(I197,'Cover Sheet'!$L$10:$M$13,2,0)) -> 0 | K197: 0 | M197: =IF(L197=0,0,VLOOKUP(L197,'Cover Sheet'!$L$14:$M$34,2,0)) -> 0 | N197: 0 | P197: =IF(L197="",0,VLOOKUP(L197,'Cover Sheet'!$L$10:$O$34,4,0)) -> 0 | Q197: - | S197: =IF(R197=0,0,VLOOKUP(R197,'Cover Sheet'!$L$14:$M$34,2,0)) -> 0 | T197: 0 | V197: =IF(R197="",0,VLOOKUP(R197,'Cover Sheet'!$L$10:$O$34,4,0)) -> 0 | W197: - | X197: =IF(C197=0,0,VLOOKUP(C197,'Cover Sheet'!$D$10:$G$22,4,0)) -> 0 | Y197: =IF(F197=0,0,VLOOKUP(F197,'Cover Sheet'!$D$10:$G$34,4,0)) -> 0 | AB197: 0 | AC197: 7.53 | AD197: =IF(AB197=0,"-",1000/AB197-10) -> - | AE197: - | AF197: - | AI197: 0 | AJ197: - | AK197: 0 | AL197: 0 | AN197: 0 | AO197: 7.53 | AP197: =IF(AN197=0,"-",1000/AN197-10) -> - | AQ197: - | AR197: - | AU197: 0 | AV197: - | AW197: =IF(AN197=0,0,1000/(10+5*AO197+10*AV197-10*(AV197^2+1.25*AV197*AO197)^(1/2))) -> 0 | AX197: 0
A198: 180 | E198: =IF($G198=0,0,VLOOKUP(C198,'Cover Sheet'!$D$10:$F$22,3,0)) -> 0 | G198: 0 | H198: =IF($G198=0,0,VLOOKUP(F198,'Cover Sheet'!$D$10:$F$34,3,0)) -> 0 | J198: =IF(I198=0,0,VLOOKUP(I198,'Cover Sheet'!$L$10:$M$13,2,0)) -> 0 | K198: 0 | M198: =IF(L198=0,0,VLOOKUP(L198,'Cover Sheet'!$L$14:$M$34,2,0)) -> 0 | N198: 0 | P198: =IF(L198="",0,VLOOKUP(L198,'Cover Sheet'!$L$10:$O$34,4,0)) -> 0 | Q198: - | S198: =IF(R198=0,0,VLOOKUP(R198,'Cover Sheet'!$L$14:$M$34,2,0)) -> 0 | T198: 0 | V198: =IF(R198="",0,VLOOKUP(R198,'Cover Sheet'!$L$10:$O$34,4,0)) -> 0 | W198: - | X198: =IF(C198=0,0,VLOOKUP(C198,'Cover Sheet'!$D$10:$G$22,4,0)) -> 0 | Y198: =IF(F198=0,0,VLOOKUP(F198,'Cover Sheet'!$D$10:$G$34,4,0)) -> 0 | AB198: 0 | AC198: 7.53 | AD198: - | AE198: - | AF198: - | AI198: 0 | AJ198: - | AK198: 0 | AL198: 0 | AN198: 0 | AO198: 7.53 | AP198: - | AQ198: - | AR198: - | AU198: 0 | AV198: - | AW198: 0 | AX198: 0
A199: 181 | E199: =IF($G199=0,0,VLOOKUP(C199,'Cover Sheet'!$D$10:$F$22,3,0)) -> 0 | G199: 0 | H199: =IF($G199=0,0,VLOOKUP(F199,'Cover Sheet'!$D$10:$F$34,3,0)) -> 0 | J199: =IF(I199=0,0,VLOOKUP(I199,'Cover Sheet'!$L$10:$M$13,2,0)) -> 0 | K199: 0 | M199: =IF(L199=0,0,VLOOKUP(L199,'Cover Sheet'!$L$14:$M$34,2,0)) -> 0 | N199: 0 | P199: =IF(L199="",0,VLOOKUP(L199,'Cover Sheet'!$L$10:$O$34,4,0)) -> 0 | Q199: - | S199: =IF(R199=0,0,VLOOKUP(R199,'Cover Sheet'!$L$14:$M$34,2,0)) -> 0 | T199: 0 | V199: =IF(R199="",0,VLOOKUP(R199,'Cover Sheet'!$L$10:$O$34,4,0)) -> 0 | W199: - | X199: =IF(C199=0,0,VLOOKUP(C199,'Cover Sheet'!$D$10:$G$22,4,0)) -> 0 | Y199: =IF(F199=0,0,VLOOKUP(F199,'Cover Sheet'!$D$10:$G$34,4,0)) -> 0 | AB199: 0 | AC199: 7.53 | AD199: - | AE199: - | AF199: - | AI199: 0 | AJ199: - | AK199: 0 | AL199: 0 | AN199: 0 | AO199: 7.53 | AP199: - | AQ199: - | AR199: - | AU199: 0 | AV199: - | AW199: 0 | AX199: 0
A200: 182 | E200: =IF($G200=0,0,VLOOKUP(C200,'Cover Sheet'!$D$10:$F$22,3,0)) -> 0 | G200: 0 | H200: =IF($G200=0,0,VLOOKUP(F200,'Cover Sheet'!$D$10:$F$34,3,0)) -> 0 | J200: =IF(I200=0,0,VLOOKUP(I200,'Cover Sheet'!$L$10:$M$13,2,0)) -> 0 | K200: 0 | M200: =IF(L200=0,0,VLOOKUP(L200,'Cover Sheet'!$L$14:$M$34,2,0)) -> 0 | N200: 0 | P200: =IF(L200="",0,VLOOKUP(L200,'Cover Sheet'!$L$10:$O$34,4,0)) -> 0 | Q200: - | S200: =IF(R200=0,0,VLOOKUP(R200,'Cover Sheet'!$L$14:$M$34,2,0)) -> 0 | T200: 0 | V200: =IF(R200="",0,VLOOKUP(R200,'Cover Sheet'!$L$10:$O$34,4,0)) -> 0 | W200: - | X200: =IF(C200=0,0,VLOOKUP(C200,'Cover Sheet'!$D$10:$G$22,4,0)) -> 0 | Y200: =IF(F200=0,0,VLOOKUP(F200,'Cover Sheet'!$D$10:$G$34,4,0)) -> 0 | AB200: 0 | AC200: 7.53 | AD200: - | AE200: - | AF200: - | AI200: 0 | AJ200: - | AK200: 0 | AL200: 0 | AN200: 0 | AO200: 7.53 | AP200: - | AQ200: - | AR200: - | AU200: 0 | AV200: - | AW200: 0 | AX200: 0
A201: 183 | E201: =IF($G201=0,0,VLOOKUP(C201,'Cover Sheet'!$D$10:$F$22,3,0)) -> 0 | G201: 0 | H201: =IF($G201=0,0,VLOOKUP(F201,'Cover Sheet'!$D$10:$F$34,3,0)) -> 0 | J201: =IF(I201=0,0,VLOOKUP(I201,'Cover Sheet'!$L$10:$M$13,2,0)) -> 0 | K201: 0 | M201: =IF(L201=0,0,VLOOKUP(L201,'Cover Sheet'!$L$14:$M$34,2,0)) -> 0 | N201: 0 | P201: =IF(L201="",0,VLOOKUP(L201,'Cover Sheet'!$L$10:$O$34,4,0)) -> 0 | Q201: - | S201: =IF(R201=0,0,VLOOKUP(R201,'Cover Sheet'!$L$14:$M$34,2,0)) -> 0 | T201: 0 | V201: =IF(R201="",0,VLOOKUP(R201,'Cover Sheet'!$L$10:$O$34,4,0)) -> 0 | W201: - | X201: =IF(C201=0,0,VLOOKUP(C201,'Cover Sheet'!$D$10:$G$22,4,0)) -> 0 | Y201: =IF(F201=0,0,VLOOKUP(F201,'Cover Sheet'!$D$10:$G$34,4,0)) -> 0 | AB201: 0 | AC201: 7.53 | AD201: - | AE201: - | AF201: - | AI201: 0 | AJ201: - | AK201: 0 | AL201: 0 | AN201: 0 | AO201: 7.53 | AP201: - | AQ201: - | AR201: - | AU201: 0 | AV201: - | AW201: 0 | AX201: 0
... 21 more rows

Sheet Sheet1
